{"text_format":"1","workbook":"xlsx","n_sheets":3,"sheets":["Master","Species","Rank"],"not_rendered":{"charts":0,"images":0,"macros":1,"external_links":0,"defined_names":6,"comments":0,"pivot_tables":0},"unopened":[],"bounds":{"document_bytes":16777216,"sheet_cells":100000,"rows_first":2000,"rows_last":500,"rows_between":2000,"halvings":0,"cell_chars":16384,"cell_head_chars":4096},"cells_cut":0,"cells_raw":0,"read":"whole","date_system":"1900"}

{"sheet":"Master","index":0,"n_rows":526,"n_cols":52,"rows_kept":526,"cut":false,"hidden":false,"merged":[]}
["KEY: BLUE=Common;\nGREEN=Uncommon; \nYELLOW=Harder to find, usually seen annually;\nORANGE=Rare, 5+records;\nRED=Fewer than 5 records; \nBLACK=extirpated; \nGRAY=Introduced.","Ctrl+n to generate a\nNeeds List for a county\n\nCtrl+l to generate a\n Life List for a county\n\nCtrl+k to generate a\n County Checklist","Clallam","Clark","Cowlitz","Grays Harbor","Island","Jefferson","King","Kitsap","Lewis","Mason","Pacific","Pierce","San Juan","Skagit","Skamania","Snohomish","Thurston","Wahkiakum","Whatcom",null,"Adams","Asotin","Benton","Chelan","Columbia","Douglas","Ferry","Franklin","Garfield","Grant","Kittitas","Klickitat","Lincoln","Okanogan","Pend Oreille","Spokane","Stevens","Walla Walla","Whitman","Yakima",null,{"$f":"(\"Western WA total: \"&(SUM(SUM(IF(AR4:AR523>0, 1,0)))) &\"          (W.WA possible: 505)\")","v":"Western WA total: 0          (W.WA possible: 505)"},{"$f":" (\"Eastern WA total: \"&(SUM(SUM(IF(AS4:AS523>0, 1,0)))) &\"      (E.WA possible: 417)\")","v":"Eastern WA total: 0      (E.WA possible: 417)"},{"$f":"(\"Washington State total: \"&(SUM(SUM(IF(AT4:AT523>0,1,0))))&\"     (Statewide possible: 520)\")","v":"Washington State total: 0     (Statewide possible: 520)"},null,"eBird Sort Order","older AOU order","2017 AOU 58 order","2018 AOU 59 order","CURRENT 2019 AOU 60 order"]
["(credits at bottom)","County totals (right->)",396,328,281,399,314,331,391,330,277,278,365,355,332,370,293,370,332,262,369,null,305,297,319,317,260,318,268,298,249,340,321,309,310,321,281,311,285,345,303,329,null,"W.WA Counties: 19","E.WA Counties: 20","Total WA counties: 39",null,0,0,0,0,0]
["COMMON NAME(below)","SCIENTIFIC NAME(below)\n                My County totals (right->)",{"$f":"SUM(C4:C526)","v":0},0,0,0,0,0,0,0,0,0,0,0,0,0,0,0,0,0,0,null,{"$f":"SUM(W4:W526)","v":0},0,0,0,0,0,0,0,0,0,0,0,0,0,0,0,0,0,0,0,null,"# of counties seen in:","# of counties seen in:","WA Statewide \n# of counties seen in ",null,0.5,0.5,0.5,0.5,0.5]
["Fulvous Whistling-Duck","Dendrocygna bicolor",null,null,null,null,null,null,null,null,null,null,null,null,null,null,null,null,null,null,null,null,null,null,null,null,null,null,null,null,null,null,null,null,null,null,null,null,null,null,null,null,null,{"$f":"SUM(C4:U4)","v":0},{"$f":"SUM(W4:AP4)","v":0},{"$f":"SUM(C4:AP4)","v":0},null,1,57,1,1,1]
["Emperor Goose","Anser canagicus",null,null,null,null,null,null,null,null,null,null,null,null,null,null,null,null,null,null,null,null,null,null,null,null,null,null,null,null,null,null,null,null,null,null,null,null,null,null,null,null,null,0,0,0,null,2,60,2,2,2]
["Snow Goose","Anser caerulescens",null,null,null,null,null,null,null,null,null,null,null,null,null,null,null,null,null,null,null,null,null,null,null,null,null,null,null,null,null,null,null,null,null,null,null,null,null,null,null,null,null,0,0,0,null,3,61,3,3,3]
["Ross's Goose","Anser rossii",null,null,null,null,null,null,null,null,null,null,null,null,null,null,null,null,null,null,null,null,null,null,null,null,null,null,null,null,null,null,null,null,null,null,null,null,null,null,null,null,null,0,0,0,null,4,62,4,4,4]
["Greater White-fronted Goose","Anser albifrons",null,null,null,null,null,null,null,null,null,null,null,null,null,null,null,null,null,null,null,null,null,null,null,null,null,null,null,null,null,null,null,null,null,null,null,null,null,null,null,null,null,0,0,0,null,5,59,5,5,5]
["Taiga Bean-Goose","Anser fabalis",null,null,null,null,null,null,null,null,null,null,null,null,null,null,null,null,null,null,null,null,null,null,null,null,null,null,null,null,null,null,null,null,null,null,null,null,null,null,null,null,null,0,0,0,null,6,58,6,6,6]
["Brant","Branta bernicla",null,null,null,null,null,null,null,null,null,null,null,null,null,null,null,null,null,null,null,null,null,null,null,null,null,null,null,null,null,null,null,null,null,null,null,null,null,null,null,null,null,0,0,0,null,7,65,7,7,7]
["Cackling Goose","Branta hutchinsii",null,null,null,null,null,null,null,null,null,null,null,null,null,null,null,null,null,null,null,null,null,null,null,null,null,null,null,null,null,null,null,null,null,null,null,null,null,null,null,null,null,0,0,0,null,8,63,8,8,8]
["Canada Goose","Branta canadensis",null,null,null,null,null,null,null,null,null,null,null,null,null,null,null,null,null,null,null,null,null,null,null,null,null,null,null,null,null,null,null,null,null,null,null,null,null,null,null,null,null,0,0,0,null,9,64,9,9,9]
["Mute Swan*","Cygnus olor",null,null,null,null,null,null,null,null,null,null,null,null,null,null,null,null,null,null,null,null,null,null,null,null,null,null,null,null,null,null,null,null,null,null,null,null,null,null,null,null,null,0,0,0,null,10,66,10,10,10]
["Trumpeter Swan","Cygnus buccinator",null,null,null,null,null,null,null,null,null,null,null,null,null,null,null,null,null,null,null,null,null,null,null,null,null,null,null,null,null,null,null,null,null,null,null,null,null,null,null,null,null,0,0,0,null,11,67,11,11,11]
["Tundra Swan","Cygnus columbianus",null,null,null,null,null,null,null,null,null,null,null,null,null,null,null,null,null,null,null,null,null,null,null,null,null,null,null,null,null,null,null,null,null,null,null,null,null,null,null,null,null,0,0,0,null,12,68,12,12,12]
["Whooper Swan","Cygnus cygnus",null,null,null,null,null,null,null,null,null,null,null,null,null,null,null,null,null,null,null,null,null,null,null,null,null,null,null,null,null,null,null,null,null,null,null,null,null,null,null,null,null,0,0,0,null,13,69,13,13,13]
["Wood Duck","Aix sponsa",null,null,null,null,null,null,null,null,null,null,null,null,null,null,null,null,null,null,null,null,null,null,null,null,null,null,null,null,null,null,null,null,null,null,null,null,null,null,null,null,null,0,0,0,null,14,70,14,14,14]
["Baikal Teal","Sibirionetta formosa",null,null,null,null,null,null,null,null,null,null,null,null,null,null,null,null,null,null,null,null,null,null,null,null,null,null,null,null,null,null,null,null,null,null,null,null,null,null,null,null,null,0,0,0,null,15,82,15,15,15]
["Garganey","Spatula querquedula",null,null,null,null,null,null,null,null,null,null,null,null,null,null,null,null,null,null,null,null,null,null,null,null,null,null,null,null,null,null,null,null,null,null,null,null,null,null,null,null,null,0,0,0,null,16,81,16,16,16]
["Blue-winged Teal","Spatula discors",null,null,null,null,null,null,null,null,null,null,null,null,null,null,null,null,null,null,null,null,null,null,null,null,null,null,null,null,null,null,null,null,null,null,null,null,null,null,null,null,null,0,0,0,null,17,77,17,17,17]
["Cinnamon Teal","Spatula cyanoptera",null,null,null,null,null,null,null,null,null,null,null,null,null,null,null,null,null,null,null,null,null,null,null,null,null,null,null,null,null,null,null,null,null,null,null,null,null,null,null,null,null,0,0,0,null,18,78,18,18,18]
["Northern Shoveler","Spatula clypeata",null,null,null,null,null,null,null,null,null,null,null,null,null,null,null,null,null,null,null,null,null,null,null,null,null,null,null,null,null,null,null,null,null,null,null,null,null,null,null,null,null,0,0,0,null,19,79,19,19,19]
["Gadwall","Mareca strepera",null,null,null,null,null,null,null,null,null,null,null,null,null,null,null,null,null,null,null,null,null,null,null,null,null,null,null,null,null,null,null,null,null,null,null,null,null,null,null,null,null,0,0,0,null,20,71,20,20,20]
["Falcated Duck","Mareca falcata",null,null,null,null,null,null,null,null,null,null,null,null,null,null,null,null,null,null,null,null,null,null,null,null,null,null,null,null,null,null,null,null,null,null,null,null,null,null,null,null,null,0,0,0,null,21,72,21,21,21]
["Eurasian Wigeon","Mareca penelope",null,null,null,null,null,null,null,null,null,null,null,null,null,null,null,null,null,null,null,null,null,null,null,null,null,null,null,null,null,null,null,null,null,null,null,null,null,null,null,null,null,0,0,0,null,22,73,22,22,22]
["American Wigeon","Mareca americana",null,null,null,null,null,null,null,null,null,null,null,null,null,null,null,null,null,null,null,null,null,null,null,null,null,null,null,null,null,null,null,null,null,null,null,null,null,null,null,null,null,0,0,0,null,23,74,23,23,23]
["Mallard","Anas platyrhynchos",null,null,null,null,null,null,null,null,null,null,null,null,null,null,null,null,null,null,null,null,null,null,null,null,null,null,null,null,null,null,null,null,null,null,null,null,null,null,null,null,null,0,0,0,null,24,76,24,24,24]
["American Black Duck*","Anas rubripes",null,null,null,null,null,null,null,null,null,null,null,null,null,null,null,null,null,null,null,null,null,null,null,null,null,null,null,null,null,null,null,null,null,null,null,null,null,null,null,null,null,0,0,0,null,25,75,25,25,25]
["Northern Pintail","Anas acuta",null,null,null,null,null,null,null,null,null,null,null,null,null,null,null,null,null,null,null,null,null,null,null,null,null,null,null,null,null,null,null,null,null,null,null,null,null,null,null,null,null,0,0,0,null,26,80,26,26,26]
["Green-winged Teal","Anas crecca",null,null,null,null,null,null,null,null,null,null,null,null,null,null,null,null,null,null,null,null,null,null,null,null,null,null,null,null,null,null,null,null,null,null,null,null,null,null,null,null,null,0,0,0,null,27,83,27,27,27]
["Canvasback","Aythya valisineria",null,null,null,null,null,null,null,null,null,null,null,null,null,null,null,null,null,null,null,null,null,null,null,null,null,null,null,null,null,null,null,null,null,null,null,null,null,null,null,null,null,0,0,0,null,28,84,28,28,28]
["Redhead","Aythya americana",null,null,null,null,null,null,null,null,null,null,null,null,null,null,null,null,null,null,null,null,null,null,null,null,null,null,null,null,null,null,null,null,null,null,null,null,null,null,null,null,null,0,0,0,null,29,85,29,29,29]
["Ring-necked Duck","Aythya collaris",null,null,null,null,null,null,null,null,null,null,null,null,null,null,null,null,null,null,null,null,null,null,null,null,null,null,null,null,null,null,null,null,null,null,null,null,null,null,null,null,null,0,0,0,null,30,86,30,30,30]
["Tufted Duck","Aythya fuligula",null,null,null,null,null,null,null,null,null,null,null,null,null,null,null,null,null,null,null,null,null,null,null,null,null,null,null,null,null,null,null,null,null,null,null,null,null,null,null,null,null,0,0,0,null,31,87,31,31,31]
["Greater Scaup","Aythya marila",null,null,null,null,null,null,null,null,null,null,null,null,null,null,null,null,null,null,null,null,null,null,null,null,null,null,null,null,null,null,null,null,null,null,null,null,null,null,null,null,null,0,0,0,null,32,88,32,32,32]
["Lesser Scaup","Aythya affinis",null,null,null,null,null,null,null,null,null,null,null,null,null,null,null,null,null,null,null,null,null,null,null,null,null,null,null,null,null,null,null,null,null,null,null,null,null,null,null,null,null,0,0,0,null,33,89,33,33,33]
["Steller's Eider","Polysticta stelleri",null,null,null,null,null,null,null,null,null,null,null,null,null,null,null,null,null,null,null,null,null,null,null,null,null,null,null,null,null,null,null,null,null,null,null,null,null,null,null,null,null,0,0,0,null,34,90,34,34,34]
["King Eider","Somateria spectabilis",null,null,null,null,null,null,null,null,null,null,null,null,null,null,null,null,null,null,null,null,null,null,null,null,null,null,null,null,null,null,null,null,null,null,null,null,null,null,null,null,null,0,0,0,null,35,91,35,35,35]
["Common Eider","Somateria mollissima",null,null,null,null,null,null,null,null,null,null,null,null,null,null,null,null,null,null,null,null,null,null,null,null,null,null,null,null,null,null,null,null,null,null,null,null,null,null,null,null,null,0,0,0,null,36,92,36,36,36]
["Harlequin Duck","Histrionicus histrionicus",null,null,null,null,null,null,null,null,null,null,null,null,null,null,null,null,null,null,null,null,null,null,null,null,null,null,null,null,null,null,null,null,null,null,null,null,null,null,null,null,null,0,0,0,null,37,93,37,37,37]
["Surf Scoter","Melanitta perspicillata",null,null,null,null,null,null,null,null,null,null,null,null,null,null,null,null,null,null,null,null,null,null,null,null,null,null,null,null,null,null,null,null,null,null,null,null,null,null,null,null,null,0,0,0,null,38,94,38,38,38]
["White-winged Scoter","Melanitta deglandi",null,null,null,null,null,null,null,null,null,null,null,null,null,null,null,null,null,null,null,null,null,null,null,null,null,null,null,null,null,null,null,null,null,null,null,null,null,null,null,null,null,0,0,0,null,39,95,39,39,39]
["Black Scoter","Melanitta americana",null,null,null,null,null,null,null,null,null,null,null,null,null,null,null,null,null,null,null,null,null,null,null,null,null,null,null,null,null,null,null,null,null,null,null,null,null,null,null,null,null,0,0,0,null,40,96,40,40,40]
["Long-tailed Duck","Clangula hyemalis",null,null,null,null,null,null,null,null,null,null,null,null,null,null,null,null,null,null,null,null,null,null,null,null,null,null,null,null,null,null,null,null,null,null,null,null,null,null,null,null,null,0,0,0,null,41,97,41,41,41]
["Bufflehead","Bucephala albeola",null,null,null,null,null,null,null,null,null,null,null,null,null,null,null,null,null,null,null,null,null,null,null,null,null,null,null,null,null,null,null,null,null,null,null,null,null,null,null,null,null,0,0,0,null,42,98,42,42,42]
["Common Goldeneye","Bucephala clangula",null,null,null,null,null,null,null,null,null,null,null,null,null,null,null,null,null,null,null,null,null,null,null,null,null,null,null,null,null,null,null,null,null,null,null,null,null,null,null,null,null,0,0,0,null,43,99,43,43,43]
["Barrow's Goldeneye","Bucephala islandica",null,null,null,null,null,null,null,null,null,null,null,null,null,null,null,null,null,null,null,null,null,null,null,null,null,null,null,null,null,null,null,null,null,null,null,null,null,null,null,null,null,0,0,0,null,44,100,44,44,44]
["Smew","Mergellus albellus",null,null,null,null,null,null,null,null,null,null,null,null,null,null,null,null,null,null,null,null,null,null,null,null,null,null,null,null,null,null,null,null,null,null,null,null,null,null,null,null,null,0,0,0,null,45,101,45,45,45]
["Hooded Merganser","Lophodytes cucullatus",null,null,null,null,null,null,null,null,null,null,null,null,null,null,null,null,null,null,null,null,null,null,null,null,null,null,null,null,null,null,null,null,null,null,null,null,null,null,null,null,null,0,0,0,null,46,102,46,46,46]
["Common Merganser","Mergus merganser",null,null,null,null,null,null,null,null,null,null,null,null,null,null,null,null,null,null,null,null,null,null,null,null,null,null,null,null,null,null,null,null,null,null,null,null,null,null,null,null,null,0,0,0,null,47,103,47,47,47]
["Red-breasted Merganser","Mergus serrator",null,null,null,null,null,null,null,null,null,null,null,null,null,null,null,null,null,null,null,null,null,null,null,null,null,null,null,null,null,null,null,null,null,null,null,null,null,null,null,null,null,0,0,0,null,48,104,48,48,48]
["Ruddy Duck","Oxyura jamaicensis",null,null,null,null,null,null,null,null,null,null,null,null,null,null,null,null,null,null,null,null,null,null,null,null,null,null,null,null,null,null,null,null,null,null,null,null,null,null,null,null,null,0,0,0,null,49,105,49,49,49]
["Mountain Quail","Oreortyx pictus",null,null,null,null,null,null,null,null,null,null,null,null,null,null,null,null,null,null,null,null,null,null,null,null,null,null,null,null,null,null,null,null,null,null,null,null,null,null,null,null,null,0,0,0,null,50,140,50,50,50]
["Northern Bobwhite","Colinus virginianus",null,null,null,null,null,null,null,null,null,null,null,null,null,null,null,null,null,null,null,null,null,null,null,null,null,null,null,null,null,null,null,null,null,null,null,null,null,null,null,null,null,0,0,0,null,51,142,51,51,51]
["California Quail","Callipepla californica",null,null,null,null,null,null,null,null,null,null,null,null,null,null,null,null,null,null,null,null,null,null,null,null,null,null,null,null,null,null,null,null,null,null,null,null,null,null,null,null,null,0,0,0,null,52,141,52,52,52]
["Chukar","Alectoris chukar",null,null,null,null,null,null,null,null,null,null,null,null,null,null,null,null,null,null,null,null,null,null,null,null,null,null,null,null,null,null,null,null,null,null,null,null,null,null,null,null,null,0,0,0,null,53,129,53,53,53]
["Gray Partridge","Perdix perdix",null,null,null,null,null,null,null,null,null,null,null,null,null,null,null,null,null,null,null,null,null,null,null,null,null,null,null,null,null,null,null,null,null,null,null,null,null,null,null,null,null,0,0,0,null,55,130,54,54,54]
["Ring-necked Pheasant","Phasianus colchicus",null,null,null,null,null,null,null,null,null,null,null,null,null,null,null,null,null,null,null,null,null,null,null,null,null,null,null,null,null,null,null,null,null,null,null,null,null,null,null,null,null,0,0,0,null,54,131,55,55,55]
["Ruffed Grouse","Bonasa umbellus",null,null,null,null,null,null,null,null,null,null,null,null,null,null,null,null,null,null,null,null,null,null,null,null,null,null,null,null,null,null,null,null,null,null,null,null,null,null,null,null,null,0,0,0,null,56,132,56,56,56]
["Greater Sage-Grouse","Centrocercus urophasianus",null,null,null,null,null,null,null,null,null,null,null,null,null,null,null,null,null,null,null,null,null,null,null,null,null,null,null,null,null,null,null,null,null,null,null,null,null,null,null,null,null,0,0,0,null,57,133,57,57,57]
["Spruce Grouse","Falcipennis canadensis",null,null,null,null,null,null,null,null,null,null,null,null,null,null,null,null,null,null,null,null,null,null,null,null,null,null,null,null,null,null,null,null,null,null,null,null,null,null,null,null,null,0,0,0,null,58,134,58,58,58]
["White-tailed Ptarmigan","Lagopus leucura",null,null,null,null,null,null,null,null,null,null,null,null,null,null,null,null,null,null,null,null,null,null,null,null,null,null,null,null,null,null,null,null,null,null,null,null,null,null,null,null,null,0,0,0,null,59,135,59,59,59]
["Dusky Grouse","Dendragapus obscurus",null,null,null,null,null,null,null,null,null,null,null,null,null,null,null,null,null,null,null,null,null,null,null,null,null,null,null,null,null,null,null,null,null,null,null,null,null,null,null,null,null,0,0,0,null,60,136,60,60,60]
["Sooty Grouse","Dendragapus fuliginosus",null,null,null,null,null,null,null,null,null,null,null,null,null,null,null,null,null,null,null,null,null,null,null,null,null,null,null,null,null,null,null,null,null,null,null,null,null,null,null,null,null,0,0,0,null,61,137,61,61,61]
["Sharp-tailed Grouse","Tympanuchus phasianellus",null,null,null,null,null,null,null,null,null,null,null,null,null,null,null,null,null,null,null,null,null,null,null,null,null,null,null,null,null,null,null,null,null,null,null,null,null,null,null,null,null,0,0,0,null,62,138,62,62,62]
["Wild Turkey","Meleagris gallopavo",null,null,null,null,null,null,null,null,null,null,null,null,null,null,null,null,null,null,null,null,null,null,null,null,null,null,null,null,null,null,null,null,null,null,null,null,null,null,null,null,null,0,0,0,null,63,139,63,63,63]
["Pied-billed Grebe","Podilymbus podiceps",null,null,null,null,null,null,null,null,null,null,null,null,null,null,null,null,null,null,null,null,null,null,null,null,null,null,null,null,null,null,null,null,null,null,null,null,null,null,null,null,null,0,0,0,null,64,6,64,64,64]
["Horned Grebe","Podiceps auritus",null,null,null,null,null,null,null,null,null,null,null,null,null,null,null,null,null,null,null,null,null,null,null,null,null,null,null,null,null,null,null,null,null,null,null,null,null,null,null,null,null,{"$f":"SUM(C68:U68)","v":0},{"$f":"SUM(W68:AP68)","v":0},{"$f":"SUM(C68:AP68)","v":0},null,65,7,65,65,65]
["Red-necked Grebe","Podiceps grisegena",null,null,null,null,null,null,null,null,null,null,null,null,null,null,null,null,null,null,null,null,null,null,null,null,null,null,null,null,null,null,null,null,null,null,null,null,null,null,null,null,null,0,0,0,null,66,8,66,66,66]
["Eared Grebe","Podiceps nigricollis",null,null,null,null,null,null,null,null,null,null,null,null,null,null,null,null,null,null,null,null,null,null,null,null,null,null,null,null,null,null,null,null,null,null,null,null,null,null,null,null,null,0,0,0,null,67,9,67,67,67]
["Western Grebe","Aechmophorus occidentalis",null,null,null,null,null,null,null,null,null,null,null,null,null,null,null,null,null,null,null,null,null,null,null,null,null,null,null,null,null,null,null,null,null,null,null,null,null,null,null,null,null,0,0,0,null,68,10,68,68,68]
["Clark's Grebe","Aechmophorus clarkii",null,null,null,null,null,null,null,null,null,null,null,null,null,null,null,null,null,null,null,null,null,null,null,null,null,null,null,null,null,null,null,null,null,null,null,null,null,null,null,null,null,0,0,0,null,69,11,69,69,69]
["Rock Pigeon","Columba livia",null,null,null,null,null,null,null,null,null,null,null,null,null,null,null,null,null,null,null,null,null,null,null,null,null,null,null,null,null,null,null,null,null,null,null,null,null,null,null,null,null,0,0,0,null,70,259,70,70,70]
["Band-tailed Pigeon","Patagioenas fasciata",null,null,null,null,null,null,null,null,null,null,null,null,null,null,null,null,null,null,null,null,null,null,null,null,null,null,null,null,null,null,null,null,null,null,null,null,null,null,null,null,null,0,0,0,null,71,260,71,71,71]
["Eurasian Collared-Dove","Streptopelia decaocto",null,null,null,null,null,null,null,null,null,null,null,null,null,null,null,null,null,null,null,null,null,null,null,null,null,null,null,null,null,null,null,null,null,null,null,null,null,null,null,null,null,0,0,0,null,72,261,72,72,72]
["White-winged Dove","Zenaida asiatica",null,null,null,null,null,null,null,null,null,null,null,null,null,null,null,null,null,null,null,null,null,null,null,null,null,null,null,null,null,null,null,null,null,null,null,null,null,null,null,null,null,0,0,0,null,73,262,73,73,73]
["Mourning Dove","Zenaida macroura",null,null,null,null,null,null,null,null,null,null,null,null,null,null,null,null,null,null,null,null,null,null,null,null,null,null,null,null,null,null,null,null,null,null,null,null,null,null,null,null,null,0,0,0,null,74,263,74,74,74]
["Yellow-billed Cuckoo","Coccyzus americanus",null,null,null,null,null,null,null,null,null,null,null,null,null,null,null,null,null,null,null,null,null,null,null,null,null,null,null,null,null,null,null,null,null,null,null,null,null,null,null,null,null,0,0,0,null,75,265,75,75,75]
["Black-billed Cuckoo","Coccyzus erythropthalmus",null,null,null,null,null,null,null,null,null,null,null,null,null,null,null,null,null,null,null,null,null,null,null,null,null,null,null,null,null,null,null,null,null,null,null,null,null,null,null,null,null,0,0,0,null,76,264,76,76,76]
["Common Nighthawk","Chordeiles minor",null,null,null,null,null,null,null,null,null,null,null,null,null,null,null,null,null,null,null,null,null,null,null,null,null,null,null,null,null,null,null,null,null,null,null,null,null,null,null,null,null,0,0,0,null,77,281,77,77,77]
["Common Poorwill","Phalaenoptilus nuttallii",null,null,null,null,null,null,null,null,null,null,null,null,null,null,null,null,null,null,null,null,null,null,null,null,null,null,null,null,null,null,null,null,null,null,null,null,null,null,null,null,null,0,0,0,null,78,282,78,78,78]
["Black Swift","Cypseloides niger",null,null,null,null,null,null,null,null,null,null,null,null,null,null,null,null,null,null,null,null,null,null,null,null,null,null,null,null,null,null,null,null,null,null,null,null,null,null,null,null,null,0,0,0,null,79,283,79,79,79]
["Vaux's Swift","Chaetura vauxi",null,null,null,null,null,null,null,null,null,null,null,null,null,null,null,null,null,null,null,null,null,null,null,null,null,null,null,null,null,null,null,null,null,null,null,null,null,null,null,null,null,0,0,0,null,80,284,80,80,80]
["White-throated Swift","Aeronautes saxatalis",null,null,null,null,null,null,null,null,null,null,null,null,null,null,null,null,null,null,null,null,null,null,null,null,null,null,null,null,null,null,null,null,null,null,null,null,null,null,null,null,null,0,0,0,null,81,285,81,81,81]
["Ruby-throated Hummingbird","Archilochus colubris",null,null,null,null,null,null,null,null,null,null,null,null,null,null,null,null,null,null,null,null,null,null,null,null,null,null,null,null,null,null,null,null,null,null,null,null,null,null,null,null,null,0,0,0,null,82,286,82,82,82]
["Black-chinned Hummingbird","Archilochus alexandri",null,null,null,null,null,null,null,null,null,null,null,null,null,null,null,null,null,null,null,null,null,null,null,null,null,null,null,null,null,null,null,null,null,null,null,null,null,null,null,null,null,0,0,0,null,83,287,83,83,83]
["Anna's Hummingbird","Calypte anna",null,null,null,null,null,null,null,null,null,null,null,null,null,null,null,null,null,null,null,null,null,null,null,null,null,null,null,null,null,null,null,null,null,null,null,null,null,null,null,null,null,0,0,0,null,84,288,84,84,84]
["Costa's Hummingbird","Calypte costae",null,null,null,null,null,null,null,null,null,null,null,null,null,null,null,null,null,null,null,null,null,null,null,null,null,null,null,null,null,null,null,null,null,null,null,null,null,null,null,null,null,0,0,0,null,85,289,85,85,85]
["Broad-tailed Hummingbird","Selasphorus platycercus",null,null,null,null,null,null,null,null,null,null,null,null,null,null,null,null,null,null,null,null,null,null,null,null,null,null,null,null,null,null,null,null,null,null,null,null,null,null,null,null,null,0,0,0,null,86,292,86,86,86]
["Rufous Hummingbird","Selasphorus rufus",null,null,null,null,null,null,null,null,null,null,null,null,null,null,null,null,null,null,null,null,null,null,null,null,null,null,null,null,null,null,null,null,null,null,null,null,null,null,null,null,null,0,0,0,null,87,293,87,87,87]
["Allen's Hummingbird","Selasphorus sasin",null,null,null,null,null,null,null,null,null,null,null,null,null,null,null,null,null,null,null,null,null,null,null,null,null,null,null,null,null,null,null,null,null,null,null,null,null,null,null,null,null,0,0,0,null,88,294,88,88,88]
["Calliope Hummingbird","Selasphorus calliope",null,null,null,null,null,null,null,null,null,null,null,null,null,null,null,null,null,null,null,null,null,null,null,null,null,null,null,null,null,null,null,null,null,null,null,null,null,null,null,null,null,0,0,0,null,89,290,89,89,89]
["Broad-billed Hummingbird","Cynanthus latirostris",null,null,null,null,null,null,null,null,null,null,null,null,null,null,null,null,null,null,null,null,null,null,null,null,null,null,null,null,null,null,null,null,null,null,null,null,null,null,null,null,null,0,0,0,null,90,291,90,90,90]
["Yellow Rail","Coturnicops noveboracensis",null,null,null,null,null,null,null,null,null,null,null,null,null,null,null,null,null,null,null,null,null,null,null,null,null,null,null,null,null,null,null,null,null,null,null,null,null,null,null,null,null,0,0,0,null,95,143,91,91,91]
["Virginia Rail","Rallus limicola",null,null,null,null,null,null,null,null,null,null,null,null,null,null,null,null,null,null,null,null,null,null,null,null,null,null,null,null,null,null,null,null,null,null,null,null,null,null,null,null,null,0,0,0,null,91,144,92,92,92]
["Sora","Porzana carolina",null,null,null,null,null,null,null,null,null,null,null,null,null,null,null,null,null,null,null,null,null,null,null,null,null,null,null,null,null,null,null,null,null,null,null,null,null,null,null,null,null,0,0,0,null,92,145,93,93,93]
["Purple Gallinule","Porphyrio martinicus",null,null,null,null,null,null,null,null,null,null,null,null,null,null,null,null,null,null,null,null,null,null,null,null,null,null,null,null,null,null,null,null,null,null,null,null,null,null,null,null,null,0,0,0,null,94,146,94,94,94]
["American Coot","Fulica americana",null,null,null,null,null,null,null,null,null,null,null,null,null,null,null,null,null,null,null,null,null,null,null,null,null,null,null,null,null,null,null,null,null,null,null,null,null,null,null,null,null,0,0,0,null,93,147,95,95,95]
["Sandhill Crane","Antigone canadensis",null,null,null,null,null,null,null,null,null,null,null,null,null,null,null,null,null,null,null,null,null,null,null,null,null,null,null,null,null,null,null,null,null,null,null,null,null,null,null,null,null,0,0,0,null,96,148,96,96,96]
["Black-necked Stilt","Himantopus mexicanus",null,null,null,null,null,null,null,null,null,null,null,null,null,null,null,null,null,null,null,null,null,null,null,null,null,null,null,null,null,null,null,null,null,null,null,null,null,null,null,null,null,0,0,0,null,97,162,97,97,97]
["American Avocet","Recurvirostra americana",null,null,null,null,null,null,null,null,null,null,null,null,null,null,null,null,null,null,null,null,null,null,null,null,null,null,null,null,null,null,null,null,null,null,null,null,null,null,null,null,null,0,0,0,null,98,163,98,98,98]
["Black Oystercatcher","Haematopus bachmani",null,null,null,null,null,null,null,null,null,null,null,null,null,null,null,null,null,null,null,null,null,null,null,null,null,null,null,null,null,null,null,null,null,null,null,null,null,null,null,null,null,0,0,0,null,99,161,99,99,99]
["Black-bellied Plover","Pluvialis squatarola",null,null,null,null,null,null,null,null,null,null,null,null,null,null,null,null,null,null,null,null,null,null,null,null,null,null,null,null,null,null,null,null,null,null,null,null,null,null,null,null,null,0,0,0,null,100,149,100,100,100]
["American Golden-Plover","Pluvialis dominica",null,null,null,null,null,null,null,null,null,null,null,null,null,null,null,null,null,null,null,null,null,null,null,null,null,null,null,null,null,null,null,null,null,null,null,null,null,null,null,null,null,0,0,0,null,101,150,101,101,101]
["Pacific Golden-Plover","Pluvialis fulva",null,null,null,null,null,null,null,null,null,null,null,null,null,null,null,null,null,null,null,null,null,null,null,null,null,null,null,null,null,null,null,null,null,null,null,null,null,null,null,null,null,0,0,0,null,102,151,102,102,102]
["Eurasian Dotterel","Charadrius morinellus",null,null,null,null,null,null,null,null,null,null,null,null,null,null,null,null,null,null,null,null,null,null,null,null,null,null,null,null,null,null,null,null,null,null,null,null,null,null,null,null,null,0,0,0,null,111,160,111,111,103]
["Killdeer","Charadrius vociferus",null,null,null,null,null,null,null,null,null,null,null,null,null,null,null,null,null,null,null,null,null,null,null,null,null,null,null,null,null,null,null,null,null,null,null,null,null,null,null,null,null,0,0,0,null,109,158,109,109,104]
["Common Ringed Plover","Charadrius hiaticula",null,null,null,null,null,null,null,null,null,null,null,null,null,null,null,null,null,null,null,null,null,null,null,null,null,null,null,null,null,null,null,null,null,null,null,null,null,null,null,null,null,0,0,0,null,106,155,106,106,105]
["Semipalmated Plover","Charadrius semipalmatus",null,null,null,null,null,null,null,null,null,null,null,null,null,null,null,null,null,null,null,null,null,null,null,null,null,null,null,null,null,null,null,null,null,null,null,null,null,null,null,null,null,0,0,0,null,107,156,107,107,106]
["Piping Plover","Charadrius melodus",null,null,null,null,null,null,null,null,null,null,null,null,null,null,null,null,null,null,null,null,null,null,null,null,null,null,null,null,null,null,null,null,null,null,null,null,null,null,null,null,null,0,0,0,null,108,157,108,108,107]
["Lesser Sand-Plover","Charadrius mongolus",null,null,null,null,null,null,null,null,null,null,null,null,null,null,null,null,null,null,null,null,null,null,null,null,null,null,null,null,null,null,null,null,null,null,null,null,null,null,null,null,null,0,0,0,null,103,152,103,103,108]
["Wilson's Plover","Charadrius wilsonia",null,null,null,null,null,null,null,null,null,null,null,null,null,null,null,null,null,null,null,null,null,null,null,null,null,null,null,null,null,null,null,null,null,null,null,null,null,null,null,null,null,0,0,0,null,105,154,105,105,109]
["Mountain Plover","Charadrius montanus",null,null,null,null,null,null,null,null,null,null,null,null,null,null,null,null,null,null,null,null,null,null,null,null,null,null,null,null,null,null,null,null,null,null,null,null,null,null,null,null,null,0,0,0,null,110,159,110,110,110]
["Snowy Plover","Charadrius nivosus",null,null,null,null,null,null,null,null,null,null,null,null,null,null,null,null,null,null,null,null,null,null,null,null,null,null,null,null,null,null,null,null,null,null,null,null,null,null,null,null,null,0,0,0,null,104,153,104,104,111]
["Upland Sandpiper","Bartramia longicauda",null,null,null,null,null,null,null,null,null,null,null,null,null,null,null,null,null,null,null,null,null,null,null,null,null,null,null,null,null,null,null,null,null,null,null,null,null,null,null,null,null,0,0,0,null,112,173,112,112,112]
["Bristle-thighed Curlew","Numenius tahitiensis",null,null,null,null,null,null,null,null,null,null,null,null,null,null,null,null,null,null,null,null,null,null,null,null,null,null,null,null,null,null,null,null,null,null,null,null,null,null,null,null,null,0,0,0,null,113,175,113,113,113]
["Whimbrel","Numenius phaeopus",null,null,null,null,null,null,null,null,null,null,null,null,null,null,null,null,null,null,null,null,null,null,null,null,null,null,null,null,null,null,null,null,null,null,null,null,null,null,null,null,null,0,0,0,null,114,174,114,114,114]
["Long-billed Curlew","Numenius americanus",null,null,null,null,null,null,null,null,null,null,null,null,null,null,null,null,null,null,null,null,null,null,null,null,null,null,null,null,null,null,null,null,null,null,null,null,null,null,null,null,null,0,0,0,null,115,176,115,115,115]
["Bar-tailed Godwit","Limosa lapponica",null,null,null,null,null,null,null,null,null,null,null,null,null,null,null,null,null,null,null,null,null,null,null,null,null,null,null,null,null,null,null,null,null,null,null,null,null,null,null,null,null,0,0,0,null,116,178,116,116,116]
["Hudsonian Godwit","Limosa haemastica",null,null,null,null,null,null,null,null,null,null,null,null,null,null,null,null,null,null,null,null,null,null,null,null,null,null,null,null,null,null,null,null,null,null,null,null,null,null,null,null,null,0,0,0,null,117,177,117,117,117]
["Marbled Godwit","Limosa fedoa",null,null,null,null,null,null,null,null,null,null,null,null,null,null,null,null,null,null,null,null,null,null,null,null,null,null,null,null,null,null,null,null,null,null,null,null,null,null,null,null,null,0,0,0,null,118,179,118,118,118]
["Ruddy Turnstone","Arenaria interpres",null,null,null,null,null,null,null,null,null,null,null,null,null,null,null,null,null,null,null,null,null,null,null,null,null,null,null,null,null,null,null,null,null,null,null,null,null,null,null,null,null,0,0,0,null,119,180,119,119,119]
["Black Turnstone","Arenaria melanocephala",null,null,null,null,null,null,null,null,null,null,null,null,null,null,null,null,null,null,null,null,null,null,null,null,null,null,null,null,null,null,null,null,null,null,null,null,null,null,null,null,null,0,0,0,null,120,181,120,120,120]
["Red Knot","Calidris canutus",null,null,null,null,null,null,null,null,null,null,null,null,null,null,null,null,null,null,null,null,null,null,null,null,null,null,null,null,null,null,null,null,null,null,null,null,null,null,null,null,null,0,0,0,null,121,183,121,121,121]
["Surfbird","Calidris virgata",null,null,null,null,null,null,null,null,null,null,null,null,null,null,null,null,null,null,null,null,null,null,null,null,null,null,null,null,null,null,null,null,null,null,null,null,null,null,null,null,null,0,0,0,null,122,182,122,122,122]
["Ruff","Calidris pugnax",null,null,null,null,null,null,null,null,null,null,null,null,null,null,null,null,null,null,null,null,null,null,null,null,null,null,null,null,null,null,null,null,null,null,null,null,null,null,null,null,null,0,0,0,null,123,200,123,123,123]
["Sharp-tailed Sandpiper","Calidris acuminata",null,null,null,null,null,null,null,null,null,null,null,null,null,null,null,null,null,null,null,null,null,null,null,null,null,null,null,null,null,null,null,null,null,null,null,null,null,null,null,null,null,0,0,0,null,124,194,124,124,124]
["Stilt Sandpiper","Calidris himantopus",null,null,null,null,null,null,null,null,null,null,null,null,null,null,null,null,null,null,null,null,null,null,null,null,null,null,null,null,null,null,null,null,null,null,null,null,null,null,null,null,null,0,0,0,null,125,198,125,125,125]
["Curlew Sandpiper","Calidris ferruginea",null,null,null,null,null,null,null,null,null,null,null,null,null,null,null,null,null,null,null,null,null,null,null,null,null,null,null,null,null,null,null,null,null,null,null,null,null,null,null,null,null,0,0,0,null,126,197,126,126,126]
["Temminck's Stint","Calidris temminckii",null,null,null,null,null,null,null,null,null,null,null,null,null,null,null,null,null,null,null,null,null,null,null,null,null,null,null,null,null,null,null,null,null,null,null,null,null,null,null,null,null,0,0,0,null,127,189,127,127,127]
["Red-necked Stint","Calidris ruficollis",null,null,null,null,null,null,null,null,null,null,null,null,null,null,null,null,null,null,null,null,null,null,null,null,null,null,null,null,null,null,null,null,null,null,null,null,null,null,null,null,null,0,0,0,null,128,187,128,128,128]
["Sanderling","Calidris alba",null,null,null,null,null,null,null,null,null,null,null,null,null,null,null,null,null,null,null,null,null,null,null,null,null,null,null,null,null,null,null,null,null,null,null,null,null,null,null,null,null,{"$f":"SUM(C132:U132)","v":0},{"$f":"SUM(W132:AP132)","v":0},{"$f":"SUM(C132:AP132)","v":0},null,129,184,129,129,129]
["Dunlin","Calidris alpina",null,null,null,null,null,null,null,null,null,null,null,null,null,null,null,null,null,null,null,null,null,null,null,null,null,null,null,null,null,null,null,null,null,null,null,null,null,null,null,null,null,0,0,0,null,130,196,130,130,130]
["Rock Sandpiper","Calidris ptilocnemis",null,null,null,null,null,null,null,null,null,null,null,null,null,null,null,null,null,null,null,null,null,null,null,null,null,null,null,null,null,null,null,null,null,null,null,null,null,null,null,null,null,0,0,0,null,131,195,131,131,131]
["Baird's Sandpiper","Calidris bairdii",null,null,null,null,null,null,null,null,null,null,null,null,null,null,null,null,null,null,null,null,null,null,null,null,null,null,null,null,null,null,null,null,null,null,null,null,null,null,null,null,null,0,0,0,null,132,192,132,132,132]
["Little Stint","Calidris minuta",null,null,null,null,null,null,null,null,null,null,null,null,null,null,null,null,null,null,null,null,null,null,null,null,null,null,null,null,null,null,null,null,null,null,null,null,null,null,null,null,null,0,0,0,null,133,188,133,133,133]
["Least Sandpiper","Calidris minutilla",null,null,null,null,null,null,null,null,null,null,null,null,null,null,null,null,null,null,null,null,null,null,null,null,null,null,null,null,null,null,null,null,null,null,null,null,null,null,null,null,null,0,0,0,null,134,190,134,134,134]
["White-rumped Sandpiper","Calidris fuscicollis",null,null,null,null,null,null,null,null,null,null,null,null,null,null,null,null,null,null,null,null,null,null,null,null,null,null,null,null,null,null,null,null,null,null,null,null,null,null,null,null,null,0,0,0,null,135,191,135,135,135]
["Buff-breasted Sandpiper","Calidris subruficollis",null,null,null,null,null,null,null,null,null,null,null,null,null,null,null,null,null,null,null,null,null,null,null,null,null,null,null,null,null,null,null,null,null,null,null,null,null,null,null,null,null,0,0,0,null,136,199,136,136,136]
["Pectoral Sandpiper","Calidris melanotos",null,null,null,null,null,null,null,null,null,null,null,null,null,null,null,null,null,null,null,null,null,null,null,null,null,null,null,null,null,null,null,null,null,null,null,null,null,null,null,null,null,0,0,0,null,137,193,137,137,137]
["Semipalmated Sandpiper","Calidris pusilla",null,null,null,null,null,null,null,null,null,null,null,null,null,null,null,null,null,null,null,null,null,null,null,null,null,null,null,null,null,null,null,null,null,null,null,null,null,null,null,null,null,0,0,0,null,138,185,138,138,138]
["Western Sandpiper","Calidris mauri",null,null,null,null,null,null,null,null,null,null,null,null,null,null,null,null,null,null,null,null,null,null,null,null,null,null,null,null,null,null,null,null,null,null,null,null,null,null,null,null,null,0,0,0,null,139,186,139,139,139]
["Short-billed Dowitcher","Limnodromus griseus",null,null,null,null,null,null,null,null,null,null,null,null,null,null,null,null,null,null,null,null,null,null,null,null,null,null,null,null,null,null,null,null,null,null,null,null,null,null,null,null,null,0,0,0,null,140,201,140,140,140]
["Long-billed Dowitcher","Limnodromus scolopaceus",null,null,null,null,null,null,null,null,null,null,null,null,null,null,null,null,null,null,null,null,null,null,null,null,null,null,null,null,null,null,null,null,null,null,null,null,null,null,null,null,null,0,0,0,null,141,202,141,141,141]
["Jack Snipe","Lymnocryptes minimus",null,null,null,null,null,null,null,null,null,null,null,null,null,null,null,null,null,null,null,null,null,null,null,null,null,null,null,null,null,null,null,null,null,null,null,null,null,null,null,null,null,0,0,0,null,142,203,142,142,142]
["Wilson's Snipe","Gallinago delicata",null,null,null,null,null,null,null,null,null,null,null,null,null,null,null,null,null,null,null,null,null,null,null,null,null,null,null,null,null,null,null,null,null,null,null,null,null,null,null,null,null,0,0,0,null,143,204,143,143,143]
["Spotted Sandpiper","Actitis macularius",null,null,null,null,null,null,null,null,null,null,null,null,null,null,null,null,null,null,null,null,null,null,null,null,null,null,null,null,null,null,null,null,null,null,null,null,null,null,null,null,null,0,0,0,null,147,172,144,144,144]
["Solitary Sandpiper","Tringa solitaria",null,null,null,null,null,null,null,null,null,null,null,null,null,null,null,null,null,null,null,null,null,null,null,null,null,null,null,null,null,null,null,null,null,null,null,null,null,null,null,null,null,0,0,0,null,148,167,145,145,145]
["Gray-tailed Tattler","Tringa brevipes",null,null,null,null,null,null,null,null,null,null,null,null,null,null,null,null,null,null,null,null,null,null,null,null,null,null,null,null,null,null,null,null,null,null,null,null,null,null,null,null,null,0,0,0,null,149,171,146,146,146]
["Wandering Tattler","Tringa incana",null,null,null,null,null,null,null,null,null,null,null,null,null,null,null,null,null,null,null,null,null,null,null,null,null,null,null,null,null,null,null,null,null,null,null,null,null,null,null,null,null,0,0,0,null,150,169,147,147,147]
["Lesser Yellowlegs","Tringa flavipes",null,null,null,null,null,null,null,null,null,null,null,null,null,null,null,null,null,null,null,null,null,null,null,null,null,null,null,null,null,null,null,null,null,null,null,null,null,null,null,null,null,0,0,0,null,154,165,148,148,148]
["Willet","Tringa semipalmata",null,null,null,null,null,null,null,null,null,null,null,null,null,null,null,null,null,null,null,null,null,null,null,null,null,null,null,null,null,null,null,null,null,null,null,null,null,null,null,null,null,0,0,0,null,153,168,149,149,149]
["Spotted Redshank","Tringa erythropus",null,null,null,null,null,null,null,null,null,null,null,null,null,null,null,null,null,null,null,null,null,null,null,null,null,null,null,null,null,null,null,null,null,null,null,null,null,null,null,null,null,0,0,0,null,151,170,150,150,150]
["Greater Yellowlegs","Tringa melanoleuca",null,null,null,null,null,null,null,null,null,null,null,null,null,null,null,null,null,null,null,null,null,null,null,null,null,null,null,null,null,null,null,null,null,null,null,null,null,null,null,null,null,0,0,0,null,152,164,151,151,151]
["Wood Sandpiper","Tringa glareola",null,null,null,null,null,null,null,null,null,null,null,null,null,null,null,null,null,null,null,null,null,null,null,null,null,null,null,null,null,null,null,null,null,null,null,null,null,null,null,null,null,0,0,0,null,155,166,152,152,152]
["Wilson's Phalarope","Phalaropus tricolor",null,null,null,null,null,null,null,null,null,null,null,null,null,null,null,null,null,null,null,null,null,null,null,null,null,null,null,null,null,null,null,null,null,null,null,null,null,null,null,null,null,0,0,0,null,144,205,153,153,153]
["Red-necked Phalarope","Phalaropus lobatus",null,null,null,null,null,null,null,null,null,null,null,null,null,null,null,null,null,null,null,null,null,null,null,null,null,null,null,null,null,null,null,null,null,null,null,null,null,null,null,null,null,0,0,0,null,145,206,154,154,154]
["Red Phalarope","Phalaropus fulicarius",null,null,null,null,null,null,null,null,null,null,null,null,null,null,null,null,null,null,null,null,null,null,null,null,null,null,null,null,null,null,null,null,null,null,null,null,null,null,null,null,null,0,0,0,null,146,207,155,155,155]
["South Polar Skua","Stercorarius maccormicki",null,null,null,null,null,null,null,null,null,null,null,null,null,null,null,null,null,null,null,null,null,null,null,null,null,null,null,null,null,null,null,null,null,null,null,null,null,null,null,null,null,0,0,0,null,156,208,156,156,156]
["Pomarine Jaeger","Stercorarius pomarinus",null,null,null,null,null,null,null,null,null,null,null,null,null,null,null,null,null,null,null,null,null,null,null,null,null,null,null,null,null,null,null,null,null,null,null,null,null,null,null,null,null,0,0,0,null,157,209,157,157,157]
["Parasitic Jaeger","Stercorarius parasiticus",null,null,null,null,null,null,null,null,null,null,null,null,null,null,null,null,null,null,null,null,null,null,null,null,null,null,null,null,null,null,null,null,null,null,null,null,null,null,null,null,null,0,0,0,null,158,210,158,158,158]
["Long-tailed Jaeger","Stercorarius longicaudus",null,null,null,null,null,null,null,null,null,null,null,null,null,null,null,null,null,null,null,null,null,null,null,null,null,null,null,null,null,null,null,null,null,null,null,null,null,null,null,null,null,0,0,0,null,159,211,159,159,159]
["Common Murre","Uria aalge",null,null,null,null,null,null,null,null,null,null,null,null,null,null,null,null,null,null,null,null,null,null,null,null,null,null,null,null,null,null,null,null,null,null,null,null,null,null,null,null,null,0,0,0,null,160,242,160,160,160]
["Thick-billed Murre","Uria lomvia",null,null,null,null,null,null,null,null,null,null,null,null,null,null,null,null,null,null,null,null,null,null,null,null,null,null,null,null,null,null,null,null,null,null,null,null,null,null,null,null,null,0,0,0,null,161,243,161,161,161]
["Pigeon Guillemot","Cepphus columba",null,null,null,null,null,null,null,null,null,null,null,null,null,null,null,null,null,null,null,null,null,null,null,null,null,null,null,null,null,null,null,null,null,null,null,null,null,null,null,null,null,0,0,0,null,162,244,162,162,162]
["Long-billed Murrelet","Brachyramphus perdix",null,null,null,null,null,null,null,null,null,null,null,null,null,null,null,null,null,null,null,null,null,null,null,null,null,null,null,null,null,null,null,null,null,null,null,null,null,null,null,null,null,0,0,0,null,163,245,163,163,163]
["Marbled Murrelet","Brachyramphus marmoratus",null,null,null,null,null,null,null,null,null,null,null,null,null,null,null,null,null,null,null,null,null,null,null,null,null,null,null,null,null,null,null,null,null,null,null,null,null,null,null,null,null,0,0,0,null,164,246,164,164,164]
["Kittlitz's Murrelet","Brachyramphus brevirostris",null,null,null,null,null,null,null,null,null,null,null,null,null,null,null,null,null,null,null,null,null,null,null,null,null,null,null,null,null,null,null,null,null,null,null,null,null,null,null,null,null,0,0,0,null,165,247,165,165,165]
["Scripps's Murrelet","Synthliboramphus scrippsi",null,null,null,null,null,null,null,null,null,null,null,null,null,null,null,null,null,null,null,null,null,null,null,null,null,null,null,null,null,null,null,null,null,null,null,null,null,null,null,null,null,0,0,0,null,166,248,166,166,166]
["Guadalupe Murrelet","Synthliboramphus hypoleucus",null,null,null,null,null,null,null,null,null,null,null,null,null,null,null,null,null,null,null,null,null,null,null,null,null,null,null,null,null,null,null,null,null,null,null,null,null,null,null,null,null,0,0,0,null,167,249,167,167,167]
["Ancient Murrelet","Synthliboramphus antiquus",null,null,null,null,null,null,null,null,null,null,null,null,null,null,null,null,null,null,null,null,null,null,null,null,null,null,null,null,null,null,null,null,null,null,null,null,null,null,null,null,null,0,0,0,null,168,250,168,168,168]
["Cassin's Auklet","Ptychoramphus aleuticus",null,null,null,null,null,null,null,null,null,null,null,null,null,null,null,null,null,null,null,null,null,null,null,null,null,null,null,null,null,null,null,null,null,null,null,null,null,null,null,null,null,0,0,0,null,169,251,169,169,169]
["Parakeet Auklet","Aethia psittacula",null,null,null,null,null,null,null,null,null,null,null,null,null,null,null,null,null,null,null,null,null,null,null,null,null,null,null,null,null,null,null,null,null,null,null,null,null,null,null,null,null,0,0,0,null,170,252,170,170,170]
["Least Auklet","Aethia pusilla",null,null,null,null,null,null,null,null,null,null,null,null,null,null,null,null,null,null,null,null,null,null,null,null,null,null,null,null,null,null,null,null,null,null,null,null,null,null,null,null,null,0,0,0,null,171,253,171,171,171]
["Crested Auklet","Aethia cristatella",null,null,null,null,null,null,null,null,null,null,null,null,null,null,null,null,null,null,null,null,null,null,null,null,null,null,null,null,null,null,null,null,null,null,null,null,null,null,null,null,null,0,0,0,null,172,254,172,172,172]
["Rhinoceros Auklet","Cerorhinca monocerata",null,null,null,null,null,null,null,null,null,null,null,null,null,null,null,null,null,null,null,null,null,null,null,null,null,null,null,null,null,null,null,null,null,null,null,null,null,null,null,null,null,0,0,0,null,173,255,173,173,173]
["Horned Puffin","Fratercula corniculata",null,null,null,null,null,null,null,null,null,null,null,null,null,null,null,null,null,null,null,null,null,null,null,null,null,null,null,null,null,null,null,null,null,null,null,null,null,null,null,null,null,0,0,0,null,174,256,174,174,174]
["Tufted Puffin","Fratercula cirrhata",null,null,null,null,null,null,null,null,null,null,null,null,null,null,null,null,null,null,null,null,null,null,null,null,null,null,null,null,null,null,null,null,null,null,null,null,null,null,null,null,null,0,0,0,null,175,257,175,175,175]
["Swallow-tailed Gull","Creagrus furcatus",null,null,null,null,null,null,null,null,null,null,null,null,null,null,null,null,null,null,null,null,null,null,null,null,null,null,null,null,null,null,null,null,null,null,null,null,null,null,null,null,null,0,0,0,null,176,258,176,176,176]
["Black-legged Kittiwake","Rissa tridactyla",null,null,null,null,null,null,null,null,null,null,null,null,null,null,null,null,null,null,null,null,null,null,null,null,null,null,null,null,null,null,null,null,null,null,null,null,null,null,null,null,null,0,0,0,null,177,231,177,177,177]
["Red-legged Kittiwake","Rissa brevirostris",null,null,null,null,null,null,null,null,null,null,null,null,null,null,null,null,null,null,null,null,null,null,null,null,null,null,null,null,null,null,null,null,null,null,null,null,null,null,null,null,null,0,0,0,null,178,232,178,178,178]
["Ivory Gull","Pagophila eburnea",null,null,null,null,null,null,null,null,null,null,null,null,null,null,null,null,null,null,null,null,null,null,null,null,null,null,null,null,null,null,null,null,null,null,null,null,null,null,null,null,null,0,0,0,null,179,234,179,179,179]
["Sabine's Gull","Xema sabini",null,null,null,null,null,null,null,null,null,null,null,null,null,null,null,null,null,null,null,null,null,null,null,null,null,null,null,null,null,null,null,null,null,null,null,null,null,null,null,null,null,0,0,0,null,180,230,180,180,180]
["Bonaparte's Gull","Chroicocephalus philadelphia",null,null,null,null,null,null,null,null,null,null,null,null,null,null,null,null,null,null,null,null,null,null,null,null,null,null,null,null,null,null,null,null,null,null,null,null,null,null,null,null,null,0,0,0,null,181,216,181,181,181]
["Black-headed Gull","Chroicocephalus ridibundus",null,null,null,null,null,null,null,null,null,null,null,null,null,null,null,null,null,null,null,null,null,null,null,null,null,null,null,null,null,null,null,null,null,null,null,null,null,null,null,null,null,0,0,0,null,182,215,182,182,182]
["Little Gull","Hydrocoloeus minutus",null,null,null,null,null,null,null,null,null,null,null,null,null,null,null,null,null,null,null,null,null,null,null,null,null,null,null,null,null,null,null,null,null,null,null,null,null,null,null,null,null,0,0,0,null,183,214,183,183,183]
["Ross's Gull","Rhodostethia rosea",null,null,null,null,null,null,null,null,null,null,null,null,null,null,null,null,null,null,null,null,null,null,null,null,null,null,null,null,null,null,null,null,null,null,null,null,null,null,null,null,null,0,0,0,null,184,233,184,184,184]
["Laughing Gull","Leucophaeus atricilla",null,null,null,null,null,null,null,null,null,null,null,null,null,null,null,null,null,null,null,null,null,null,null,null,null,null,null,null,null,null,null,null,null,null,null,null,null,null,null,null,null,0,0,0,null,185,212,185,185,185]
["Franklin's Gull","Leucophaeus pipixcan",null,null,null,null,null,null,null,null,null,null,null,null,null,null,null,null,null,null,null,null,null,null,null,null,null,null,null,null,null,null,null,null,null,null,null,null,null,null,null,null,null,0,0,0,null,186,213,186,186,186]
["Black-tailed Gull","Larus crassirostris",null,null,null,null,null,null,null,null,null,null,null,null,null,null,null,null,null,null,null,null,null,null,null,null,null,null,null,null,null,null,null,null,null,null,null,null,null,null,null,null,null,0,0,0,null,187,218,187,187,187]
["Heermann's Gull","Larus heermanni",null,null,null,null,null,null,null,null,null,null,null,null,null,null,null,null,null,null,null,null,null,null,null,null,null,null,null,null,null,null,null,null,null,null,null,null,null,null,null,null,null,0,0,0,null,188,217,188,188,188]
["Mew Gull","Larus canus",null,null,null,null,null,null,null,null,null,null,null,null,null,null,null,null,null,null,null,null,null,null,null,null,null,null,null,null,null,null,null,null,null,null,null,null,null,null,null,null,null,0,0,0,null,189,219,189,189,189]
["Ring-billed Gull","Larus delawarensis",null,null,null,null,null,null,null,null,null,null,null,null,null,null,null,null,null,null,null,null,null,null,null,null,null,null,null,null,null,null,null,null,null,null,null,null,null,null,null,null,null,0,0,0,null,190,220,190,190,190]
["Western Gull","Larus occidentalis",null,null,null,null,null,null,null,null,null,null,null,null,null,null,null,null,null,null,null,null,null,null,null,null,null,null,null,null,null,null,null,null,null,null,null,null,null,null,null,null,null,0,0,0,null,191,226,191,191,191]
["California Gull","Larus californicus",null,null,null,null,null,null,null,null,null,null,null,null,null,null,null,null,null,null,null,null,null,null,null,null,null,null,null,null,null,null,null,null,null,null,null,null,null,null,null,null,null,0,0,0,null,192,221,192,192,192]
["Herring Gull","Larus argentatus",null,null,null,null,null,null,null,null,null,null,null,null,null,null,null,null,null,null,null,null,null,null,null,null,null,null,null,null,null,null,null,null,null,null,null,null,null,null,null,null,null,{"$f":"SUM(C196:U196)","v":0},{"$f":"SUM(W196:AP196)","v":0},{"$f":"SUM(C196:AP196)","v":0},null,193,222,193,193,193]
["Iceland Gull","Larus glaucoides",null,null,null,null,null,null,null,null,null,null,null,null,null,null,null,null,null,null,null,null,null,null,null,null,null,null,null,null,null,null,null,null,null,null,null,null,null,null,null,null,null,0,0,0,null,194,223,194,194,194]
["Lesser Black-backed Gull","Larus fuscus",null,null,null,null,null,null,null,null,null,null,null,null,null,null,null,null,null,null,null,null,null,null,null,null,null,null,null,null,null,null,null,null,null,null,null,null,null,null,null,null,null,0,0,0,null,195,224,195,195,195]
["Slaty-backed Gull","Larus schistisagus",null,null,null,null,null,null,null,null,null,null,null,null,null,null,null,null,null,null,null,null,null,null,null,null,null,null,null,null,null,null,null,null,null,null,null,null,null,null,null,null,null,0,0,0,null,196,225,196,196,196]
["Glaucous-winged Gull","Larus glaucescens",null,null,null,null,null,null,null,null,null,null,null,null,null,null,null,null,null,null,null,null,null,null,null,null,null,null,null,null,null,null,null,null,null,null,null,null,null,null,null,null,null,0,0,0,null,197,227,197,197,197]
["Glaucous Gull","Larus hyperboreus",null,null,null,null,null,null,null,null,null,null,null,null,null,null,null,null,null,null,null,null,null,null,null,null,null,null,null,null,null,null,null,null,null,null,null,null,null,null,null,null,null,0,0,0,null,198,228,198,198,198]
["Great Black-backed Gull","Larus marinus",null,null,null,null,null,null,null,null,null,null,null,null,null,null,null,null,null,null,null,null,null,null,null,null,null,null,null,null,null,null,null,null,null,null,null,null,null,null,null,null,null,0,0,0,null,199,229,199,199,199]
["Least Tern","Sternula antillarum",null,null,null,null,null,null,null,null,null,null,null,null,null,null,null,null,null,null,null,null,null,null,null,null,null,null,null,null,null,null,null,null,null,null,null,null,null,null,null,null,null,0,0,0,null,200,240,200,200,200]
["Caspian Tern","Hydroprogne caspia",null,null,null,null,null,null,null,null,null,null,null,null,null,null,null,null,null,null,null,null,null,null,null,null,null,null,null,null,null,null,null,null,null,null,null,null,null,null,null,null,null,0,0,0,null,201,235,201,201,201]
["Black Tern","Chlidonias niger",null,null,null,null,null,null,null,null,null,null,null,null,null,null,null,null,null,null,null,null,null,null,null,null,null,null,null,null,null,null,null,null,null,null,null,null,null,null,null,null,null,0,0,0,null,202,241,202,202,202]
["Common Tern","Sterna hirundo",null,null,null,null,null,null,null,null,null,null,null,null,null,null,null,null,null,null,null,null,null,null,null,null,null,null,null,null,null,null,null,null,null,null,null,null,null,null,null,null,null,0,0,0,null,203,237,203,203,203]
["Arctic Tern","Sterna paradisaea",null,null,null,null,null,null,null,null,null,null,null,null,null,null,null,null,null,null,null,null,null,null,null,null,null,null,null,null,null,null,null,null,null,null,null,null,null,null,null,null,null,0,0,0,null,204,238,204,204,204]
["Forster's Tern","Sterna forsteri",null,null,null,null,null,null,null,null,null,null,null,null,null,null,null,null,null,null,null,null,null,null,null,null,null,null,null,null,null,null,null,null,null,null,null,null,null,null,null,null,null,0,0,0,null,205,239,205,205,205]
["Elegant Tern","Thalasseus elegans",null,null,null,null,null,null,null,null,null,null,null,null,null,null,null,null,null,null,null,null,null,null,null,null,null,null,null,null,null,null,null,null,null,null,null,null,null,null,null,null,null,0,0,0,null,206,236,206,206,206]
["Red-billed Tropicbird","Phaethon aethereus",null,null,null,null,null,null,null,null,null,null,null,null,null,null,null,null,null,null,null,null,null,null,null,null,null,null,null,null,null,null,null,null,null,null,null,null,null,null,null,null,null,0,0,0,null,207,34,207,207,207]
["Red-throated Loon","Gavia stellata",null,null,null,null,null,null,null,null,null,null,null,null,null,null,null,null,null,null,null,null,null,null,null,null,null,null,null,null,null,null,null,null,null,null,null,null,null,null,null,null,null,0,0,0,null,208,1,208,208,208]
["Arctic Loon","Gavia arctica",null,null,null,null,null,null,null,null,null,null,null,null,null,null,null,null,null,null,null,null,null,null,null,null,null,null,null,null,null,null,null,null,null,null,null,null,null,null,null,null,null,0,0,0,null,209,2,209,209,209]
["Pacific Loon","Gavia pacifica",null,null,null,null,null,null,null,null,null,null,null,null,null,null,null,null,null,null,null,null,null,null,null,null,null,null,null,null,null,null,null,null,null,null,null,null,null,null,null,null,null,0,0,0,null,210,3,210,210,210]
["Common Loon","Gavia immer",null,null,null,null,null,null,null,null,null,null,null,null,null,null,null,null,null,null,null,null,null,null,null,null,null,null,null,null,null,null,null,null,null,null,null,null,null,null,null,null,null,0,0,0,null,211,4,211,211,211]
["Yellow-billed Loon","Gavia adamsii",null,null,null,null,null,null,null,null,null,null,null,null,null,null,null,null,null,null,null,null,null,null,null,null,null,null,null,null,null,null,null,null,null,null,null,null,null,null,null,null,null,0,0,0,null,212,5,212,212,212]
["White-capped Albatross","Thalassarche cauta",null,null,null,null,null,null,null,null,null,null,null,null,null,null,null,null,null,null,null,null,null,null,null,null,null,null,null,null,null,null,null,null,null,null,null,null,null,null,null,null,null,0,0,0,null,213,12,213,213,213]
["Laysan Albatross","Phoebastria immutabilis",null,null,null,null,null,null,null,null,null,null,null,null,null,null,null,null,null,null,null,null,null,null,null,null,null,null,null,null,null,null,null,null,null,null,null,null,null,null,null,null,null,0,0,0,null,214,13,214,214,214]
["Black-footed Albatross","Phoebastria nigripes",null,null,null,null,null,null,null,null,null,null,null,null,null,null,null,null,null,null,null,null,null,null,null,null,null,null,null,null,null,null,null,null,null,null,null,null,null,null,null,null,null,0,0,0,null,215,14,215,215,215]
["Short-tailed Albatross","Phoebastria albatrus",null,null,null,null,null,null,null,null,null,null,null,null,null,null,null,null,null,null,null,null,null,null,null,null,null,null,null,null,null,null,null,null,null,null,null,null,null,null,null,null,null,0,0,0,null,216,15,216,216,216]
["Wilson's Storm-Petrel","Oceanites oceanicus",null,null,null,null,null,null,null,null,null,null,null,null,null,null,null,null,null,null,null,null,null,null,null,null,null,null,null,null,null,null,null,null,null,null,null,null,null,null,null,null,null,0,0,0,null,217,30,231,217,217]
["Fork-tailed Storm-Petrel","Hydrobates furcatus",null,null,null,null,null,null,null,null,null,null,null,null,null,null,null,null,null,null,null,null,null,null,null,null,null,null,null,null,null,null,null,null,null,null,null,null,null,null,null,null,null,0,0,0,null,218,31,232,218,218]
["Leach's Storm-Petrel","Hydrobates leucorhous",null,null,null,null,null,null,null,null,null,null,null,null,null,null,null,null,null,null,null,null,null,null,null,null,null,null,null,null,null,null,null,null,null,null,null,null,null,null,null,null,null,0,0,0,null,219,32,233,219,219]
["Ashy Storm-Petrel","Hydrobates homochroa",null,null,null,null,null,null,null,null,null,null,null,null,null,null,null,null,null,null,null,null,null,null,null,null,null,null,null,null,null,null,null,null,null,null,null,null,null,null,null,null,null,0,0,0,null,220,33,234,220,220]
["Northern Fulmar","Fulmarus glacialis",null,null,null,null,null,null,null,null,null,null,null,null,null,null,null,null,null,null,null,null,null,null,null,null,null,null,null,null,null,null,null,null,null,null,null,null,null,null,null,null,null,0,0,0,null,221,16,217,221,221]
["Providence Petrel","Pterodroma solandri",null,null,null,null,null,null,null,null,null,null,null,null,null,null,null,null,null,null,null,null,null,null,null,null,null,null,null,null,null,null,null,null,null,null,null,null,null,null,null,null,null,0,0,0,null,222,18,218,222,222]
["Murphy's Petrel","Pterodroma ultima",null,null,null,null,null,null,null,null,null,null,null,null,null,null,null,null,null,null,null,null,null,null,null,null,null,null,null,null,null,null,null,null,null,null,null,null,null,null,null,null,null,0,0,0,null,223,17,219,223,223]
["Mottled Petrel","Pterodroma inexpectata",null,null,null,null,null,null,null,null,null,null,null,null,null,null,null,null,null,null,null,null,null,null,null,null,null,null,null,null,null,null,null,null,null,null,null,null,null,null,null,null,null,0,0,0,null,224,19,220,224,224]
["Hawaiian Petrel","Pterodroma sandwichensis",null,null,null,null,null,null,null,null,null,null,null,null,null,null,null,null,null,null,null,null,null,null,null,null,null,null,null,null,null,null,null,null,null,null,null,null,null,null,null,null,null,0,0,0,null,225,20,221,225,225]
["Cook's Petrel","Pterodroma cookii",null,null,null,null,null,null,null,null,null,null,null,null,null,null,null,null,null,null,null,null,null,null,null,null,null,null,null,null,null,null,null,null,null,null,null,null,null,null,null,null,null,0,0,0,null,226,21,222,226,226]
["Wedge-tailed Shearwater","Ardenna pacifica",null,null,null,null,null,null,null,null,null,null,null,null,null,null,null,null,null,null,null,null,null,null,null,null,null,null,null,null,null,null,null,null,null,null,null,null,null,null,null,null,null,0,0,0,null,230,25,223,227,227]
["Buller's Shearwater","Ardenna bulleri",null,null,null,null,null,null,null,null,null,null,null,null,null,null,null,null,null,null,null,null,null,null,null,null,null,null,null,null,null,null,null,null,null,null,null,null,null,null,null,null,null,0,0,0,null,231,26,224,228,228]
["Short-tailed Shearwater","Ardenna tenuirostris",null,null,null,null,null,null,null,null,null,null,null,null,null,null,null,null,null,null,null,null,null,null,null,null,null,null,null,null,null,null,null,null,null,null,null,null,null,null,null,null,null,0,0,0,null,233,28,225,229,229]
["Sooty Shearwater","Ardenna grisea",null,null,null,null,null,null,null,null,null,null,null,null,null,null,null,null,null,null,null,null,null,null,null,null,null,null,null,null,null,null,null,null,null,null,null,null,null,null,null,null,null,0,0,0,null,232,27,226,230,230]
["Great Shearwater","Ardenna gravis",null,null,null,null,null,null,null,null,null,null,null,null,null,null,null,null,null,null,null,null,null,null,null,null,null,null,null,null,null,null,null,null,null,null,null,null,null,null,null,null,null,0,0,0,null,229,24,227,231,231]
["Pink-footed Shearwater","Ardenna creatopus",null,null,null,null,null,null,null,null,null,null,null,null,null,null,null,null,null,null,null,null,null,null,null,null,null,null,null,null,null,null,null,null,null,null,null,null,null,null,null,null,null,0,0,0,null,227,22,228,232,232]
["Flesh-footed Shearwater","Ardenna carneipes",null,null,null,null,null,null,null,null,null,null,null,null,null,null,null,null,null,null,null,null,null,null,null,null,null,null,null,null,null,null,null,null,null,null,null,null,null,null,null,null,null,0,0,0,null,228,23,229,233,233]
["Manx Shearwater","Puffinus puffinus",null,null,null,null,null,null,null,null,null,null,null,null,null,null,null,null,null,null,null,null,null,null,null,null,null,null,null,null,null,null,null,null,null,null,null,null,null,null,null,null,null,0,0,0,null,234,29,230,234,234]
["Magnificent Frigatebird","Fregata magnificens",null,null,null,null,null,null,null,null,null,null,null,null,null,null,null,null,null,null,null,null,null,null,null,null,null,null,null,null,null,null,null,null,null,null,null,null,null,null,null,null,null,0,0,0,null,235,43,235,235,235]
["Blue-footed Booby","Sula nebouxii",null,null,null,null,null,null,null,null,null,null,null,null,null,null,null,null,null,null,null,null,null,null,null,null,null,null,null,null,null,null,null,null,null,null,null,null,null,null,null,null,null,0,0,0,null,236,35,236,236,236]
["Brown Booby","Sula leucogaster",null,null,null,null,null,null,null,null,null,null,null,null,null,null,null,null,null,null,null,null,null,null,null,null,null,null,null,null,null,null,null,null,null,null,null,null,null,null,null,null,null,0,0,0,null,237,36,237,237,237]
["Red-footed Booby","Sula sula",null,null,null,null,null,null,null,null,null,null,null,null,null,null,null,null,null,null,null,null,null,null,null,null,null,null,null,null,null,null,null,null,null,null,null,null,null,null,null,null,null,0,0,0,null,238,37,238,238,238]
["Brandt's Cormorant","Phalacrocorax penicillatus",null,null,null,null,null,null,null,null,null,null,null,null,null,null,null,null,null,null,null,null,null,null,null,null,null,null,null,null,null,null,null,null,null,null,null,null,null,null,null,null,null,0,0,0,null,239,40,239,239,239]
["Double-crested Cormorant","Phalacrocorax auritus",null,null,null,null,null,null,null,null,null,null,null,null,null,null,null,null,null,null,null,null,null,null,null,null,null,null,null,null,null,null,null,null,null,null,null,null,null,null,null,null,null,0,0,0,null,241,41,240,240,240]
["Pelagic Cormorant","Phalacrocorax pelagicus",null,null,null,null,null,null,null,null,null,null,null,null,null,null,null,null,null,null,null,null,null,null,null,null,null,null,null,null,null,null,null,null,null,null,null,null,null,null,null,null,null,0,0,0,null,240,42,241,241,241]
["American White Pelican","Pelecanus erythrorhynchos",null,null,null,null,null,null,null,null,null,null,null,null,null,null,null,null,null,null,null,null,null,null,null,null,null,null,null,null,null,null,null,null,null,null,null,null,null,null,null,null,null,0,0,0,null,242,38,242,242,242]
["Brown Pelican","Pelecanus occidentalis",null,null,null,null,null,null,null,null,null,null,null,null,null,null,null,null,null,null,null,null,null,null,null,null,null,null,null,null,null,null,null,null,null,null,null,null,null,null,null,null,null,0,0,0,null,243,39,243,243,243]
["American Bittern","Botaurus lentiginosus",null,null,null,null,null,null,null,null,null,null,null,null,null,null,null,null,null,null,null,null,null,null,null,null,null,null,null,null,null,null,null,null,null,null,null,null,null,null,null,null,null,0,0,0,null,244,44,244,244,244]
["Great Blue Heron","Ardea herodias",null,null,null,null,null,null,null,null,null,null,null,null,null,null,null,null,null,null,null,null,null,null,null,null,null,null,null,null,null,null,null,null,null,null,null,null,null,null,null,null,null,0,0,0,null,245,45,245,245,245]
["Great Egret","Ardea alba",null,null,null,null,null,null,null,null,null,null,null,null,null,null,null,null,null,null,null,null,null,null,null,null,null,null,null,null,null,null,null,null,null,null,null,null,null,null,null,null,null,0,0,0,null,246,46,246,246,246]
["Snowy Egret","Egretta thula",null,null,null,null,null,null,null,null,null,null,null,null,null,null,null,null,null,null,null,null,null,null,null,null,null,null,null,null,null,null,null,null,null,null,null,null,null,null,null,null,null,0,0,0,null,247,47,247,247,247]
["Little Blue Heron","Egretta caerulea",null,null,null,null,null,null,null,null,null,null,null,null,null,null,null,null,null,null,null,null,null,null,null,null,null,null,null,null,null,null,null,null,null,null,null,null,null,null,null,null,null,0,0,0,null,248,48,248,248,248]
["Cattle Egret","Bubulcus ibis",null,null,null,null,null,null,null,null,null,null,null,null,null,null,null,null,null,null,null,null,null,null,null,null,null,null,null,null,null,null,null,null,null,null,null,null,null,null,null,null,null,0,0,0,null,249,49,249,249,249]
["Green Heron","Butorides virescens",null,null,null,null,null,null,null,null,null,null,null,null,null,null,null,null,null,null,null,null,null,null,null,null,null,null,null,null,null,null,null,null,null,null,null,null,null,null,null,null,null,0,0,0,null,250,50,250,250,250]
["Black-crowned Night-Heron","Nycticorax nycticorax",null,null,null,null,null,null,null,null,null,null,null,null,null,null,null,null,null,null,null,null,null,null,null,null,null,null,null,null,null,null,null,null,null,null,null,null,null,null,null,null,null,0,0,0,null,251,51,251,251,251]
["Yellow-crowned Night-Heron","Nyctanassa violacea",null,null,null,null,null,null,null,null,null,null,null,null,null,null,null,null,null,null,null,null,null,null,null,null,null,null,null,null,null,null,null,null,null,null,null,null,null,null,null,null,null,0,0,0,null,252,52,252,252,252]
["White Ibis","Eudocimus albus",null,null,null,null,null,null,null,null,null,null,null,null,null,null,null,null,null,null,null,null,null,null,null,null,null,null,null,null,null,null,null,null,null,null,null,null,null,null,null,null,null,0,0,0,null,253,53,253,253,253]
["Glossy Ibis","Plegadis falcinellus",null,null,null,null,null,null,null,null,null,null,null,null,null,null,null,null,null,null,null,null,null,null,null,null,null,null,null,null,null,null,null,null,null,null,null,null,null,null,null,null,null,0,0,0,null,254,54,254,254,254]
["White-faced Ibis","Plegadis chihi",null,null,null,null,null,null,null,null,null,null,null,null,null,null,null,null,null,null,null,null,null,null,null,null,null,null,null,null,null,null,null,null,null,null,null,null,null,null,null,null,null,0,0,0,null,255,55,255,255,255]
["Turkey Vulture","Cathartes aura",null,null,null,null,null,null,null,null,null,null,null,null,null,null,null,null,null,null,null,null,null,null,null,null,null,null,null,null,null,null,null,null,null,null,null,null,null,null,null,null,null,0,0,0,null,256,56,256,256,256]
["Osprey","Pandion haliaetus",null,null,null,null,null,null,null,null,null,null,null,null,null,null,null,null,null,null,null,null,null,null,null,null,null,null,null,null,null,null,null,null,null,null,null,null,null,null,null,null,null,{"$f":"SUM(C260:U260)","v":0},{"$f":"SUM(W260:AP260)","v":0},{"$f":"SUM(C260:AP260)","v":0},null,257,106,257,257,257]
["White-tailed Kite","Elanus leucurus",null,null,null,null,null,null,null,null,null,null,null,null,null,null,null,null,null,null,null,null,null,null,null,null,null,null,null,null,null,null,null,null,null,null,null,null,null,null,null,null,null,0,0,0,null,258,107,258,258,258]
["Golden Eagle","Aquila chrysaetos",null,null,null,null,null,null,null,null,null,null,null,null,null,null,null,null,null,null,null,null,null,null,null,null,null,null,null,null,null,null,null,null,null,null,null,null,null,null,null,null,null,0,0,0,null,259,120,271,259,259]
["Northern Harrier","Circus hudsonius",null,null,null,null,null,null,null,null,null,null,null,null,null,null,null,null,null,null,null,null,null,null,null,null,null,null,null,null,null,null,null,null,null,null,null,null,null,null,null,null,null,0,0,0,null,260,109,260,260,260]
["Sharp-shinned Hawk","Accipiter striatus",null,null,null,null,null,null,null,null,null,null,null,null,null,null,null,null,null,null,null,null,null,null,null,null,null,null,null,null,null,null,null,null,null,null,null,null,null,null,null,null,null,0,0,0,null,261,110,261,261,261]
["Cooper's Hawk","Accipiter cooperii",null,null,null,null,null,null,null,null,null,null,null,null,null,null,null,null,null,null,null,null,null,null,null,null,null,null,null,null,null,null,null,null,null,null,null,null,null,null,null,null,null,0,0,0,null,262,111,262,262,262]
["Northern Goshawk","Accipiter gentilis",null,null,null,null,null,null,null,null,null,null,null,null,null,null,null,null,null,null,null,null,null,null,null,null,null,null,null,null,null,null,null,null,null,null,null,null,null,null,null,null,null,0,0,0,null,263,112,263,263,263]
["Bald Eagle","Haliaeetus leucocephalus",null,null,null,null,null,null,null,null,null,null,null,null,null,null,null,null,null,null,null,null,null,null,null,null,null,null,null,null,null,null,null,null,null,null,null,null,null,null,null,null,null,0,0,0,null,264,108,259,264,264]
["Red-shouldered Hawk","Buteo lineatus",null,null,null,null,null,null,null,null,null,null,null,null,null,null,null,null,null,null,null,null,null,null,null,null,null,null,null,null,null,null,null,null,null,null,null,null,null,null,null,null,null,0,0,0,null,265,113,264,265,265]
["Broad-winged Hawk","Buteo platypterus",null,null,null,null,null,null,null,null,null,null,null,null,null,null,null,null,null,null,null,null,null,null,null,null,null,null,null,null,null,null,null,null,null,null,null,null,null,null,null,null,null,0,0,0,null,266,114,265,266,266]
["Swainson's Hawk","Buteo swainsoni",null,null,null,null,null,null,null,null,null,null,null,null,null,null,null,null,null,null,null,null,null,null,null,null,null,null,null,null,null,null,null,null,null,null,null,null,null,null,null,null,null,0,0,0,null,267,115,266,267,267]
["Zone-tailed Hawk","Buteo albonotatus",null,null,null,null,null,null,null,null,null,null,null,null,null,null,null,null,null,null,null,null,null,null,null,null,null,null,null,null,null,null,null,null,null,null,null,null,null,null,null,null,null,0,0,0,null,268,116,267,268,268]
["Red-tailed Hawk","Buteo jamaicensis",null,null,null,null,null,null,null,null,null,null,null,null,null,null,null,null,null,null,null,null,null,null,null,null,null,null,null,null,null,null,null,null,null,null,null,null,null,null,null,null,null,0,0,0,null,269,117,268,269,269]
["Rough-legged Hawk","Buteo lagopus",null,null,null,null,null,null,null,null,null,null,null,null,null,null,null,null,null,null,null,null,null,null,null,null,null,null,null,null,null,null,null,null,null,null,null,null,null,null,null,null,null,0,0,0,null,270,119,269,270,270]
["Ferruginous Hawk","Buteo regalis",null,null,null,null,null,null,null,null,null,null,null,null,null,null,null,null,null,null,null,null,null,null,null,null,null,null,null,null,null,null,null,null,null,null,null,null,null,null,null,null,null,0,0,0,null,271,118,270,271,271]
["Barn Owl","Tyto alba",null,null,null,null,null,null,null,null,null,null,null,null,null,null,null,null,null,null,null,null,null,null,null,null,null,null,null,null,null,null,null,null,null,null,null,null,null,null,null,null,null,0,0,0,null,272,266,272,272,272]
["Flammulated Owl","Psiloscops flammeolus",null,null,null,null,null,null,null,null,null,null,null,null,null,null,null,null,null,null,null,null,null,null,null,null,null,null,null,null,null,null,null,null,null,null,null,null,null,null,null,null,null,0,0,0,null,273,267,273,273,273]
["Western Screech-Owl","Megascops kennicottii",null,null,null,null,null,null,null,null,null,null,null,null,null,null,null,null,null,null,null,null,null,null,null,null,null,null,null,null,null,null,null,null,null,null,null,null,null,null,null,null,null,0,0,0,null,274,268,274,274,274]
["Great Horned Owl","Bubo virginianus",null,null,null,null,null,null,null,null,null,null,null,null,null,null,null,null,null,null,null,null,null,null,null,null,null,null,null,null,null,null,null,null,null,null,null,null,null,null,null,null,null,0,0,0,null,275,269,275,275,275]
["Snowy Owl","Bubo scandiacus",null,null,null,null,null,null,null,null,null,null,null,null,null,null,null,null,null,null,null,null,null,null,null,null,null,null,null,null,null,null,null,null,null,null,null,null,null,null,null,null,null,0,0,0,null,276,270,276,276,276]
["Northern Hawk Owl","Surnia ulula",null,null,null,null,null,null,null,null,null,null,null,null,null,null,null,null,null,null,null,null,null,null,null,null,null,null,null,null,null,null,null,null,null,null,null,null,null,null,null,null,null,0,0,0,null,277,271,277,277,277]
["Northern Pygmy-Owl","Glaucidium gnoma",null,null,null,null,null,null,null,null,null,null,null,null,null,null,null,null,null,null,null,null,null,null,null,null,null,null,null,null,null,null,null,null,null,null,null,null,null,null,null,null,null,0,0,0,null,278,272,278,278,278]
["Burrowing Owl","Athene cunicularia",null,null,null,null,null,null,null,null,null,null,null,null,null,null,null,null,null,null,null,null,null,null,null,null,null,null,null,null,null,null,null,null,null,null,null,null,null,null,null,null,null,0,0,0,null,279,273,279,279,279]
["Spotted Owl","Strix occidentalis",null,null,null,null,null,null,null,null,null,null,null,null,null,null,null,null,null,null,null,null,null,null,null,null,null,null,null,null,null,null,null,null,null,null,null,null,null,null,null,null,null,0,0,0,null,280,274,280,280,280]
["Barred Owl","Strix varia",null,null,null,null,null,null,null,null,null,null,null,null,null,null,null,null,null,null,null,null,null,null,null,null,null,null,null,null,null,null,null,null,null,null,null,null,null,null,null,null,null,0,0,0,null,281,275,281,281,281]
["Great Gray Owl","Strix nebulosa",null,null,null,null,null,null,null,null,null,null,null,null,null,null,null,null,null,null,null,null,null,null,null,null,null,null,null,null,null,null,null,null,null,null,null,null,null,null,null,null,null,0,0,0,null,282,276,282,282,282]
["Long-eared Owl","Asio otus",null,null,null,null,null,null,null,null,null,null,null,null,null,null,null,null,null,null,null,null,null,null,null,null,null,null,null,null,null,null,null,null,null,null,null,null,null,null,null,null,null,0,0,0,null,283,277,283,283,283]
["Short-eared Owl","Asio flammeus",null,null,null,null,null,null,null,null,null,null,null,null,null,null,null,null,null,null,null,null,null,null,null,null,null,null,null,null,null,null,null,null,null,null,null,null,null,null,null,null,null,0,0,0,null,284,278,284,284,284]
["Boreal Owl","Aegolius funereus",null,null,null,null,null,null,null,null,null,null,null,null,null,null,null,null,null,null,null,null,null,null,null,null,null,null,null,null,null,null,null,null,null,null,null,null,null,null,null,null,null,0,0,0,null,285,279,285,285,285]
["Northern Saw-whet Owl","Aegolius acadicus",null,null,null,null,null,null,null,null,null,null,null,null,null,null,null,null,null,null,null,null,null,null,null,null,null,null,null,null,null,null,null,null,null,null,null,null,null,null,null,null,null,0,0,0,null,286,280,286,286,286]
["Belted Kingfisher","Megaceryle alcyon",null,null,null,null,null,null,null,null,null,null,null,null,null,null,null,null,null,null,null,null,null,null,null,null,null,null,null,null,null,null,null,null,null,null,null,null,null,null,null,null,null,0,0,0,null,287,295,287,287,287]
["Lewis's Woodpecker","Melanerpes lewis",null,null,null,null,null,null,null,null,null,null,null,null,null,null,null,null,null,null,null,null,null,null,null,null,null,null,null,null,null,null,null,null,null,null,null,null,null,null,null,null,null,0,0,0,null,292,296,288,288,288]
["Acorn Woodpecker","Melanerpes formicivorus",null,null,null,null,null,null,null,null,null,null,null,null,null,null,null,null,null,null,null,null,null,null,null,null,null,null,null,null,null,null,null,null,null,null,null,null,null,null,null,null,null,0,0,0,null,293,297,289,289,289]
["Williamson's Sapsucker","Sphyrapicus thyroideus",null,null,null,null,null,null,null,null,null,null,null,null,null,null,null,null,null,null,null,null,null,null,null,null,null,null,null,null,null,null,null,null,null,null,null,null,null,null,null,null,null,0,0,0,null,288,298,290,290,290]
["Yellow-bellied Sapsucker","Sphyrapicus varius",null,null,null,null,null,null,null,null,null,null,null,null,null,null,null,null,null,null,null,null,null,null,null,null,null,null,null,null,null,null,null,null,null,null,null,null,null,null,null,null,null,0,0,0,null,289,299,291,291,291]
["Red-naped Sapsucker","Sphyrapicus nuchalis",null,null,null,null,null,null,null,null,null,null,null,null,null,null,null,null,null,null,null,null,null,null,null,null,null,null,null,null,null,null,null,null,null,null,null,null,null,null,null,null,null,0,0,0,null,290,300,292,292,292]
["Red-breasted Sapsucker","Sphyrapicus ruber",null,null,null,null,null,null,null,null,null,null,null,null,null,null,null,null,null,null,null,null,null,null,null,null,null,null,null,null,null,null,null,null,null,null,null,null,null,null,null,null,null,0,0,0,null,291,301,293,293,293]
["Am. Three-toed Woodpecker","Picoides dorsalis",null,null,null,null,null,null,null,null,null,null,null,null,null,null,null,null,null,null,null,null,null,null,null,null,null,null,null,null,null,null,null,null,null,null,null,null,null,null,null,null,null,0,0,0,null,294,305,297,294,294]
["Black-backed Woodpecker","Picoides arcticus",null,null,null,null,null,null,null,null,null,null,null,null,null,null,null,null,null,null,null,null,null,null,null,null,null,null,null,null,null,null,null,null,null,null,null,null,null,null,null,null,null,0,0,0,null,295,306,298,295,295]
["Downy Woodpecker","Dryobates pubescens",null,null,null,null,null,null,null,null,null,null,null,null,null,null,null,null,null,null,null,null,null,null,null,null,null,null,null,null,null,null,null,null,null,null,null,null,null,null,null,null,null,0,0,0,null,296,302,294,296,296]
["Hairy Woodpecker","Dryobates villosus",null,null,null,null,null,null,null,null,null,null,null,null,null,null,null,null,null,null,null,null,null,null,null,null,null,null,null,null,null,null,null,null,null,null,null,null,null,null,null,null,null,0,0,0,null,297,303,295,297,297]
["White-headed Woodpecker","Dryobates albolarvatus",null,null,null,null,null,null,null,null,null,null,null,null,null,null,null,null,null,null,null,null,null,null,null,null,null,null,null,null,null,null,null,null,null,null,null,null,null,null,null,null,null,0,0,0,null,298,304,296,298,298]
["Northern Flicker","Colaptes auratus",null,null,null,null,null,null,null,null,null,null,null,null,null,null,null,null,null,null,null,null,null,null,null,null,null,null,null,null,null,null,null,null,null,null,null,null,null,null,null,null,null,0,0,0,null,300,307,299,299,299]
["Pileated Woodpecker","Dryocopus pileatus",null,null,null,null,null,null,null,null,null,null,null,null,null,null,null,null,null,null,null,null,null,null,null,null,null,null,null,null,null,null,null,null,null,null,null,null,null,null,null,null,null,0,0,0,null,299,308,300,300,300]
["Crested Caracara","Caracara cheriway",null,null,null,null,null,null,null,null,null,null,null,null,null,null,null,null,null,null,null,null,null,null,null,null,null,null,null,null,null,null,null,null,null,null,null,null,null,null,null,null,null,0,0,0,null,301,121,301,301,301]
["Eurasian Kestrel","Falco tinnunculus",null,null,null,null,null,null,null,null,null,null,null,null,null,null,null,null,null,null,null,null,null,null,null,null,null,null,null,null,null,null,null,null,null,null,null,null,null,null,null,null,null,0,0,0,null,302,122,302,302,302]
["American Kestrel","Falco sparverius",null,null,null,null,null,null,null,null,null,null,null,null,null,null,null,null,null,null,null,null,null,null,null,null,null,null,null,null,null,null,null,null,null,null,null,null,null,null,null,null,null,0,0,0,null,303,123,303,303,303]
["Merlin","Falco columbarius",null,null,null,null,null,null,null,null,null,null,null,null,null,null,null,null,null,null,null,null,null,null,null,null,null,null,null,null,null,null,null,null,null,null,null,null,null,null,null,null,null,0,0,0,null,304,124,304,304,304]
["Eurasian Hobby","Falco subbuteo",null,null,null,null,null,null,null,null,null,null,null,null,null,null,null,null,null,null,null,null,null,null,null,null,null,null,null,null,null,null,null,null,null,null,null,null,null,null,null,null,null,0,0,0,null,305,125,305,305,305]
["Gyrfalcon","Falco rusticolus",null,null,null,null,null,null,null,null,null,null,null,null,null,null,null,null,null,null,null,null,null,null,null,null,null,null,null,null,null,null,null,null,null,null,null,null,null,null,null,null,null,0,0,0,null,306,126,306,306,306]
["Peregrine Falcon","Falco peregrinus",null,null,null,null,null,null,null,null,null,null,null,null,null,null,null,null,null,null,null,null,null,null,null,null,null,null,null,null,null,null,null,null,null,null,null,null,null,null,null,null,null,0,0,0,null,307,127,307,307,307]
["Prairie Falcon","Falco mexicanus",null,null,null,null,null,null,null,null,null,null,null,null,null,null,null,null,null,null,null,null,null,null,null,null,null,null,null,null,null,null,null,null,null,null,null,null,null,null,null,null,null,0,0,0,null,308,128,308,308,308]
["Dusky-capped Flycatcher","Myiarchus tuberculifer",null,null,null,null,null,null,null,null,null,null,null,null,null,null,null,null,null,null,null,null,null,null,null,null,null,null,null,null,null,null,null,null,null,null,null,null,null,null,null,null,null,0,0,0,null,326,326,326,309,309]
["Ash-throated Flycatcher","Myiarchus cinerascens",null,null,null,null,null,null,null,null,null,null,null,null,null,null,null,null,null,null,null,null,null,null,null,null,null,null,null,null,null,null,null,null,null,null,null,null,null,null,null,null,null,0,0,0,null,327,327,327,310,310]
["Variegated Flycatcher","Empidonomus varius",null,null,null,null,null,null,null,null,null,null,null,null,null,null,null,null,null,null,null,null,null,null,null,null,null,null,null,null,null,null,null,null,null,null,null,null,null,null,null,null,null,0,0,0,null,328,328,328,311,311]
["Tropical Kingbird","Tyrannus melancholicus",null,null,null,null,null,null,null,null,null,null,null,null,null,null,null,null,null,null,null,null,null,null,null,null,null,null,null,null,null,null,null,null,null,null,null,null,null,null,null,null,null,0,0,0,null,329,329,329,312,312]
["Western Kingbird","Tyrannus verticalis",null,null,null,null,null,null,null,null,null,null,null,null,null,null,null,null,null,null,null,null,null,null,null,null,null,null,null,null,null,null,null,null,null,null,null,null,null,null,null,null,null,0,0,0,null,330,330,330,313,313]
["Eastern Kingbird","Tyrannus tyrannus",null,null,null,null,null,null,null,null,null,null,null,null,null,null,null,null,null,null,null,null,null,null,null,null,null,null,null,null,null,null,null,null,null,null,null,null,null,null,null,null,null,0,0,0,null,331,331,331,314,314]
["Scissor-tailed Flycatcher","Tyrannus forficatus",null,null,null,null,null,null,null,null,null,null,null,null,null,null,null,null,null,null,null,null,null,null,null,null,null,null,null,null,null,null,null,null,null,null,null,null,null,null,null,null,null,0,0,0,null,332,332,332,315,315]
["Fork-tailed Flycatcher","Tyrannus savana",null,null,null,null,null,null,null,null,null,null,null,null,null,null,null,null,null,null,null,null,null,null,null,null,null,null,null,null,null,null,null,null,null,null,null,null,null,null,null,null,null,0,0,0,null,333,333,333,316,316]
["Olive-sided Flycatcher","Contopus cooperi",null,null,null,null,null,null,null,null,null,null,null,null,null,null,null,null,null,null,null,null,null,null,null,null,null,null,null,null,null,null,null,null,null,null,null,null,null,null,null,null,null,0,0,0,null,309,309,309,317,317]
["Greater Pewee","Contopus pertinax",null,null,null,null,null,null,null,null,null,null,null,null,null,null,null,null,null,null,null,null,null,null,null,null,null,null,null,null,null,null,null,null,null,null,null,null,null,null,null,null,null,0,0,0,null,310,310,310,318,318]
["Western Wood-Pewee","Contopus sordidulus",null,null,null,null,null,null,null,null,null,null,null,null,null,null,null,null,null,null,null,null,null,null,null,null,null,null,null,null,null,null,null,null,null,null,null,null,null,null,null,null,null,0,0,0,null,311,311,311,319,319]
["Eastern Wood-Pewee","Contopus virens",null,null,null,null,null,null,null,null,null,null,null,null,null,null,null,null,null,null,null,null,null,null,null,null,null,null,null,null,null,null,null,null,null,null,null,null,null,null,null,null,null,0,0,0,null,312,312,312,320,320]
["Yellow-bellied Flycatcher","Empidonax flaviventris",null,null,null,null,null,null,null,null,null,null,null,null,null,null,null,null,null,null,null,null,null,null,null,null,null,null,null,null,null,null,null,null,null,null,null,null,null,null,null,null,null,{"$f":"SUM(C324:U324)","v":0},{"$f":"SUM(W324:AP324)","v":0},{"$f":"SUM(C324:AP324)","v":0},null,313,313,313,321,321]
["Alder Flycatcher","Empidonax alnorum",null,null,null,null,null,null,null,null,null,null,null,null,null,null,null,null,null,null,null,null,null,null,null,null,null,null,null,null,null,null,null,null,null,null,null,null,null,null,null,null,null,0,0,0,null,314,314,314,322,322]
["Willow Flycatcher","Empidonax traillii",null,null,null,null,null,null,null,null,null,null,null,null,null,null,null,null,null,null,null,null,null,null,null,null,null,null,null,null,null,null,null,null,null,null,null,null,null,null,null,null,null,0,0,0,null,315,315,315,323,323]
["Least Flycatcher","Empidonax minimus",null,null,null,null,null,null,null,null,null,null,null,null,null,null,null,null,null,null,null,null,null,null,null,null,null,null,null,null,null,null,null,null,null,null,null,null,null,null,null,null,null,0,0,0,null,316,316,316,324,324]
["Hammond's Flycatcher","Empidonax hammondii",null,null,null,null,null,null,null,null,null,null,null,null,null,null,null,null,null,null,null,null,null,null,null,null,null,null,null,null,null,null,null,null,null,null,null,null,null,null,null,null,null,0,0,0,null,317,317,317,325,325]
["Gray Flycatcher","Empidonax wrightii",null,null,null,null,null,null,null,null,null,null,null,null,null,null,null,null,null,null,null,null,null,null,null,null,null,null,null,null,null,null,null,null,null,null,null,null,null,null,null,null,null,0,0,0,null,318,318,318,326,326]
["Dusky Flycatcher","Empidonax oberholseri",null,null,null,null,null,null,null,null,null,null,null,null,null,null,null,null,null,null,null,null,null,null,null,null,null,null,null,null,null,null,null,null,null,null,null,null,null,null,null,null,null,0,0,0,null,319,319,319,327,327]
["Pacific-slope Flycatcher","Empidonax difficilis",null,null,null,null,null,null,null,null,null,null,null,null,null,null,null,null,null,null,null,null,null,null,null,null,null,null,null,null,null,null,null,null,null,null,null,null,null,null,null,null,null,0,0,0,null,320,320,320,328,328]
["Cordilleran Flycatcher*","Empidonax occidentalis",null,null,null,null,null,null,null,null,null,null,null,null,null,null,null,null,null,null,null,null,null,null,null,null,null,null,null,null,null,null,null,null,null,null,null,null,null,null,null,null,null,0,0,0,null,321,321,321,329,329]
["Black Phoebe","Sayornis nigricans",null,null,null,null,null,null,null,null,null,null,null,null,null,null,null,null,null,null,null,null,null,null,null,null,null,null,null,null,null,null,null,null,null,null,null,null,null,null,null,null,null,0,0,0,null,322,322,322,330,330]
["Eastern Phoebe","Sayornis phoebe",null,null,null,null,null,null,null,null,null,null,null,null,null,null,null,null,null,null,null,null,null,null,null,null,null,null,null,null,null,null,null,null,null,null,null,null,null,null,null,null,null,0,0,0,null,323,323,323,331,331]
["Say's Phoebe","Sayornis saya",null,null,null,null,null,null,null,null,null,null,null,null,null,null,null,null,null,null,null,null,null,null,null,null,null,null,null,null,null,null,null,null,null,null,null,null,null,null,null,null,null,0,0,0,null,324,324,324,332,332]
["Vermilion Flycatcher","Pyrocephalus rubinus",null,null,null,null,null,null,null,null,null,null,null,null,null,null,null,null,null,null,null,null,null,null,null,null,null,null,null,null,null,null,null,null,null,null,null,null,null,null,null,null,null,0,0,0,null,325,325,325,333,333]
["Loggerhead Shrike","Lanius ludovicianus",null,null,null,null,null,null,null,null,null,null,null,null,null,null,null,null,null,null,null,null,null,null,null,null,null,null,null,null,null,null,null,null,null,null,null,null,null,null,null,null,null,0,0,0,null,343,334,334,334,334]
["Northern Shrike","Lanius borealis",null,null,null,null,null,null,null,null,null,null,null,null,null,null,null,null,null,null,null,null,null,null,null,null,null,null,null,null,null,null,null,null,null,null,null,null,null,null,null,null,null,0,0,0,null,344,335,335,335,335]
["White-eyed Vireo","Vireo griseus",null,null,null,null,null,null,null,null,null,null,null,null,null,null,null,null,null,null,null,null,null,null,null,null,null,null,null,null,null,null,null,null,null,null,null,null,null,null,null,null,null,0,0,0,null,334,336,336,336,336]
["Bell's Vireo","Vireo bellii",null,null,null,null,null,null,null,null,null,null,null,null,null,null,null,null,null,null,null,null,null,null,null,null,null,null,null,null,null,null,null,null,null,null,null,null,null,null,null,null,null,0,0,0,null,335,337,337,337,337]
["Hutton's Vireo","Vireo huttoni",null,null,null,null,null,null,null,null,null,null,null,null,null,null,null,null,null,null,null,null,null,null,null,null,null,null,null,null,null,null,null,null,null,null,null,null,null,null,null,null,null,0,0,0,null,336,341,338,338,338]
["Yellow-throated Vireo","Vireo flavifrons",null,null,null,null,null,null,null,null,null,null,null,null,null,null,null,null,null,null,null,null,null,null,null,null,null,null,null,null,null,null,null,null,null,null,null,null,null,null,null,null,null,0,0,0,null,337,338,339,339,339]
["Cassin's Vireo","Vireo cassinii",null,null,null,null,null,null,null,null,null,null,null,null,null,null,null,null,null,null,null,null,null,null,null,null,null,null,null,null,null,null,null,null,null,null,null,null,null,null,null,null,null,0,0,0,null,338,339,340,340,340]
["Blue-headed Vireo","Vireo solitarius",null,null,null,null,null,null,null,null,null,null,null,null,null,null,null,null,null,null,null,null,null,null,null,null,null,null,null,null,null,null,null,null,null,null,null,null,null,null,null,null,null,0,0,0,null,339,340,341,341,341]
["Philadelphia Vireo","Vireo philadelphicus",null,null,null,null,null,null,null,null,null,null,null,null,null,null,null,null,null,null,null,null,null,null,null,null,null,null,null,null,null,null,null,null,null,null,null,null,null,null,null,null,null,0,0,0,null,340,343,342,342,342]
["Warbling Vireo","Vireo gilvus",null,null,null,null,null,null,null,null,null,null,null,null,null,null,null,null,null,null,null,null,null,null,null,null,null,null,null,null,null,null,null,null,null,null,null,null,null,null,null,null,null,0,0,0,null,341,342,343,343,343]
["Red-eyed Vireo","Vireo olivaceus",null,null,null,null,null,null,null,null,null,null,null,null,null,null,null,null,null,null,null,null,null,null,null,null,null,null,null,null,null,null,null,null,null,null,null,null,null,null,null,null,null,0,0,0,null,342,344,344,344,344]
["Canada Jay","Perisoreus canadensis",null,null,null,null,null,null,null,null,null,null,null,null,null,null,null,null,null,null,null,null,null,null,null,null,null,null,null,null,null,null,null,null,null,null,null,null,null,null,null,null,null,0,0,0,null,345,345,345,345,345]
["Pinyon Jay","Gymnorhinus cyanocephalus",null,null,null,null,null,null,null,null,null,null,null,null,null,null,null,null,null,null,null,null,null,null,null,null,null,null,null,null,null,null,null,null,null,null,null,null,null,null,null,null,null,0,0,0,null,346,350,346,346,346]
["Steller's Jay","Cyanocitta stelleri",null,null,null,null,null,null,null,null,null,null,null,null,null,null,null,null,null,null,null,null,null,null,null,null,null,null,null,null,null,null,null,null,null,null,null,null,null,null,null,null,null,0,0,0,null,347,346,347,347,347]
["Blue Jay","Cyanocitta cristata",null,null,null,null,null,null,null,null,null,null,null,null,null,null,null,null,null,null,null,null,null,null,null,null,null,null,null,null,null,null,null,null,null,null,null,null,null,null,null,null,null,0,0,0,null,348,347,348,348,348]
["California Scrub-Jay","Aphelocoma californica",null,null,null,null,null,null,null,null,null,null,null,null,null,null,null,null,null,null,null,null,null,null,null,null,null,null,null,null,null,null,null,null,null,null,null,null,null,null,null,null,null,0,0,0,null,349,348,349,349,349]
["Woodhouse's Scrub-Jay","Aphelocoma woodhouseii",null,null,null,null,null,null,null,null,null,null,null,null,null,null,null,null,null,null,null,null,null,null,null,null,null,null,null,null,null,null,null,null,null,null,null,null,null,null,null,null,null,0,0,0,null,350,349,350,350,350]
["Clark's Nutcracker","Nucifraga columbiana",null,null,null,null,null,null,null,null,null,null,null,null,null,null,null,null,null,null,null,null,null,null,null,null,null,null,null,null,null,null,null,null,null,null,null,null,null,null,null,null,null,0,0,0,null,352,351,351,351,351]
["Black-billed Magpie","Pica hudsonia",null,null,null,null,null,null,null,null,null,null,null,null,null,null,null,null,null,null,null,null,null,null,null,null,null,null,null,null,null,null,null,null,null,null,null,null,null,null,null,null,null,0,0,0,null,351,352,352,352,352]
["American Crow","Corvus brachyrhynchos",null,null,null,null,null,null,null,null,null,null,null,null,null,null,null,null,null,null,null,null,null,null,null,null,null,null,null,null,null,null,null,null,null,null,null,null,null,null,null,null,null,0,0,0,null,353,353,353,353,353]
["Northwestern Crow","Corvus caurinus",null,null,null,null,null,null,null,null,null,null,null,null,null,null,null,null,null,null,null,null,null,null,null,null,null,null,null,null,null,null,null,null,null,null,null,null,null,null,null,null,null,0,0,0,null,354,354,354,354,354]
["Common Raven","Corvus corax",null,null,null,null,null,null,null,null,null,null,null,null,null,null,null,null,null,null,null,null,null,null,null,null,null,null,null,null,null,null,null,null,null,null,null,null,null,null,null,null,null,0,0,0,null,355,355,355,355,355]
["Eurasian Skylark","Alauda arvensis",null,null,null,null,null,null,null,null,null,null,null,null,null,null,null,null,null,null,null,null,null,null,null,null,null,null,null,null,null,null,null,null,null,null,null,null,null,null,null,null,null,0,0,0,null,361,356,356,356,356]
["Horned Lark","Eremophila alpestris",null,null,null,null,null,null,null,null,null,null,null,null,null,null,null,null,null,null,null,null,null,null,null,null,null,null,null,null,null,null,null,null,null,null,null,null,null,null,null,null,null,0,0,0,null,360,357,357,357,357]
["Bank Swallow","Riparia riparia",null,null,null,null,null,null,null,null,null,null,null,null,null,null,null,null,null,null,null,null,null,null,null,null,null,null,null,null,null,null,null,null,null,null,null,null,null,null,null,null,null,0,0,0,null,366,362,362,362,358]
["Tree Swallow","Tachycineta bicolor",null,null,null,null,null,null,null,null,null,null,null,null,null,null,null,null,null,null,null,null,null,null,null,null,null,null,null,null,null,null,null,null,null,null,null,null,null,null,null,null,null,0,0,0,null,364,359,359,359,359]
["Violet-green Swallow","Tachycineta thalassina",null,null,null,null,null,null,null,null,null,null,null,null,null,null,null,null,null,null,null,null,null,null,null,null,null,null,null,null,null,null,null,null,null,null,null,null,null,null,null,null,null,0,0,0,null,365,360,360,360,360]
["N. Rough-winged Swallow","Stelgidopteryx serripennis",null,null,null,null,null,null,null,null,null,null,null,null,null,null,null,null,null,null,null,null,null,null,null,null,null,null,null,null,null,null,null,null,null,null,null,null,null,null,null,null,null,0,0,0,null,362,361,361,361,361]
["Purple Martin","Progne subis",null,null,null,null,null,null,null,null,null,null,null,null,null,null,null,null,null,null,null,null,null,null,null,null,null,null,null,null,null,null,null,null,null,null,null,null,null,null,null,null,null,0,0,0,null,363,358,358,358,362]
["Barn Swallow","Hirundo rustica",null,null,null,null,null,null,null,null,null,null,null,null,null,null,null,null,null,null,null,null,null,null,null,null,null,null,null,null,null,null,null,null,null,null,null,null,null,null,null,null,null,0,0,0,null,367,364,364,364,363]
["Cliff Swallow","Petrochelidon pyrrhonota",null,null,null,null,null,null,null,null,null,null,null,null,null,null,null,null,null,null,null,null,null,null,null,null,null,null,null,null,null,null,null,null,null,null,null,null,null,null,null,null,null,0,0,0,null,368,363,363,363,364]
["Black-capped Chickadee","Poecile atricapillus",null,null,null,null,null,null,null,null,null,null,null,null,null,null,null,null,null,null,null,null,null,null,null,null,null,null,null,null,null,null,null,null,null,null,null,null,null,null,null,null,null,0,0,0,null,356,365,365,365,365]
["Mountain Chickadee","Poecile gambeli",null,null,null,null,null,null,null,null,null,null,null,null,null,null,null,null,null,null,null,null,null,null,null,null,null,null,null,null,null,null,null,null,null,null,null,null,null,null,null,null,null,0,0,0,null,357,366,366,366,366]
["Chestnut-backed Chickadee","Poecile rufescens",null,null,null,null,null,null,null,null,null,null,null,null,null,null,null,null,null,null,null,null,null,null,null,null,null,null,null,null,null,null,null,null,null,null,null,null,null,null,null,null,null,0,0,0,null,358,367,367,367,367]
["Boreal Chickadee","Poecile hudsonicus",null,null,null,null,null,null,null,null,null,null,null,null,null,null,null,null,null,null,null,null,null,null,null,null,null,null,null,null,null,null,null,null,null,null,null,null,null,null,null,null,null,0,0,0,null,359,368,368,368,368]
["Bushtit","Psaltriparus minimus",null,null,null,null,null,null,null,null,null,null,null,null,null,null,null,null,null,null,null,null,null,null,null,null,null,null,null,null,null,null,null,null,null,null,null,null,null,null,null,null,null,0,0,0,null,369,369,369,369,369]
["Red-breasted Nuthatch","Sitta canadensis",null,null,null,null,null,null,null,null,null,null,null,null,null,null,null,null,null,null,null,null,null,null,null,null,null,null,null,null,null,null,null,null,null,null,null,null,null,null,null,null,null,0,0,0,null,372,370,370,370,370]
["White-breasted Nuthatch","Sitta carolinensis",null,null,null,null,null,null,null,null,null,null,null,null,null,null,null,null,null,null,null,null,null,null,null,null,null,null,null,null,null,null,null,null,null,null,null,null,null,null,null,null,null,0,0,0,null,373,371,371,371,371]
["Pygmy Nuthatch","Sitta pygmaea",null,null,null,null,null,null,null,null,null,null,null,null,null,null,null,null,null,null,null,null,null,null,null,null,null,null,null,null,null,null,null,null,null,null,null,null,null,null,null,null,null,0,0,0,null,374,372,372,372,372]
["Brown Creeper","Certhia americana",null,null,null,null,null,null,null,null,null,null,null,null,null,null,null,null,null,null,null,null,null,null,null,null,null,null,null,null,null,null,null,null,null,null,null,null,null,null,null,null,null,0,0,0,null,375,373,373,373,373]
["Rock Wren","Salpinctes obsoletus",null,null,null,null,null,null,null,null,null,null,null,null,null,null,null,null,null,null,null,null,null,null,null,null,null,null,null,null,null,null,null,null,null,null,null,null,null,null,null,null,null,0,0,0,null,377,374,374,374,374]
["Canyon Wren","Catherpes mexicanus",null,null,null,null,null,null,null,null,null,null,null,null,null,null,null,null,null,null,null,null,null,null,null,null,null,null,null,null,null,null,null,null,null,null,null,null,null,null,null,null,null,0,0,0,null,378,375,375,375,375]
["House Wren","Troglodytes aedon",null,null,null,null,null,null,null,null,null,null,null,null,null,null,null,null,null,null,null,null,null,null,null,null,null,null,null,null,null,null,null,null,null,null,null,null,null,null,null,null,null,0,0,0,null,379,377,376,376,376]
["Pacific Wren","Troglodytes pacificus",null,null,null,null,null,null,null,null,null,null,null,null,null,null,null,null,null,null,null,null,null,null,null,null,null,null,null,null,null,null,null,null,null,null,null,null,null,null,null,null,null,0,0,0,null,380,378,377,377,377]
["Marsh Wren","Cistothorus palustris",null,null,null,null,null,null,null,null,null,null,null,null,null,null,null,null,null,null,null,null,null,null,null,null,null,null,null,null,null,null,null,null,null,null,null,null,null,null,null,null,null,0,0,0,null,381,379,378,378,378]
["Bewick's Wren","Thryomanes bewickii",null,null,null,null,null,null,null,null,null,null,null,null,null,null,null,null,null,null,null,null,null,null,null,null,null,null,null,null,null,null,null,null,null,null,null,null,null,null,null,null,null,0,0,0,null,382,376,379,379,379]
["Blue-gray Gnatcatcher","Polioptila caerulea",null,null,null,null,null,null,null,null,null,null,null,null,null,null,null,null,null,null,null,null,null,null,null,null,null,null,null,null,null,null,null,null,null,null,null,null,null,null,null,null,null,0,0,0,null,376,384,380,380,380]
["American Dipper","Cinclus mexicanus",null,null,null,null,null,null,null,null,null,null,null,null,null,null,null,null,null,null,null,null,null,null,null,null,null,null,null,null,null,null,null,null,null,null,null,null,null,null,null,null,null,0,0,0,null,383,380,381,381,381]
["Golden-crowned Kinglet","Regulus satrapa",null,null,null,null,null,null,null,null,null,null,null,null,null,null,null,null,null,null,null,null,null,null,null,null,null,null,null,null,null,null,null,null,null,null,null,null,null,null,null,null,null,0,0,0,null,370,381,382,382,382]
["Ruby-crowned Kinglet","Regulus calendula",null,null,null,null,null,null,null,null,null,null,null,null,null,null,null,null,null,null,null,null,null,null,null,null,null,null,null,null,null,null,null,null,null,null,null,null,null,null,null,null,null,0,0,0,null,371,382,383,383,383]
["Red-flanked Bluetail","Tarsiger cyanurus",null,null,null,null,null,null,null,null,null,null,null,null,null,null,null,null,null,null,null,null,null,null,null,null,null,null,null,null,null,null,null,null,null,null,null,null,null,null,null,null,null,0,0,0,null,399,383,384,384,384]
["Northern Wheatear","Oenanthe oenanthe",null,null,null,null,null,null,null,null,null,null,null,null,null,null,null,null,null,null,null,null,null,null,null,null,null,null,null,null,null,null,null,null,null,null,null,null,null,null,null,null,null,{"$f":"SUM(C388:U388)","v":0},{"$f":"SUM(W388:AP388)","v":0},{"$f":"SUM(C388:AP388)","v":0},null,400,385,385,385,385]
["Western Bluebird","Sialia mexicana",null,null,null,null,null,null,null,null,null,null,null,null,null,null,null,null,null,null,null,null,null,null,null,null,null,null,null,null,null,null,null,null,null,null,null,null,null,null,null,null,null,0,0,0,null,389,386,386,386,386]
["Mountain Bluebird","Sialia currucoides",null,null,null,null,null,null,null,null,null,null,null,null,null,null,null,null,null,null,null,null,null,null,null,null,null,null,null,null,null,null,null,null,null,null,null,null,null,null,null,null,null,0,0,0,null,390,387,387,387,387]
["Townsend's Solitaire","Myadestes townsendi",null,null,null,null,null,null,null,null,null,null,null,null,null,null,null,null,null,null,null,null,null,null,null,null,null,null,null,null,null,null,null,null,null,null,null,null,null,null,null,null,null,0,0,0,null,391,388,388,388,388]
["Veery","Catharus fuscescens",null,null,null,null,null,null,null,null,null,null,null,null,null,null,null,null,null,null,null,null,null,null,null,null,null,null,null,null,null,null,null,null,null,null,null,null,null,null,null,null,null,0,0,0,null,393,389,389,389,389]
["Swainson's Thrush","Catharus ustulatus",null,null,null,null,null,null,null,null,null,null,null,null,null,null,null,null,null,null,null,null,null,null,null,null,null,null,null,null,null,null,null,null,null,null,null,null,null,null,null,null,null,0,0,0,null,394,390,390,390,390]
["Hermit Thrush","Catharus guttatus",null,null,null,null,null,null,null,null,null,null,null,null,null,null,null,null,null,null,null,null,null,null,null,null,null,null,null,null,null,null,null,null,null,null,null,null,null,null,null,null,null,0,0,0,null,395,391,391,391,391]
["Dusky Thrush","Turdus naumanni",null,null,null,null,null,null,null,null,null,null,null,null,null,null,null,null,null,null,null,null,null,null,null,null,null,null,null,null,null,null,null,null,null,null,null,null,null,null,null,null,null,0,0,0,null,398,392,392,392,392]
["Redwing","Turdus iliacus",null,null,null,null,null,null,null,null,null,null,null,null,null,null,null,null,null,null,null,null,null,null,null,null,null,null,null,null,null,null,null,null,null,null,null,null,null,null,null,null,null,0,0,0,null,396,393,393,393,393]
["American Robin","Turdus migratorius",null,null,null,null,null,null,null,null,null,null,null,null,null,null,null,null,null,null,null,null,null,null,null,null,null,null,null,null,null,null,null,null,null,null,null,null,null,null,null,null,null,0,0,0,null,397,394,394,394,394]
["Varied Thrush","Ixoreus naevius",null,null,null,null,null,null,null,null,null,null,null,null,null,null,null,null,null,null,null,null,null,null,null,null,null,null,null,null,null,null,null,null,null,null,null,null,null,null,null,null,null,0,0,0,null,392,395,395,395,395]
["Gray Catbird","Dumetella carolinensis",null,null,null,null,null,null,null,null,null,null,null,null,null,null,null,null,null,null,null,null,null,null,null,null,null,null,null,null,null,null,null,null,null,null,null,null,null,null,null,null,null,0,0,0,null,385,396,396,396,396]
["Brown Thrasher","Toxostoma rufum",null,null,null,null,null,null,null,null,null,null,null,null,null,null,null,null,null,null,null,null,null,null,null,null,null,null,null,null,null,null,null,null,null,null,null,null,null,null,null,null,null,0,0,0,null,386,399,397,397,397]
["Sage Thrasher","Oreoscoptes montanus",null,null,null,null,null,null,null,null,null,null,null,null,null,null,null,null,null,null,null,null,null,null,null,null,null,null,null,null,null,null,null,null,null,null,null,null,null,null,null,null,null,0,0,0,null,387,398,398,398,398]
["Northern Mockingbird","Mimus polyglottos",null,null,null,null,null,null,null,null,null,null,null,null,null,null,null,null,null,null,null,null,null,null,null,null,null,null,null,null,null,null,null,null,null,null,null,null,null,null,null,null,null,0,0,0,null,388,397,399,399,399]
["European Starling","Sturnus vulgaris",null,null,null,null,null,null,null,null,null,null,null,null,null,null,null,null,null,null,null,null,null,null,null,null,null,null,null,null,null,null,null,null,null,null,null,null,null,null,null,null,null,0,0,0,null,384,400,400,400,400]
["Bohemian Waxwing","Bombycilla garrulus",null,null,null,null,null,null,null,null,null,null,null,null,null,null,null,null,null,null,null,null,null,null,null,null,null,null,null,null,null,null,null,null,null,null,null,null,null,null,null,null,null,0,0,0,null,401,407,401,401,401]
["Cedar Waxwing","Bombycilla cedrorum",null,null,null,null,null,null,null,null,null,null,null,null,null,null,null,null,null,null,null,null,null,null,null,null,null,null,null,null,null,null,null,null,null,null,null,null,null,null,null,null,null,0,0,0,null,402,408,402,402,402]
["Phainopepla","Phainopepla nitens",null,null,null,null,null,null,null,null,null,null,null,null,null,null,null,null,null,null,null,null,null,null,null,null,null,null,null,null,null,null,null,null,null,null,null,null,null,null,null,null,null,0,0,0,null,403,409,403,403,403]
["Siberian Accentor","Prunella montanella",null,null,null,null,null,null,null,null,null,null,null,null,null,null,null,null,null,null,null,null,null,null,null,null,null,null,null,null,null,null,null,null,null,null,null,null,null,null,null,null,null,0,0,0,null,404,401,404,404,404]
["House Sparrow","Passer domesticus",null,null,null,null,null,null,null,null,null,null,null,null,null,null,null,null,null,null,null,null,null,null,null,null,null,null,null,null,null,null,null,null,null,null,null,null,null,null,null,null,null,0,0,0,null,405,520,405,405,405]
["Eastern Yellow Wagtail","Motacilla tschutschensis",null,null,null,null,null,null,null,null,null,null,null,null,null,null,null,null,null,null,null,null,null,null,null,null,null,null,null,null,null,null,null,null,null,null,null,null,null,null,null,null,null,0,0,0,null,407,402,406,406,406]
["Gray Wagtail","Motacilla cinerea",null,null,null,null,null,null,null,null,null,null,null,null,null,null,null,null,null,null,null,null,null,null,null,null,null,null,null,null,null,null,null,null,null,null,null,null,null,null,null,null,null,0,0,0,null,406,403,407,407,407]
["White Wagtail","Motacilla alba",null,null,null,null,null,null,null,null,null,null,null,null,null,null,null,null,null,null,null,null,null,null,null,null,null,null,null,null,null,null,null,null,null,null,null,null,null,null,null,null,null,0,0,0,null,408,404,408,408,408]
["Red-throated Pipit","Anthus cervinus",null,null,null,null,null,null,null,null,null,null,null,null,null,null,null,null,null,null,null,null,null,null,null,null,null,null,null,null,null,null,null,null,null,null,null,null,null,null,null,null,null,0,0,0,null,409,405,409,409,409]
["American Pipit","Anthus rubescens",null,null,null,null,null,null,null,null,null,null,null,null,null,null,null,null,null,null,null,null,null,null,null,null,null,null,null,null,null,null,null,null,null,null,null,null,null,null,null,null,null,0,0,0,null,410,406,410,410,410]
["Brambling","Fringilla montifringilla",null,null,null,null,null,null,null,null,null,null,null,null,null,null,null,null,null,null,null,null,null,null,null,null,null,null,null,null,null,null,null,null,null,null,null,null,null,null,null,null,null,0,0,0,null,411,505,411,411,411]
["Evening Grosbeak","Coccothraustes vespertinus",null,null,null,null,null,null,null,null,null,null,null,null,null,null,null,null,null,null,null,null,null,null,null,null,null,null,null,null,null,null,null,null,null,null,null,null,null,null,null,null,null,0,0,0,null,412,519,412,412,412]
["Pine Grosbeak","Pinicola enucleator",null,null,null,null,null,null,null,null,null,null,null,null,null,null,null,null,null,null,null,null,null,null,null,null,null,null,null,null,null,null,null,null,null,null,null,null,null,null,null,null,null,0,0,0,null,413,507,413,413,413]
["Gray-crowned Rosy-Finch","Leucosticte tephrocotis",null,null,null,null,null,null,null,null,null,null,null,null,null,null,null,null,null,null,null,null,null,null,null,null,null,null,null,null,null,null,null,null,null,null,null,null,null,null,null,null,null,0,0,0,null,414,506,414,414,414]
["House Finch","Haemorhous mexicanus",null,null,null,null,null,null,null,null,null,null,null,null,null,null,null,null,null,null,null,null,null,null,null,null,null,null,null,null,null,null,null,null,null,null,null,null,null,null,null,null,null,0,0,0,null,415,510,415,415,415]
["Purple Finch","Haemorhous purpureus",null,null,null,null,null,null,null,null,null,null,null,null,null,null,null,null,null,null,null,null,null,null,null,null,null,null,null,null,null,null,null,null,null,null,null,null,null,null,null,null,null,0,0,0,null,416,508,416,416,416]
["Cassin's Finch","Haemorhous cassinii",null,null,null,null,null,null,null,null,null,null,null,null,null,null,null,null,null,null,null,null,null,null,null,null,null,null,null,null,null,null,null,null,null,null,null,null,null,null,null,null,null,0,0,0,null,417,509,417,417,417]
["Common Redpoll","Acanthis flammea",null,null,null,null,null,null,null,null,null,null,null,null,null,null,null,null,null,null,null,null,null,null,null,null,null,null,null,null,null,null,null,null,null,null,null,null,null,null,null,null,null,0,0,0,null,418,513,418,418,418]
["Hoary Redpoll","Acanthis hornemanni",null,null,null,null,null,null,null,null,null,null,null,null,null,null,null,null,null,null,null,null,null,null,null,null,null,null,null,null,null,null,null,null,null,null,null,null,null,null,null,null,null,0,0,0,null,419,514,419,419,419]
["Red Crossbill","Loxia curvirostra",null,null,null,null,null,null,null,null,null,null,null,null,null,null,null,null,null,null,null,null,null,null,null,null,null,null,null,null,null,null,null,null,null,null,null,null,null,null,null,null,null,0,0,0,null,420,511,420,420,420]
["White-winged Crossbill","Loxia leucoptera",null,null,null,null,null,null,null,null,null,null,null,null,null,null,null,null,null,null,null,null,null,null,null,null,null,null,null,null,null,null,null,null,null,null,null,null,null,null,null,null,null,0,0,0,null,421,512,421,421,421]
["Pine Siskin","Spinus pinus",null,null,null,null,null,null,null,null,null,null,null,null,null,null,null,null,null,null,null,null,null,null,null,null,null,null,null,null,null,null,null,null,null,null,null,null,null,null,null,null,null,0,0,0,null,422,515,422,422,422]
["Lesser Goldfinch","Spinus psaltria",null,null,null,null,null,null,null,null,null,null,null,null,null,null,null,null,null,null,null,null,null,null,null,null,null,null,null,null,null,null,null,null,null,null,null,null,null,null,null,null,null,0,0,0,null,423,516,423,423,423]
["Lawrence's Goldfinch","Spinus lawrencei",null,null,null,null,null,null,null,null,null,null,null,null,null,null,null,null,null,null,null,null,null,null,null,null,null,null,null,null,null,null,null,null,null,null,null,null,null,null,null,null,null,0,0,0,null,424,517,424,424,424]
["American Goldfinch","Spinus tristis",null,null,null,null,null,null,null,null,null,null,null,null,null,null,null,null,null,null,null,null,null,null,null,null,null,null,null,null,null,null,null,null,null,null,null,null,null,null,null,null,null,0,0,0,null,425,518,425,425,425]
["Lapland Longspur","Calcarius lapponicus",null,null,null,null,null,null,null,null,null,null,null,null,null,null,null,null,null,null,null,null,null,null,null,null,null,null,null,null,null,null,null,null,null,null,null,null,null,null,null,null,null,0,0,0,null,426,475,426,426,426]
["Chestnut-collared Longspur","Calcarius ornatus",null,null,null,null,null,null,null,null,null,null,null,null,null,null,null,null,null,null,null,null,null,null,null,null,null,null,null,null,null,null,null,null,null,null,null,null,null,null,null,null,null,0,0,0,null,427,478,427,427,427]
["Smith's Longspur","Calcarius pictus",null,null,null,null,null,null,null,null,null,null,null,null,null,null,null,null,null,null,null,null,null,null,null,null,null,null,null,null,null,null,null,null,null,null,null,null,null,null,null,null,null,0,0,0,null,428,476,428,428,428]
["McCown's Longspur","Rhynchophanes mccownii",null,null,null,null,null,null,null,null,null,null,null,null,null,null,null,null,null,null,null,null,null,null,null,null,null,null,null,null,null,null,null,null,null,null,null,null,null,null,null,null,null,0,0,0,null,429,477,429,429,429]
["Snow Bunting","Plectrophenax nivalis",null,null,null,null,null,null,null,null,null,null,null,null,null,null,null,null,null,null,null,null,null,null,null,null,null,null,null,null,null,null,null,null,null,null,null,null,null,null,null,null,null,0,0,0,null,430,480,430,430,430]
["McKay's Bunting","Plectrophenax hyperboreus",null,null,null,null,null,null,null,null,null,null,null,null,null,null,null,null,null,null,null,null,null,null,null,null,null,null,null,null,null,null,null,null,null,null,null,null,null,null,null,null,null,0,0,0,null,431,481,431,431,431]
["Little Bunting","Emberiza pusilla",null,null,null,null,null,null,null,null,null,null,null,null,null,null,null,null,null,null,null,null,null,null,null,null,null,null,null,null,null,null,null,null,null,null,null,null,null,null,null,null,null,0,0,0,null,432,474,432,432,432]
["Rustic Bunting","Emberiza rustica",null,null,null,null,null,null,null,null,null,null,null,null,null,null,null,null,null,null,null,null,null,null,null,null,null,null,null,null,null,null,null,null,null,null,null,null,null,null,null,null,null,0,0,0,null,433,479,433,433,433]
["Grasshopper Sparrow","Ammodramus savannarum",null,null,null,null,null,null,null,null,null,null,null,null,null,null,null,null,null,null,null,null,null,null,null,null,null,null,null,null,null,null,null,null,null,null,null,null,null,null,null,null,null,0,0,0,null,434,462,447,447,434]
["Black-throated Sparrow","Amphispiza bilineata",null,null,null,null,null,null,null,null,null,null,null,null,null,null,null,null,null,null,null,null,null,null,null,null,null,null,null,null,null,null,null,null,null,null,null,null,null,null,null,null,null,0,0,0,null,439,458,443,443,435]
["Lark Sparrow","Chondestes grammacus",null,null,null,null,null,null,null,null,null,null,null,null,null,null,null,null,null,null,null,null,null,null,null,null,null,null,null,null,null,null,null,null,null,null,null,null,null,null,null,null,null,0,0,0,null,440,457,442,442,436]
["Lark Bunting","Calamospiza melanocorys",null,null,null,null,null,null,null,null,null,null,null,null,null,null,null,null,null,null,null,null,null,null,null,null,null,null,null,null,null,null,null,null,null,null,null,null,null,null,null,null,null,0,0,0,null,441,460,445,445,437]
["Chipping Sparrow","Spizella passerina",null,null,null,null,null,null,null,null,null,null,null,null,null,null,null,null,null,null,null,null,null,null,null,null,null,null,null,null,null,null,null,null,null,null,null,null,null,null,null,null,null,0,0,0,null,435,452,437,437,438]
["Clay-colored Sparrow","Spizella pallida",null,null,null,null,null,null,null,null,null,null,null,null,null,null,null,null,null,null,null,null,null,null,null,null,null,null,null,null,null,null,null,null,null,null,null,null,null,null,null,null,null,0,0,0,null,436,453,438,438,439]
["Field Sparrow","Spizella pusilla",null,null,null,null,null,null,null,null,null,null,null,null,null,null,null,null,null,null,null,null,null,null,null,null,null,null,null,null,null,null,null,null,null,null,null,null,null,null,null,null,null,0,0,0,null,437,455,440,440,440]
["Brewer's Sparrow","Spizella breweri",null,null,null,null,null,null,null,null,null,null,null,null,null,null,null,null,null,null,null,null,null,null,null,null,null,null,null,null,null,null,null,null,null,null,null,null,null,null,null,null,null,0,0,0,null,438,454,439,439,441]
["Fox Sparrow","Passerella iliaca",null,null,null,null,null,null,null,null,null,null,null,null,null,null,null,null,null,null,null,null,null,null,null,null,null,null,null,null,null,null,null,null,null,null,null,null,null,null,null,null,null,0,0,0,null,443,465,450,450,442]
["American Tree Sparrow","Spizelloides arborea",null,null,null,null,null,null,null,null,null,null,null,null,null,null,null,null,null,null,null,null,null,null,null,null,null,null,null,null,null,null,null,null,null,null,null,null,null,null,null,null,null,0,0,0,null,442,451,436,436,443]
["Dark-eyed Junco","Junco hyemalis",null,null,null,null,null,null,null,null,null,null,null,null,null,null,null,null,null,null,null,null,null,null,null,null,null,null,null,null,null,null,null,null,null,null,null,null,null,null,null,null,null,0,0,0,null,444,473,458,458,444]
["White-crowned Sparrow","Zonotrichia leucophrys",null,null,null,null,null,null,null,null,null,null,null,null,null,null,null,null,null,null,null,null,null,null,null,null,null,null,null,null,null,null,null,null,null,null,null,null,null,null,null,null,null,0,0,0,null,445,471,456,456,445]
["Golden-crowned Sparrow","Zonotrichia atricapilla",null,null,null,null,null,null,null,null,null,null,null,null,null,null,null,null,null,null,null,null,null,null,null,null,null,null,null,null,null,null,null,null,null,null,null,null,null,null,null,null,null,0,0,0,null,446,472,457,457,446]
["Harris's Sparrow","Zonotrichia querula",null,null,null,null,null,null,null,null,null,null,null,null,null,null,null,null,null,null,null,null,null,null,null,null,null,null,null,null,null,null,null,null,null,null,null,null,null,null,null,null,null,0,0,0,null,447,470,455,455,447]
["White-throated Sparrow","Zonotrichia albicollis",null,null,null,null,null,null,null,null,null,null,null,null,null,null,null,null,null,null,null,null,null,null,null,null,null,null,null,null,null,null,null,null,null,null,null,null,null,null,null,null,null,0,0,0,null,448,469,454,454,448]
["Sagebrush Sparrow","Artemisiospiza nevadensis",null,null,null,null,null,null,null,null,null,null,null,null,null,null,null,null,null,null,null,null,null,null,null,null,null,null,null,null,null,null,null,null,null,null,null,null,null,null,null,null,null,{"$f":"SUM(C452:U452)","v":0},{"$f":"SUM(W452:AP452)","v":0},{"$f":"SUM(C452:AP452)","v":0},null,449,459,444,444,449]
["Vesper Sparrow","Pooecetes gramineus",null,null,null,null,null,null,null,null,null,null,null,null,null,null,null,null,null,null,null,null,null,null,null,null,null,null,null,null,null,null,null,null,null,null,null,null,null,null,null,null,null,0,0,0,null,450,456,441,441,450]
["LeConte's Sparrow","Ammospiza leconteii",null,null,null,null,null,null,null,null,null,null,null,null,null,null,null,null,null,null,null,null,null,null,null,null,null,null,null,null,null,null,null,null,null,null,null,null,null,null,null,null,null,0,0,0,null,451,463,448,448,451]
["Nelson's Sparrow","Ammospiza nelsoni",null,null,null,null,null,null,null,null,null,null,null,null,null,null,null,null,null,null,null,null,null,null,null,null,null,null,null,null,null,null,null,null,null,null,null,null,null,null,null,null,null,0,0,0,null,452,464,449,449,452]
["Savannah Sparrow","Passerculus sandwichensis",null,null,null,null,null,null,null,null,null,null,null,null,null,null,null,null,null,null,null,null,null,null,null,null,null,null,null,null,null,null,null,null,null,null,null,null,null,null,null,null,null,0,0,0,null,453,461,446,446,453]
["Song Sparrow","Melospiza melodia",null,null,null,null,null,null,null,null,null,null,null,null,null,null,null,null,null,null,null,null,null,null,null,null,null,null,null,null,null,null,null,null,null,null,null,null,null,null,null,null,null,0,0,0,null,454,466,451,451,454]
["Lincoln's Sparrow","Melospiza lincolnii",null,null,null,null,null,null,null,null,null,null,null,null,null,null,null,null,null,null,null,null,null,null,null,null,null,null,null,null,null,null,null,null,null,null,null,null,null,null,null,null,null,0,0,0,null,455,467,452,452,455]
["Swamp Sparrow","Melospiza georgiana",null,null,null,null,null,null,null,null,null,null,null,null,null,null,null,null,null,null,null,null,null,null,null,null,null,null,null,null,null,null,null,null,null,null,null,null,null,null,null,null,null,0,0,0,null,456,468,453,453,456]
["Green-tailed Towhee","Pipilo chlorurus",null,null,null,null,null,null,null,null,null,null,null,null,null,null,null,null,null,null,null,null,null,null,null,null,null,null,null,null,null,null,null,null,null,null,null,null,null,null,null,null,null,0,0,0,null,457,449,434,434,457]
["Spotted Towhee","Pipilo maculatus",null,null,null,null,null,null,null,null,null,null,null,null,null,null,null,null,null,null,null,null,null,null,null,null,null,null,null,null,null,null,null,null,null,null,null,null,null,null,null,null,null,0,0,0,null,458,450,435,435,458]
["Yellow-breasted Chat","Icteria virens",null,null,null,null,null,null,null,null,null,null,null,null,null,null,null,null,null,null,null,null,null,null,null,null,null,null,null,null,null,null,null,null,null,null,null,null,null,null,null,null,null,0,0,0,null,459,446,459,459,459]
["Yellow-headed Blackbird","Xanthocephalus xanthocephalus",null,null,null,null,null,null,null,null,null,null,null,null,null,null,null,null,null,null,null,null,null,null,null,null,null,null,null,null,null,null,null,null,null,null,null,null,null,null,null,null,null,0,0,0,null,460,494,460,460,460]
["Bobolink","Dolichonyx oryzivorus",null,null,null,null,null,null,null,null,null,null,null,null,null,null,null,null,null,null,null,null,null,null,null,null,null,null,null,null,null,null,null,null,null,null,null,null,null,null,null,null,null,0,0,0,null,461,489,461,461,461]
["Eastern Meadowlark","Sturnella magna",null,null,null,null,null,null,null,null,null,null,null,null,null,null,null,null,null,null,null,null,null,null,null,null,null,null,null,null,null,null,null,null,null,null,null,null,null,null,null,null,null,0,0,0,null,463,492,462,462,462]
["Western Meadowlark","Sturnella neglecta",null,null,null,null,null,null,null,null,null,null,null,null,null,null,null,null,null,null,null,null,null,null,null,null,null,null,null,null,null,null,null,null,null,null,null,null,null,null,null,null,null,0,0,0,null,462,493,463,463,463]
["Orchard Oriole","Icterus spurius",null,null,null,null,null,null,null,null,null,null,null,null,null,null,null,null,null,null,null,null,null,null,null,null,null,null,null,null,null,null,null,null,null,null,null,null,null,null,null,null,null,0,0,0,null,464,500,464,464,464]
["Hooded Oriole","Icterus cucullatus",null,null,null,null,null,null,null,null,null,null,null,null,null,null,null,null,null,null,null,null,null,null,null,null,null,null,null,null,null,null,null,null,null,null,null,null,null,null,null,null,null,0,0,0,null,465,501,465,465,465]
["Bullock's Oriole","Icterus bullockii",null,null,null,null,null,null,null,null,null,null,null,null,null,null,null,null,null,null,null,null,null,null,null,null,null,null,null,null,null,null,null,null,null,null,null,null,null,null,null,null,null,0,0,0,null,466,502,466,466,466]
["Baltimore Oriole","Icterus galbula",null,null,null,null,null,null,null,null,null,null,null,null,null,null,null,null,null,null,null,null,null,null,null,null,null,null,null,null,null,null,null,null,null,null,null,null,null,null,null,null,null,0,0,0,null,467,503,467,467,467]
["Scott's Oriole","Icterus parisorum",null,null,null,null,null,null,null,null,null,null,null,null,null,null,null,null,null,null,null,null,null,null,null,null,null,null,null,null,null,null,null,null,null,null,null,null,null,null,null,null,null,0,0,0,null,468,504,468,468,468]
["Red-winged Blackbird","Agelaius phoeniceus",null,null,null,null,null,null,null,null,null,null,null,null,null,null,null,null,null,null,null,null,null,null,null,null,null,null,null,null,null,null,null,null,null,null,null,null,null,null,null,null,null,0,0,0,null,469,490,469,469,469]
["Tricolored Blackbird","Agelaius tricolor",null,null,null,null,null,null,null,null,null,null,null,null,null,null,null,null,null,null,null,null,null,null,null,null,null,null,null,null,null,null,null,null,null,null,null,null,null,null,null,null,null,0,0,0,null,470,491,470,470,470]
["Brown-headed Cowbird","Molothrus ater",null,null,null,null,null,null,null,null,null,null,null,null,null,null,null,null,null,null,null,null,null,null,null,null,null,null,null,null,null,null,null,null,null,null,null,null,null,null,null,null,null,0,0,0,null,471,499,471,471,471]
["Rusty Blackbird","Euphagus carolinus",null,null,null,null,null,null,null,null,null,null,null,null,null,null,null,null,null,null,null,null,null,null,null,null,null,null,null,null,null,null,null,null,null,null,null,null,null,null,null,null,null,0,0,0,null,472,495,472,472,472]
["Brewer's Blackbird","Euphagus cyanocephalus",null,null,null,null,null,null,null,null,null,null,null,null,null,null,null,null,null,null,null,null,null,null,null,null,null,null,null,null,null,null,null,null,null,null,null,null,null,null,null,null,null,0,0,0,null,473,496,473,473,473]
["Common Grackle","Quiscalus quiscula",null,null,null,null,null,null,null,null,null,null,null,null,null,null,null,null,null,null,null,null,null,null,null,null,null,null,null,null,null,null,null,null,null,null,null,null,null,null,null,null,null,0,0,0,null,474,497,474,474,474]
["Great-tailed Grackle","Quiscalus mexicanus",null,null,null,null,null,null,null,null,null,null,null,null,null,null,null,null,null,null,null,null,null,null,null,null,null,null,null,null,null,null,null,null,null,null,null,null,null,null,null,null,null,0,0,0,null,475,498,475,475,475]
["Ovenbird","Seiurus aurocapilla",null,null,null,null,null,null,null,null,null,null,null,null,null,null,null,null,null,null,null,null,null,null,null,null,null,null,null,null,null,null,null,null,null,null,null,null,null,null,null,null,null,0,0,0,null,476,436,476,476,476]
["Northern Waterthrush","Parkesia noveboracensis",null,null,null,null,null,null,null,null,null,null,null,null,null,null,null,null,null,null,null,null,null,null,null,null,null,null,null,null,null,null,null,null,null,null,null,null,null,null,null,null,null,0,0,0,null,477,437,477,477,477]
["Golden-winged Warbler","Vermivora chrysoptera",null,null,null,null,null,null,null,null,null,null,null,null,null,null,null,null,null,null,null,null,null,null,null,null,null,null,null,null,null,null,null,null,null,null,null,null,null,null,null,null,null,0,0,0,null,478,411,478,478,478]
["Blue-winged Warbler","Vermivora cyanoptera",null,null,null,null,null,null,null,null,null,null,null,null,null,null,null,null,null,null,null,null,null,null,null,null,null,null,null,null,null,null,null,null,null,null,null,null,null,null,null,null,null,0,0,0,null,479,410,479,479,479]
["Black-and-white Warbler","Mniotilta varia",null,null,null,null,null,null,null,null,null,null,null,null,null,null,null,null,null,null,null,null,null,null,null,null,null,null,null,null,null,null,null,null,null,null,null,null,null,null,null,null,null,0,0,0,null,480,433,480,480,480]
["Prothonotary Warbler","Protonotaria citrea",null,null,null,null,null,null,null,null,null,null,null,null,null,null,null,null,null,null,null,null,null,null,null,null,null,null,null,null,null,null,null,null,null,null,null,null,null,null,null,null,null,0,0,0,null,481,435,481,481,481]
["Tennessee Warbler","Leiothlypis peregrina",null,null,null,null,null,null,null,null,null,null,null,null,null,null,null,null,null,null,null,null,null,null,null,null,null,null,null,null,null,null,null,null,null,null,null,null,null,null,null,null,null,0,0,0,null,482,412,482,482,482]
["Orange-crowned Warbler","Leiothlypis celata",null,null,null,null,null,null,null,null,null,null,null,null,null,null,null,null,null,null,null,null,null,null,null,null,null,null,null,null,null,null,null,null,null,null,null,null,null,null,null,null,null,0,0,0,null,483,413,483,483,483]
["Lucy's Warbler","Leiothlypis luciae",null,null,null,null,null,null,null,null,null,null,null,null,null,null,null,null,null,null,null,null,null,null,null,null,null,null,null,null,null,null,null,null,null,null,null,null,null,null,null,null,null,0,0,0,null,484,414,484,484,484]
["Nashville Warbler","Leiothlypis ruficapilla",null,null,null,null,null,null,null,null,null,null,null,null,null,null,null,null,null,null,null,null,null,null,null,null,null,null,null,null,null,null,null,null,null,null,null,null,null,null,null,null,null,0,0,0,null,485,415,485,485,485]
["MacGillivray's Warbler","Geothlypis tolmiei",null,null,null,null,null,null,null,null,null,null,null,null,null,null,null,null,null,null,null,null,null,null,null,null,null,null,null,null,null,null,null,null,null,null,null,null,null,null,null,null,null,0,0,0,null,486,440,486,486,486]
["Mourning Warbler","Geothlypis philadelphia",null,null,null,null,null,null,null,null,null,null,null,null,null,null,null,null,null,null,null,null,null,null,null,null,null,null,null,null,null,null,null,null,null,null,null,null,null,null,null,null,null,0,0,0,null,487,439,487,487,487]
["Kentucky Warbler","Geothlypis formosa",null,null,null,null,null,null,null,null,null,null,null,null,null,null,null,null,null,null,null,null,null,null,null,null,null,null,null,null,null,null,null,null,null,null,null,null,null,null,null,null,null,0,0,0,null,488,438,488,488,488]
["Common Yellowthroat","Geothlypis trichas",null,null,null,null,null,null,null,null,null,null,null,null,null,null,null,null,null,null,null,null,null,null,null,null,null,null,null,null,null,null,null,null,null,null,null,null,null,null,null,null,null,0,0,0,null,489,441,489,489,489]
["Hooded Warbler","Setophaga citrina",null,null,null,null,null,null,null,null,null,null,null,null,null,null,null,null,null,null,null,null,null,null,null,null,null,null,null,null,null,null,null,null,null,null,null,null,null,null,null,null,null,0,0,0,null,490,442,490,490,490]
["American Redstart","Setophaga ruticilla",null,null,null,null,null,null,null,null,null,null,null,null,null,null,null,null,null,null,null,null,null,null,null,null,null,null,null,null,null,null,null,null,null,null,null,null,null,null,null,null,null,0,0,0,null,491,434,491,491,491]
["Cape May Warbler","Setophaga tigrina",null,null,null,null,null,null,null,null,null,null,null,null,null,null,null,null,null,null,null,null,null,null,null,null,null,null,null,null,null,null,null,null,null,null,null,null,null,null,null,null,null,0,0,0,null,492,420,492,492,492]
["Northern Parula","Setophaga americana",null,null,null,null,null,null,null,null,null,null,null,null,null,null,null,null,null,null,null,null,null,null,null,null,null,null,null,null,null,null,null,null,null,null,null,null,null,null,null,null,null,0,0,0,null,493,416,493,493,493]
["Magnolia Warbler","Setophaga magnolia",null,null,null,null,null,null,null,null,null,null,null,null,null,null,null,null,null,null,null,null,null,null,null,null,null,null,null,null,null,null,null,null,null,null,null,null,null,null,null,null,null,0,0,0,null,494,419,494,494,494]
["Bay-breasted Warbler","Setophaga castanea",null,null,null,null,null,null,null,null,null,null,null,null,null,null,null,null,null,null,null,null,null,null,null,null,null,null,null,null,null,null,null,null,null,null,null,null,null,null,null,null,null,0,0,0,null,495,431,495,495,495]
["Blackburnian Warbler","Setophaga fusca",null,null,null,null,null,null,null,null,null,null,null,null,null,null,null,null,null,null,null,null,null,null,null,null,null,null,null,null,null,null,null,null,null,null,null,null,null,null,null,null,null,0,0,0,null,496,427,496,496,496]
["Yellow Warbler","Setophaga petechia",null,null,null,null,null,null,null,null,null,null,null,null,null,null,null,null,null,null,null,null,null,null,null,null,null,null,null,null,null,null,null,null,null,null,null,null,null,null,null,null,null,0,0,0,null,497,417,497,497,497]
["Chestnut-sided Warbler","Setophaga pensylvanica",null,null,null,null,null,null,null,null,null,null,null,null,null,null,null,null,null,null,null,null,null,null,null,null,null,null,null,null,null,null,null,null,null,null,null,null,null,null,null,null,null,0,0,0,null,498,418,498,498,498]
["Blackpoll Warbler","Setophaga striata",null,null,null,null,null,null,null,null,null,null,null,null,null,null,null,null,null,null,null,null,null,null,null,null,null,null,null,null,null,null,null,null,null,null,null,null,null,null,null,null,null,0,0,0,null,499,432,499,499,499]
["Black-throated Blue Warbler","Setophaga caerulescens",null,null,null,null,null,null,null,null,null,null,null,null,null,null,null,null,null,null,null,null,null,null,null,null,null,null,null,null,null,null,null,null,null,null,null,null,null,null,null,null,null,0,0,0,null,500,421,500,500,500]
["Palm Warbler","Setophaga palmarum",null,null,null,null,null,null,null,null,null,null,null,null,null,null,null,null,null,null,null,null,null,null,null,null,null,null,null,null,null,null,null,null,null,null,null,null,null,null,null,null,null,0,0,0,null,501,430,501,501,501]
["Yellow-rumped Warbler","Setophaga coronata",null,null,null,null,null,null,null,null,null,null,null,null,null,null,null,null,null,null,null,null,null,null,null,null,null,null,null,null,null,null,null,null,null,null,null,null,null,null,null,null,null,0,0,0,null,502,422,502,502,502]
["Yellow-throated Warbler","Setophaga dominica",null,null,null,null,null,null,null,null,null,null,null,null,null,null,null,null,null,null,null,null,null,null,null,null,null,null,null,null,null,null,null,null,null,null,null,null,null,null,null,null,null,0,0,0,null,503,428,503,503,503]
["Prairie Warbler","Setophaga discolor",null,null,null,null,null,null,null,null,null,null,null,null,null,null,null,null,null,null,null,null,null,null,null,null,null,null,null,null,null,null,null,null,null,null,null,null,null,null,null,null,null,0,0,0,null,504,429,504,504,504]
["Black-throated Gray Warbler","Setophaga nigrescens",null,null,null,null,null,null,null,null,null,null,null,null,null,null,null,null,null,null,null,null,null,null,null,null,null,null,null,null,null,null,null,null,null,null,null,null,null,null,null,null,null,0,0,0,null,505,423,505,505,505]
["Townsend's Warbler","Setophaga townsendi",null,null,null,null,null,null,null,null,null,null,null,null,null,null,null,null,null,null,null,null,null,null,null,null,null,null,null,null,null,null,null,null,null,null,null,null,null,null,null,null,null,0,0,0,null,506,425,506,506,506]
["Hermit Warbler","Setophaga occidentalis",null,null,null,null,null,null,null,null,null,null,null,null,null,null,null,null,null,null,null,null,null,null,null,null,null,null,null,null,null,null,null,null,null,null,null,null,null,null,null,null,null,0,0,0,null,507,426,507,507,507]
["Black-throated Green Warbler","Setophaga virens",null,null,null,null,null,null,null,null,null,null,null,null,null,null,null,null,null,null,null,null,null,null,null,null,null,null,null,null,null,null,null,null,null,null,null,null,null,null,null,null,null,0,0,0,null,508,424,508,508,508]
["Canada Warbler","Cardellina canadensis",null,null,null,null,null,null,null,null,null,null,null,null,null,null,null,null,null,null,null,null,null,null,null,null,null,null,null,null,null,null,null,null,null,null,null,null,null,null,null,null,null,0,0,0,null,509,444,509,509,509]
["Wilson's Warbler","Cardellina pusilla",null,null,null,null,null,null,null,null,null,null,null,null,null,null,null,null,null,null,null,null,null,null,null,null,null,null,null,null,null,null,null,null,null,null,null,null,null,null,null,null,null,0,0,0,null,510,443,510,510,510]
["Painted Redstart","Myioborus pictus",null,null,null,null,null,null,null,null,null,null,null,null,null,null,null,null,null,null,null,null,null,null,null,null,null,null,null,null,null,null,null,null,null,null,null,null,null,null,null,null,null,0,0,0,null,511,445,511,511,511]
["Summer Tanager","Piranga rubra",null,null,null,null,null,null,null,null,null,null,null,null,null,null,null,null,null,null,null,null,null,null,null,null,null,null,null,null,null,null,null,null,null,null,null,null,null,null,null,null,null,0,0,0,null,512,447,512,512,512]
["Western Tanager","Piranga ludoviciana",null,null,null,null,null,null,null,null,null,null,null,null,null,null,null,null,null,null,null,null,null,null,null,null,null,null,null,null,null,null,null,null,null,null,null,null,null,null,null,null,null,{"$f":"SUM(C516:U516)","v":0},{"$f":"SUM(W516:AP516)","v":0},{"$f":"SUM(C516:AP516)","v":0},null,513,448,513,513,513]
["Rose-breasted Grosbeak","Pheucticus ludovicianus",null,null,null,null,null,null,null,null,null,null,null,null,null,null,null,null,null,null,null,null,null,null,null,null,null,null,null,null,null,null,null,null,null,null,null,null,null,null,null,null,null,0,0,0,null,514,482,514,514,514]
["Black-headed Grosbeak","Pheucticus melanocephalus",null,null,null,null,null,null,null,null,null,null,null,null,null,null,null,null,null,null,null,null,null,null,null,null,null,null,null,null,null,null,null,null,null,null,null,null,null,null,null,null,null,0,0,0,null,515,483,515,515,515]
["Blue Grosbeak","Passerina caerulea",null,null,null,null,null,null,null,null,null,null,null,null,null,null,null,null,null,null,null,null,null,null,null,null,null,null,null,null,null,null,null,null,null,null,null,null,null,null,null,null,null,0,0,0,null,516,484,516,516,516]
["Lazuli Bunting","Passerina amoena",null,null,null,null,null,null,null,null,null,null,null,null,null,null,null,null,null,null,null,null,null,null,null,null,null,null,null,null,null,null,null,null,null,null,null,null,null,null,null,null,null,0,0,0,null,517,485,517,517,517]
["Indigo Bunting","Passerina cyanea",null,null,null,null,null,null,null,null,null,null,null,null,null,null,null,null,null,null,null,null,null,null,null,null,null,null,null,null,null,null,null,null,null,null,null,null,null,null,null,null,null,0,0,0,null,518,486,518,518,518]
["Painted Bunting","Passerina ciris",null,null,null,null,null,null,null,null,null,null,null,null,null,null,null,null,null,null,null,null,null,null,null,null,null,null,null,null,null,null,null,null,null,null,null,null,null,null,null,null,null,0,0,0,null,519,487,519,519,519]
["Dickcissel","Spiza americana",null,null,null,null,null,null,null,null,null,null,null,null,null,null,null,null,null,null,null,null,null,null,null,null,null,null,null,null,null,null,null,null,null,null,null,null,null,null,null,null,null,0,0,0,null,520,488,520,520,520]
["Italicized =  'review' species for WBRC\n* = species not on WBRC list",null,"w","w","w","w","w","w","w","w","w","w","w","w","w","w","w","w","w","w","w","e","e","e","e","e","e","e","e","e","e","e","e","e","e","e","e","e","e","e","e","e","e",-1,-1,"-1",null,521,521,521,521,521]
["All information based on:\nWashington Birder, available online at wabirder.com\nMichael Hobbs created all the Macro add-ins\nSend corrections updates & suggestions to \nMatt Bartels at: mattxyz@earthlink.net\n","County Firsts revised through:\nWashinton Birder, Jan 2019\nDate of \"WA Birder\" Checklist\nrevision used for each county: (right->)","01/20","01/20","01/20","12/15","12/15","12/15","12/15","12/15","01/20","12/15","12/15","12/15","12/15","12/15","01/20","12/15","12/15","01/20","12/15",null,"12/15","12/15","12/15","01/17","12/15","12/15","01/20","12/15","12/15","12/15","12/15","12/15","01/17","12/15","12/15","12/15","12/15","12/15","12/15","12/17",null,"Western WA Average","Eastern WA Average","Washington Average",null,523,523,523,523,523]
["\"Extripated\" & \"Introduced\" records not listed above: \nScaled Quail* - Franklin, Grant & Yakima ext\nCalifornia Condor - Pacific, Skamania & Klickitat - ext\nMonk Parakeet* - Clark intro'd",null,null,null,null,null,null,null,null,null,null,null,null,null,null,null,null,null,null,null,null,null,null,null,null,null,null,null,null,null,null,null,null,null,null,null,null,null,null,null,null,null,null,{"$f":"(SUM($C$3:$U$3))/19","v":0},{"$f":"(SUM($W$3:$AP$3))/20","v":0},{"$f":"(SUM($C$3:$AP$3))/39","v":0},null,524,524,524,524,524]

{"sheet":"Species","index":1,"n_rows":80,"n_cols":69,"rows_kept":80,"cut":false,"hidden":false,"merged":[[1,1,3,2],[1,35,3,64],[9,67,11,67],[27,21,35,22],[6,1,8,1],[1,67,3,68],[9,68,11,68],[12,1,14,1],[12,2,14,2],[15,15,23,18],[18,2,20,2],[12,68,14,68],[15,1,17,1],[15,2,17,2],[15,67,17,67],[18,67,20,67],[6,68,8,68],[10,62,35,64],[9,1,11,1],[9,2,11,2],[18,1,20,1],[10,20,18,36],[10,37,26,50],[10,51,35,55],[6,2,8,2],[6,67,8,67],[21,2,23,2],[21,67,23,67],[10,56,35,61],[48,1,50,1],[48,2,50,2],[27,67,29,67],[48,67,50,67],[42,1,44,1],[42,2,44,2],[45,67,47,67],[27,42,42,50],[36,67,38,67],[39,1,41,1],[39,2,41,2],[24,67,26,67],[36,2,38,2],[39,67,41,67],[19,20,26,36],[21,1,23,1],[24,1,26,1],[24,2,26,2],[36,59,50,64],[33,68,35,68],[36,68,38,68],[36,1,38,1],[27,2,29,2],[27,68,29,68],[30,68,32,68],[27,24,38,33],[45,1,47,1],[45,2,47,2],[45,68,47,68],[44,8,61,14],[44,15,54,20],[27,34,47,41],[39,24,50,33],[38,21,50,22],[57,67,59,67],[51,1,53,1],[37,7,43,20],[30,67,32,67],[39,68,41,68],[51,67,53,67],[42,67,44,67],[54,67,56,67],[48,34,61,41],[55,15,61,20],[33,1,35,1],[26,5,36,18],[27,1,29,1],[30,1,32,1],[30,2,32,2],[51,2,53,2],[51,51,61,57],[33,2,35,2],[36,51,50,58],[51,21,61,33],[33,67,35,67],[24,68,26,68],[67,1,89,7],[63,68,65,68],[71,11,75,16],[71,17,78,23],[71,24,86,30],[70,61,79,63],[62,31,78,42],[63,1,65,1],[63,2,65,2],[79,19,89,23],[79,31,85,42],[66,67,68,67],[60,67,62,67],[60,68,62,68],[51,58,69,64],[54,1,56,1],[54,2,56,2],[60,1,62,1],[60,2,62,2],[57,1,59,1],[57,2,59,2],[62,14,70,30],[51,68,53,68],[1,21,3,26],[1,27,3,29],[1,30,3,31],[1,32,3,34],[57,68,59,68],[62,9,70,13],[43,42,61,50],[42,68,44,68],[18,68,20,68],[15,68,17,68],[21,68,23,68],[12,67,14,67],[66,68,68,68],[54,68,56,68],[62,43,81,48],[62,49,69,57],[70,49,79,57],[70,58,79,60],[70,64,79,65],[63,67,65,67],[5,27,7,34],[5,35,7,64],[48,68,50,68]]}
[null,null,null,null,null,null,null,null,null,null,null,null,null,null,null,null,null,null,null,null,null,null,null,null,null,null,null,null,null,null,null,null,39]
[null,"Western WA",null,null,null,null,null,null,null,null,null,null,null,null,null,null,null,null,null,null,null,"Have in:",null,null,null,null,null,0,null,null,"OF",null,2,null,null,"Fulvous Whistling-Duck",null,null,null,null,null,null,null,null,null,null,null,null,null,null,null,null,null,null,null,null,null,null,null,null,null,null,null,null,null,null,null,"Eastern WA"]
[]
[]
[]
[null,null,null,null,null,null,null,null,null,null,null,null,null,null,null,null,null,null,null,null,null,null,null,null,null,null,null,"Showing:",null,null,null,null,null,null,null,"Counties where I've seen the species"]
[null,"Clallam",{"$f":"INDEX(Master!$C$4:'Master'!$AP$564, MATCH($AJ$2, Master!$A$4:'Master'!$A$614, 0), MATCH($B7, Master!$C$1:'Master'!$AP$1, 0))","v":0},null,null,null,null,null,null,null,null,null,null,null,null,null,null,null,null,null,null,null,null,null,null,null,null,null,null,null,null,null,null,null,null,null,null,null,null,null,null,null,null,null,null,null,null,null,null,null,null,null,null,null,null,null,null,null,null,null,null,null,null,null,null,null,null,{"$f":"Master!W$1","v":"Adams"},{"$f":"INDEX(Master!$C$4:'Master'!$AP$564, MATCH($AJ$2, Master!$A$4:'Master'!$A$614, 0), MATCH($BP7, Master!$C$1:'Master'!$AP$1, 0))","v":0}]
[]
[]
[null,"Clark",{"$f":"INDEX(Master!$C$4:'Master'!$AP$564, MATCH($AJ$2, Master!$A$4:'Master'!$A$614, 0), MATCH($B10, Master!$C$1:'Master'!$AP$1, 0))","v":0},null,null,null,null,null,null,null,null,null,null,null,null,null,null,null,null,null,null,null,null,null,null,null,null,null,null,null,null,null,null,null,null,null,null,null,null,null,null,null,null,null,null,null,null,null,null,null,null,null,null,null,null,null,null,null,null,null,null,null,null,null,null,null,null,{"$f":"Master!X$1","v":"Asotin"},{"$f":"INDEX(Master!$C$4:'Master'!$AP$564, MATCH($AJ$2, Master!$A$4:'Master'!$A$614, 0), MATCH($BP10, Master!$C$1:'Master'!$AP$1, 0))","v":0}]
[null,null,null,null,null,null,null,null,null,null,null,null,null,null,null,null,null,null,null,null,{"$f":"B61","v":"Whatcom"},null,null,null,null,null,null,null,null,null,null,null,null,null,null,null,null,{"$f":"BP46","v":"Okanogan"},null,null,null,null,null,null,null,null,null,null,null,null,null,{"$f":"BP25","v":"Ferry"},null,null,null,null,{"$f":"BP55","v":"Stevens"},null,null,null,null,null,{"$f":"BP49","v":"Pend Oreille"}]
[]
[null,"Cowlitz",{"$f":"INDEX(Master!$C$4:'Master'!$AP$564, MATCH($AJ$2, Master!$A$4:'Master'!$A$614, 0), MATCH($B13, Master!$C$1:'Master'!$AP$1, 0))","v":0},null,null,null,null,null,null,null,null,null,null,null,null,null,null,null,null,null,null,null,null,null,null,null,null,null,null,null,null,null,null,null,null,null,null,null,null,null,null,null,null,null,null,null,null,null,null,null,null,null,null,null,null,null,null,null,null,null,null,null,null,null,null,null,null,{"$f":"Master!Y$1","v":"Benton"},{"$f":"INDEX(Master!$C$4:'Master'!$AP$564, MATCH($AJ$2, Master!$A$4:'Master'!$A$614, 0), MATCH($BP13, Master!$C$1:'Master'!$AP$1, 0))","v":0}]
[]
[]
[null,{"$f":"Master!F$1","v":"Grays Harbor"},{"$f":"INDEX(Master!$C$4:'Master'!$AP$564, MATCH($AJ$2, Master!$A$4:'Master'!$A$614, 0), MATCH($B16, Master!$C$1:'Master'!$AP$1, 0))","v":0},null,null,null,null,null,null,null,null,null,null,null,null,{"$f":"B43","v":"San Juan"},null,null,null,null,null,null,null,null,null,null,null,null,null,null,null,null,null,null,null,null,null,null,null,null,null,null,null,null,null,null,null,null,null,null,null,null,null,null,null,null,null,null,null,null,null,null,null,null,null,null,null,{"$f":"Master!Z$1","v":"Chelan"},{"$f":"INDEX(Master!$C$4:'Master'!$AP$564, MATCH($AJ$2, Master!$A$4:'Master'!$A$614, 0), MATCH($BP16, Master!$C$1:'Master'!$AP$1, 0))","v":0}]
[]
[]
[null,{"$f":"Master!G$1","v":"Island"},{"$f":"INDEX(Master!$C$4:'Master'!$AP$564, MATCH($AJ$2, Master!$A$4:'Master'!$A$614, 0), MATCH($B19, Master!$C$1:'Master'!$AP$1, 0))","v":0},null,null,null,null,null,null,null,null,null,null,null,null,null,null,null,null,null,null,null,null,null,null,null,null,null,null,null,null,null,null,null,null,null,null,null,null,null,null,null,null,null,null,null,null,null,null,null,null,null,null,null,null,null,null,null,null,null,null,null,null,null,null,null,null,{"$f":"Master!AA$1","v":"Columbia"},{"$f":"INDEX(Master!$C$4:'Master'!$AP$564, MATCH($AJ$2, Master!$A$4:'Master'!$A$614, 0), MATCH($BP19, Master!$C$1:'Master'!$AP$1, 0))","v":0}]
[null,null,null,null,null,null,null,null,null,null,null,null,null,null,null,null,null,null,null,null,{"$f":"B46","v":"Skagit"}]
[]
[null,{"$f":"Master!H$1","v":"Jefferson"},{"$f":"INDEX(Master!$C$4:'Master'!$AP$564, MATCH($AJ$2, Master!$A$4:'Master'!$A$614, 0), MATCH($B22, Master!$C$1:'Master'!$AP$1, 0))","v":0},null,null,null,null,null,null,null,null,null,null,null,null,null,null,null,null,null,null,null,null,null,null,null,null,null,null,null,null,null,null,null,null,null,null,null,null,null,null,null,null,null,null,null,null,null,null,null,null,null,null,null,null,null,null,null,null,null,null,null,null,null,null,null,null,{"$f":"Master!AB$1","v":"Douglas"},{"$f":"INDEX(Master!$C$4:'Master'!$AP$564, MATCH($AJ$2, Master!$A$4:'Master'!$A$614, 0), MATCH($BP22, Master!$C$1:'Master'!$AP$1, 0))","v":0}]
[]
[]
[null,{"$f":"Master!I$1","v":"King"},{"$f":"INDEX(Master!$C$4:'Master'!$AP$564, MATCH($AJ$2, Master!$A$4:'Master'!$A$614, 0), MATCH($B25, Master!$C$1:'Master'!$AP$1, 0))","v":0},null,null,null,null,null,null,null,null,null,null,null,null,null,null,null,null,null,null,null,null,null,null,null,null,null,null,null,null,null,null,null,null,null,null,null,null,null,null,null,null,null,null,null,null,null,null,null,null,null,null,null,null,null,null,null,null,null,null,null,null,null,null,null,null,{"$f":"Master!AC$1","v":"Ferry"},{"$f":"INDEX(Master!$C$4:'Master'!$AP$564, MATCH($AJ$2, Master!$A$4:'Master'!$A$614, 0), MATCH($BP25, Master!$C$1:'Master'!$AP$1, 0))","v":0}]
[]
[null,null,null,null,null,{"$f":"B7","v":"Clallam"}]
[null,{"$f":"Master!J$1","v":"Kitsap"},{"$f":"INDEX(Master!$C$4:'Master'!$AP$564, MATCH($AJ$2, Master!$A$4:'Master'!$A$614, 0), MATCH($B28, Master!$C$1:'Master'!$AP$1, 0))","v":0},null,null,null,null,null,null,null,null,null,null,null,null,null,null,null,null,null,null,{"$f":"B19","v":"Island"},null,null,{"$f":"B52","v":"Snohomish"},null,null,null,null,null,null,null,null,null,{"$f":"BP16","v":"Chelan"},null,null,null,null,null,null,null,{"$f":"BP22","v":"Douglas"},null,null,null,null,null,null,null,null,null,null,null,null,null,null,null,null,null,null,null,null,null,null,null,null,{"$f":"Master!AD$1","v":"Franklin"},{"$f":"INDEX(Master!$C$4:'Master'!$AP$564, MATCH($AJ$2, Master!$A$4:'Master'!$A$614, 0), MATCH($BP28, Master!$C$1:'Master'!$AP$1, 0))","v":0}]
[]
[]
[null,{"$f":"Master!K$1","v":"Lewis"},{"$f":"INDEX(Master!$C$4:'Master'!$AP$564, MATCH($AJ$2, Master!$A$4:'Master'!$A$614, 0), MATCH($B31, Master!$C$1:'Master'!$AP$1, 0))","v":0},null,null,null,null,null,null,null,null,null,null,null,null,null,null,null,null,null,null,null,null,null,null,null,null,null,null,null,null,null,null,null,null,null,null,null,null,null,null,null,null,null,null,null,null,null,null,null,null,null,null,null,null,null,null,null,null,null,null,null,null,null,null,null,null,{"$f":"Master!AE$1","v":"Garfield"},{"$f":"INDEX(Master!$C$4:'Master'!$AP$564, MATCH($AJ$2, Master!$A$4:'Master'!$A$614, 0), MATCH($BP31, Master!$C$1:'Master'!$AP$1, 0))","v":0}]
[]
[]
[null,{"$f":"Master!L$1","v":"Mason"},{"$f":"INDEX(Master!$C$4:'Master'!$AP$564, MATCH($AJ$2, Master!$A$4:'Master'!$A$614, 0), MATCH($B34, Master!$C$1:'Master'!$AP$1, 0))","v":0},null,null,null,null,null,null,null,null,null,null,null,null,null,null,null,null,null,null,null,null,null,null,null,null,null,null,null,null,null,null,null,null,null,null,null,null,null,null,null,null,null,null,null,null,null,null,null,null,null,null,null,null,null,null,null,null,null,null,null,null,null,null,null,null,{"$f":"Master!AF$1","v":"Grant"},{"$f":"INDEX(Master!$C$4:'Master'!$AP$564, MATCH($AJ$2, Master!$A$4:'Master'!$A$614, 0), MATCH($BP34, Master!$C$1:'Master'!$AP$1, 0))","v":0}]
[]
[]
[null,{"$f":"Master!M$1","v":"Pacific"},{"$f":"INDEX(Master!$C$4:'Master'!$AP$564, MATCH($AJ$2, Master!$A$4:'Master'!$A$614, 0), MATCH($B37, Master!$C$1:'Master'!$AP$1, 0))","v":0},null,null,null,null,null,null,null,null,null,null,null,null,null,null,null,null,null,null,null,null,null,null,null,null,null,null,null,null,null,null,null,null,null,null,null,null,null,null,null,null,null,null,null,null,null,null,null,null,{"$f":"BP43","v":"Lincoln"},null,null,null,null,null,null,null,{"$f":"BP52","v":"Spokane"},null,null,null,null,null,null,null,{"$f":"Master!AG$1","v":"Kittitas"},{"$f":"INDEX(Master!$C$4:'Master'!$AP$564, MATCH($AJ$2, Master!$A$4:'Master'!$A$614, 0), MATCH($BP37, Master!$C$1:'Master'!$AP$1, 0))","v":0}]
[null,null,null,null,null,null,null,{"$f":"B22","v":"Jefferson"}]
[null,null,null,null,null,null,null,null,null,null,null,null,null,null,null,null,null,null,null,null,null,{"$f":"B28","v":"Kitsap"}]
[null,{"$f":"Master!N$1","v":"Pierce"},{"$f":"INDEX(Master!$C$4:'Master'!$AP$564, MATCH($AJ$2, Master!$A$4:'Master'!$A$614, 0), MATCH($B40, Master!$C$1:'Master'!$AP$1, 0))","v":0},null,null,null,null,null,null,null,null,null,null,null,null,null,null,null,null,null,null,null,null,null,{"$f":"B25","v":"King"},null,null,null,null,null,null,null,null,null,null,null,null,null,null,null,null,null,null,null,null,null,null,null,null,null,null,null,null,null,null,null,null,null,null,null,null,null,null,null,null,null,null,{"$f":"Master!AH$1","v":"Klickitat"},{"$f":"INDEX(Master!$C$4:'Master'!$AP$564, MATCH($AJ$2, Master!$A$4:'Master'!$A$614, 0), MATCH($BP40, Master!$C$1:'Master'!$AP$1, 0))","v":0}]
[]
[]
[null,{"$f":"Master!O$1","v":"San Juan"},{"$f":"INDEX(Master!$C$4:'Master'!$AP$564, MATCH($AJ$2, Master!$A$4:'Master'!$A$614, 0), MATCH($B43, Master!$C$1:'Master'!$AP$1, 0))","v":0},null,null,null,null,null,null,null,null,null,null,null,null,null,null,null,null,null,null,null,null,null,null,null,null,null,null,null,null,null,null,null,null,null,null,null,null,null,null,null,null,null,null,null,null,null,null,null,null,null,null,null,null,null,null,null,null,null,null,null,null,null,null,null,null,{"$f":"Master!AI$1","v":"Lincoln"},{"$f":"INDEX(Master!$C$4:'Master'!$AP$564, MATCH($AJ$2, Master!$A$4:'Master'!$A$614, 0), MATCH($BP43, Master!$C$1:'Master'!$AP$1, 0))","v":0}]
[null,null,null,null,null,null,null,null,null,null,null,null,null,null,null,null,null,null,null,null,null,null,null,null,null,null,null,null,null,null,null,null,null,null,null,null,null,null,null,null,null,null,{"$f":"BP34","v":"Grant"}]
[null,null,null,null,null,null,null,null,{"$f":"B16","v":"Grays Harbor"},null,null,null,null,null,null,{"$f":"B34","v":"Mason"}]
[null,{"$f":"Master!P$1","v":"Skagit"},{"$f":"INDEX(Master!$C$4:'Master'!$AP$564, MATCH($AJ$2, Master!$A$4:'Master'!$A$614, 0), MATCH($B46, Master!$C$1:'Master'!$AP$1, 0))","v":0},null,null,null,null,null,null,null,null,null,null,null,null,null,null,null,null,null,null,null,null,null,null,null,null,null,null,null,null,null,null,null,null,null,null,null,null,null,null,null,null,null,null,null,null,null,null,null,null,null,null,null,null,null,null,null,null,null,null,null,null,null,null,null,null,{"$f":"Master!AJ$1","v":"Okanogan"},{"$f":"INDEX(Master!$C$4:'Master'!$AP$564, MATCH($AJ$2, Master!$A$4:'Master'!$A$614, 0), MATCH($BP46, Master!$C$1:'Master'!$AP$1, 0))","v":0}]
[]
[]
[null,{"$f":"Master!Q$1","v":"Skamania"},{"$f":"INDEX(Master!$C$4:'Master'!$AP$564, MATCH($AJ$2, Master!$A$4:'Master'!$A$614, 0), MATCH($B49, Master!$C$1:'Master'!$AP$1, 0))","v":0},null,null,null,null,null,null,null,null,null,null,null,null,null,null,null,null,null,null,null,null,null,null,null,null,null,null,null,null,null,null,null,{"$f":"BP37","v":"Kittitas"},null,null,null,null,null,null,null,null,null,null,null,null,null,null,null,null,null,null,null,null,null,null,null,null,null,null,null,null,null,null,null,null,{"$f":"Master!AK$1","v":"Pend Oreille"},{"$f":"INDEX(Master!$C$4:'Master'!$AP$564, MATCH($AJ$2, Master!$A$4:'Master'!$A$614, 0), MATCH($BP49, Master!$C$1:'Master'!$AP$1, 0))","v":0}]
[]
[]
[null,{"$f":"Master!R$1","v":"Snohomish"},{"$f":"INDEX(Master!$C$4:'Master'!$AP$564, MATCH($AJ$2, Master!$A$4:'Master'!$A$614, 0), MATCH($B52, Master!$C$1:'Master'!$AP$1, 0))","v":0},null,null,null,null,null,null,null,null,null,null,null,null,null,null,null,null,null,null,{"$f":"B40","v":"Pierce"},null,null,null,null,null,null,null,null,null,null,null,null,null,null,null,null,null,null,null,null,null,null,null,null,null,null,null,null,null,{"$f":"BP7","v":"Adams"},null,null,null,null,null,null,{"$f":"BP61","v":"Whitman"},null,null,null,null,null,null,null,null,{"$f":"Master!AL$1","v":"Spokane"},{"$f":"INDEX(Master!$C$4:'Master'!$AP$564, MATCH($AJ$2, Master!$A$4:'Master'!$A$614, 0), MATCH($BP52, Master!$C$1:'Master'!$AP$1, 0))","v":0}]
[]
[]
[null,"Thurston",{"$f":"INDEX(Master!$C$4:'Master'!$AP$564, MATCH($AJ$2, Master!$A$4:'Master'!$A$614, 0), MATCH($B55, Master!$C$1:'Master'!$AP$1, 0))","v":0},null,null,null,null,null,null,null,null,null,null,null,null,null,null,null,null,null,null,null,null,null,null,null,null,null,null,null,null,null,null,null,null,null,null,null,null,null,null,null,null,null,null,null,null,null,null,null,null,null,null,null,null,null,null,null,null,null,null,null,null,null,null,null,null,{"$f":"Master!AM$1","v":"Stevens"},{"$f":"INDEX(Master!$C$4:'Master'!$AP$564, MATCH($AJ$2, Master!$A$4:'Master'!$A$614, 0), MATCH($BP55, Master!$C$1:'Master'!$AP$1, 0))","v":0}]
[null,null,null,null,null,null,null,null,null,null,null,null,null,null,null,{"$f":"B55","v":"Thurston"}]
[]
[null,"Wahkiakum",{"$f":"INDEX(Master!$C$4:'Master'!$AP$564, MATCH($AJ$2, Master!$A$4:'Master'!$A$614, 0), MATCH($B58, Master!$C$1:'Master'!$AP$1, 0))","v":0},null,null,null,null,null,null,null,null,null,null,null,null,null,null,null,null,null,null,null,null,null,null,null,null,null,null,null,null,null,null,null,null,null,null,null,null,null,null,null,null,null,null,null,null,null,null,null,null,null,null,null,null,null,null,null,null,null,null,null,null,null,null,null,null,"Walla Walla",{"$f":"INDEX(Master!$C$4:'Master'!$AP$564, MATCH($AJ$2, Master!$A$4:'Master'!$A$614, 0), MATCH($BP58, Master!$C$1:'Master'!$AP$1, 0))","v":0}]
[]
[]
[null,"Whatcom",{"$f":"INDEX(Master!$C$4:'Master'!$AP$564, MATCH($AJ$2, Master!$A$4:'Master'!$A$614, 0), MATCH($B61, Master!$C$1:'Master'!$AP$1, 0))","v":0},null,null,null,null,null,null,null,null,null,null,null,null,null,null,null,null,null,null,null,null,null,null,null,null,null,null,null,null,null,null,null,null,null,null,null,null,null,null,null,null,null,null,null,null,null,null,null,null,null,null,null,null,null,null,null,null,null,null,null,null,null,null,null,null,"Whitman",{"$f":"INDEX(Master!$C$4:'Master'!$AP$564, MATCH($AJ$2, Master!$A$4:'Master'!$A$614, 0), MATCH($BP61, Master!$C$1:'Master'!$AP$1, 0))","v":0}]
[]
[null,null,null,null,null,null,null,null,null,{"$f":"B37","v":"Pacific"},null,null,null,null,{"$f":"B31","v":"Lewis"},null,null,null,null,null,null,null,null,null,null,null,null,null,null,null,null,{"$f":"BP64","v":"Yakima"},null,null,null,null,null,null,null,null,null,null,null,{"$f":"BP13","v":"Benton"},null,null,null,null,null,{"$f":"BP28","v":"Franklin"}]
[null,"W WA",{"$f":"SUM(C7:C63)","v":0},null,null,null,null,null,null,null,null,null,null,null,null,null,null,null,null,null,null,null,null,null,null,null,null,null,null,null,null,null,null,null,null,null,null,null,null,null,null,null,null,null,null,null,null,null,null,null,null,null,null,null,null,null,null,null,null,null,null,null,null,null,null,null,null,"Yakima",{"$f":"INDEX(Master!$C$4:'Master'!$AP$564, MATCH($AJ$2, Master!$A$4:'Master'!$A$614, 0), MATCH($BP64, Master!$C$1:'Master'!$AP$1, 0))","v":0}]
[]
[]
[null,null,null,null,null,null,null,null,null,null,null,null,null,null,null,null,null,null,null,null,null,null,null,null,null,null,null,null,null,null,null,null,null,null,null,null,null,null,null,null,null,null,null,null,null,null,null,null,null,null,null,null,null,null,null,null,null,null,null,null,null,null,null,null,null,null,null,"E WA",{"$f":"SUM(BQ7:BQ64)","v":0}]
[null,"KEY: BLUE=Common;\nGREEN=Uncommon; \nYELLOW=Harder to find, usually seen annually;\nORANGE=Rare, 5+records;\nRED=Less than 5 records; \nBLACK=extirpated; \nGRAY=Introduced."]
[]
[]
[null,null,null,null,null,null,null,null,null,null,null,null,null,null,null,null,null,null,null,null,null,null,null,null,null,null,null,null,null,null,null,null,null,null,null,null,null,null,null,null,null,null,null,null,null,null,null,null,null,{"$f":"BP58","v":"Walla Walla"},null,null,null,null,null,null,null,null,{"$f":"BP19","v":"Columbia"},null,null,{"$f":"BP31","v":"Garfield"},null,null,{"$f":"BP10","v":"Asotin"}]
[null,null,null,null,null,null,null,null,null,null,null,{"$f":"B58","v":"Wahkiakum"},null,null,null,null,null,{"$f":"B13","v":"Cowlitz"},null,null,null,null,null,null,{"$f":"B49","v":"Skamania"}]
[]
[]
[]
[]
[]
[]
[]
[null,null,null,null,null,null,null,null,null,null,null,null,null,null,null,null,null,null,null,{"$f":"B10","v":"Clark"},null,null,null,null,null,null,null,null,null,null,null,{"$f":"BP40","v":"Klickitat"}]

{"sheet":"Rank","index":2,"n_rows":84,"n_cols":69,"rows_kept":84,"cut":false,"hidden":false,"merged":[[66,68,68,68],[48,68,50,68],[18,68,20,68],[57,68,59,68],[63,68,65,68],[51,68,53,68],[60,67,62,67],[60,68,62,68],[42,67,44,67],[42,68,44,68],[45,67,47,67],[48,67,50,67],[24,68,26,68],[27,68,29,68],[45,68,47,68],[36,68,38,68],[27,67,29,67],[30,67,32,67],[33,67,35,67],[33,68,35,68],[39,68,41,68],[54,68,56,68],[51,67,53,67],[39,67,41,67],[68,2,70,2],[74,1,76,2],[77,1,79,1],[80,1,82,1],[83,1,85,1],[77,2,79,2],[80,2,82,2],[83,2,85,2],[62,9,70,13],[54,67,56,67],[43,42,61,50],[36,59,50,64],[36,67,38,67],[27,24,38,33],[63,67,65,67],[36,51,50,58],[27,42,42,50],[79,31,85,42],[66,67,68,67],[57,67,59,67],[70,64,79,65],[70,61,79,63],[70,49,79,57],[70,58,79,60],[62,14,70,30],[71,17,78,23],[71,24,86,30],[79,19,89,23],[42,2,44,2],[36,1,38,1],[51,1,53,1],[51,2,53,2],[44,8,61,14],[48,1,50,1],[48,2,50,2],[48,34,61,41],[51,58,69,64],[63,1,65,1],[63,2,65,2],[60,2,62,2],[37,7,43,20],[57,1,59,1],[57,2,59,2],[60,1,62,1],[39,24,50,33],[62,31,78,42],[62,43,81,48],[62,49,69,57],[51,21,61,33],[51,51,61,57],[71,11,75,16],[68,1,70,1],[18,2,20,2],[19,20,26,36],[21,1,23,1],[21,2,23,2],[30,1,32,1],[30,2,32,2],[33,1,35,1],[33,2,35,2],[38,21,50,22],[39,1,41,1],[45,1,47,1],[45,2,47,2],[27,21,36,23],[26,5,36,18],[36,2,38,2],[39,2,41,2],[44,15,54,20],[27,2,29,2],[27,34,47,41],[27,1,29,1],[54,1,56,1],[54,2,56,2],[55,15,61,20],[42,1,44,1],[15,68,17,68],[18,1,20,1],[9,68,11,68],[10,20,18,36],[10,37,26,50],[10,51,35,55],[10,56,35,61],[10,62,35,64],[30,68,32,68],[9,1,11,1],[15,1,17,1],[15,2,17,2],[15,15,23,18],[15,67,17,67],[12,1,14,1],[12,2,14,2],[12,67,14,67],[18,67,20,67],[12,68,14,68],[21,67,23,67],[21,68,23,68],[24,1,26,1],[24,2,26,2],[24,67,26,67],[1,23,5,25],[6,67,8,67],[6,68,8,68],[1,26,5,28],[1,29,5,31],[1,32,5,34],[1,35,5,37],[1,38,5,40],[9,2,11,2],[9,67,11,67],[1,20,5,22],[1,44,5,46],[1,1,3,2],[1,41,5,43],[1,4,6,18],[1,67,3,68],[6,1,8,1],[6,2,8,2],[10,4,12,18]]}
[null,null,null,null,null,null,null,null,null,null,null,null,null,null,null,null,null,null,null,null,null,null,null,null,null,null,null,null,null,null,null,null,39]
[null,"Western WA",null,null,"Counties colored according to county totals",null,null,null,null,null,null,null,null,null,null,null,null,null,null,null,0,null,null,25,null,null,50,null,null,75,null,null,100,null,null,125,null,null,150,null,null,175,null,null,200,null,null,null,null,null,null,null,null,null,null,null,null,null,null,null,null,null,null,null,null,null,null,"Eastern WA"]
[]
[]
[]
[]
[null,{"$f":"Master!C1","v":"Clallam"},{"$f":"Master!C3","v":0},null,null,null,null,null,null,null,null,null,null,null,null,null,null,null,null,null,null,null,null,null,null,null,null,null,null,null,null,null,null,null,null,null,null,null,null,null,null,null,null,null,null,null,null,null,null,null,null,null,null,null,null,null,null,null,null,null,null,null,null,null,null,null,null,{"$f":"Master!W$1","v":"Adams"},{"$f":"Master!W$3","v":0}]
[]
[]
[null,{"$f":"Master!D1","v":"Clark"},{"$f":"Master!D3","v":0},null,null,null,null,null,null,null,null,null,null,null,null,null,null,null,null,null,null,null,null,null,null,null,null,null,null,null,null,null,null,null,null,null,null,null,null,null,null,null,null,null,null,null,null,null,null,null,null,null,null,null,null,null,null,null,null,null,null,null,null,null,null,null,null,{"$f":"Master!X$1","v":"Asotin"},{"$f":"Master!X$3","v":0}]
[null,null,null,null,null,null,null,null,null,null,null,null,null,null,null,null,null,null,null,null,{"$f":"B61&\" \"&C61","v":"Whatcom 0"},null,null,null,null,null,null,null,null,null,null,null,null,null,null,null,null,{"$f":"BP46&\" \"&BQ46","v":"Okanogan 0"},null,null,null,null,null,null,null,null,null,null,null,null,null,{"$f":"BP25&\" \"&BQ25","v":"Ferry 0"},null,null,null,null,{"$f":"BP55&\" \"&BQ55","v":"Stevens 0"},null,null,null,null,null,{"$f":"BP49&\" \"&BQ49","v":"Pend Oreille 0"}]
[]
[null,{"$f":"Master!E1","v":"Cowlitz"},{"$f":"Master!E3","v":0},null,null,null,null,null,null,null,null,null,null,null,null,null,null,null,null,null,null,null,null,null,null,null,null,null,null,null,null,null,null,null,null,null,null,null,null,null,null,null,null,null,null,null,null,null,null,null,null,null,null,null,null,null,null,null,null,null,null,null,null,null,null,null,null,{"$f":"Master!Y$1","v":"Benton"},{"$f":"Master!Y$3","v":0}]
[]
[]
[null,{"$f":"Master!F1","v":"Grays Harbor"},{"$f":"Master!F3","v":0},null,null,null,null,null,null,null,null,null,null,null,null,{"$f":"B43&\" \"&C43","v":"San Juan 0"},null,null,null,null,null,null,null,null,null,null,null,null,null,null,null,null,null,null,null,null,null,null,null,null,null,null,null,null,null,null,null,null,null,null,null,null,null,null,null,null,null,null,null,null,null,null,null,null,null,null,null,{"$f":"Master!Z$1","v":"Chelan"},{"$f":"Master!Z$3","v":0}]
[]
[]
[null,{"$f":"Master!G1","v":"Island"},{"$f":"Master!G3","v":0},null,null,null,null,null,null,null,null,null,null,null,null,null,null,null,null,null,null,null,null,null,null,null,null,null,null,null,null,null,null,null,null,null,null,null,null,null,null,null,null,null,null,null,null,null,null,null,null,null,null,null,null,null,null,null,null,null,null,null,null,null,null,null,null,{"$f":"Master!AA$1","v":"Columbia"},{"$f":"Master!AA$3","v":0}]
[null,null,null,null,null,null,null,null,null,null,null,null,null,null,null,null,null,null,null,null,{"$f":"B46&\" \"&C46","v":"Skagit 0"}]
[]
[null,{"$f":"Master!H1","v":"Jefferson"},{"$f":"Master!H3","v":0},null,null,null,null,null,null,null,null,null,null,null,null,null,null,null,null,null,null,null,null,null,null,null,null,null,null,null,null,null,null,null,null,null,null,null,null,null,null,null,null,null,null,null,null,null,null,null,null,null,null,null,null,null,null,null,null,null,null,null,null,null,null,null,null,{"$f":"Master!AB$1","v":"Douglas"},{"$f":"Master!AB$3","v":0}]
[]
[]
[null,{"$f":"Master!I1","v":"King"},{"$f":"Master!I3","v":0},null,null,null,null,null,null,null,null,null,null,null,null,null,null,null,null,null,null,null,null,null,null,null,null,null,null,null,null,null,null,null,null,null,null,null,null,null,null,null,null,null,null,null,null,null,null,null,null,null,null,null,null,null,null,null,null,null,null,null,null,null,null,null,null,{"$f":"Master!AC$1","v":"Ferry"},{"$f":"Master!AC$3","v":0}]
[]
[null,null,null,null,null,{"$f":"B7&\" \"&C7","v":"Clallam 0"}]
[null,{"$f":"Master!J1","v":"Kitsap"},{"$f":"Master!J3","v":0},null,null,null,null,null,null,null,null,null,null,null,null,null,null,null,null,null,null,{"$f":"B19&\" \"&C19","v":"Island 0"},null,null,{"$f":"B52&\" \"&C52","v":"Snohomish 0"},null,null,null,null,null,null,null,null,null,{"$f":"BP16&\" \"&BQ16","v":"Chelan 0"},null,null,null,null,null,null,null,{"$f":"BP22&\" \"&BQ22","v":"Douglas 0"},null,null,null,null,null,null,null,null,null,null,null,null,null,null,null,null,null,null,null,null,null,null,null,null,{"$f":"Master!AD$1","v":"Franklin"},{"$f":"Master!AD$3","v":0}]
[]
[]
[null,{"$f":"Master!K1","v":"Lewis"},{"$f":"Master!K3","v":0},null,null,null,null,null,null,null,null,null,null,null,null,null,null,null,null,null,null,null,null,null,null,null,null,null,null,null,null,null,null,null,null,null,null,null,null,null,null,null,null,null,null,null,null,null,null,null,null,null,null,null,null,null,null,null,null,null,null,null,null,null,null,null,null,{"$f":"Master!AE$1","v":"Garfield"},{"$f":"Master!AE$3","v":0}]
[]
[]
[null,{"$f":"Master!L1","v":"Mason"},{"$f":"Master!L3","v":0},null,null,null,null,null,null,null,null,null,null,null,null,null,null,null,null,null,null,null,null,null,null,null,null,null,null,null,null,null,null,null,null,null,null,null,null,null,null,null,null,null,null,null,null,null,null,null,null,null,null,null,null,null,null,null,null,null,null,null,null,null,null,null,null,{"$f":"Master!AF$1","v":"Grant"},{"$f":"Master!AF$3","v":0}]
[]
[]
[null,{"$f":"Master!M1","v":"Pacific"},{"$f":"Master!M3","v":0},null,null,null,null,null,null,null,null,null,null,null,null,null,null,null,null,null,null,null,null,null,null,null,null,null,null,null,null,null,null,null,null,null,null,null,null,null,null,null,null,null,null,null,null,null,null,null,null,{"$f":"BP43&\" \"&BQ43","v":"Lincoln 0"},null,null,null,null,null,null,null,{"$f":"BP52&\" \"&BQ52","v":"Spokane 0"},null,null,null,null,null,null,null,{"$f":"Master!AG$1","v":"Kittitas"},{"$f":"Master!AG$3","v":0}]
[null,null,null,null,null,null,null,{"$f":"B22&\" \"&C22","v":"Jefferson 0"}]
[null,null,null,null,null,null,null,null,null,null,null,null,null,null,null,null,null,null,null,null,null,{"$f":"B28&\" \"&C28","v":"Kitsap 0"}]
[null,{"$f":"Master!N1","v":"Pierce"},{"$f":"Master!N3","v":0},null,null,null,null,null,null,null,null,null,null,null,null,null,null,null,null,null,null,null,null,null,{"$f":"B25&\" \"&C25","v":"King 0"},null,null,null,null,null,null,null,null,null,null,null,null,null,null,null,null,null,null,null,null,null,null,null,null,null,null,null,null,null,null,null,null,null,null,null,null,null,null,null,null,null,null,{"$f":"Master!AH$1","v":"Klickitat"},{"$f":"Master!AH$3","v":0}]
[]
[]
[null,{"$f":"Master!O1","v":"San Juan"},{"$f":"Master!O3","v":0},null,null,null,null,null,null,null,null,null,null,null,null,null,null,null,null,null,null,null,null,null,null,null,null,null,null,null,null,null,null,null,null,null,null,null,null,null,null,null,null,null,null,null,null,null,null,null,null,null,null,null,null,null,null,null,null,null,null,null,null,null,null,null,null,{"$f":"Master!AI$1","v":"Lincoln"},{"$f":"Master!AI$3","v":0}]
[null,null,null,null,null,null,null,null,null,null,null,null,null,null,null,null,null,null,null,null,null,null,null,null,null,null,null,null,null,null,null,null,null,null,null,null,null,null,null,null,null,null,{"$f":"BP34&\" \"&BQ34","v":"Grant 0"}]
[null,null,null,null,null,null,null,null,{"$f":"B16&\" \"&C16","v":"Grays Harbor 0"},null,null,null,null,null,null,{"$f":"B34&\" \"&C34","v":"Mason 0"}]
[null,{"$f":"Master!P1","v":"Skagit"},{"$f":"Master!P3","v":0},null,null,null,null,null,null,null,null,null,null,null,null,null,null,null,null,null,null,null,null,null,null,null,null,null,null,null,null,null,null,null,null,null,null,null,null,null,null,null,null,null,null,null,null,null,null,null,null,null,null,null,null,null,null,null,null,null,null,null,null,null,null,null,null,{"$f":"Master!AJ$1","v":"Okanogan"},{"$f":"Master!AJ$3","v":0}]
[]
[]
[null,{"$f":"Master!Q1","v":"Skamania"},{"$f":"Master!Q3","v":0},null,null,null,null,null,null,null,null,null,null,null,null,null,null,null,null,null,null,null,null,null,null,null,null,null,null,null,null,null,null,null,{"$f":"BP37&\" \"&BQ37","v":"Kittitas 0"},null,null,null,null,null,null,null,null,null,null,null,null,null,null,null,null,null,null,null,null,null,null,null,null,null,null,null,null,null,null,null,null,{"$f":"Master!AK$1","v":"Pend Oreille"},{"$f":"Master!AK$3","v":0}]
[]
[]
[null,{"$f":"Master!R1","v":"Snohomish"},{"$f":"Master!R3","v":0},null,null,null,null,null,null,null,null,null,null,null,null,null,null,null,null,null,null,{"$f":"B40&\" \"&C40","v":"Pierce 0"},null,null,null,null,null,null,null,null,null,null,null,null,null,null,null,null,null,null,null,null,null,null,null,null,null,null,null,null,null,{"$f":"BP7&\" \"&BQ7","v":"Adams 0"},null,null,null,null,null,null,{"$f":"BP61&\" \"&BQ61","v":"Whitman 0"},null,null,null,null,null,null,null,null,{"$f":"Master!AL$1","v":"Spokane"},{"$f":"Master!AL$3","v":0}]
[]
[]
[null,{"$f":"Master!S1","v":"Thurston"},{"$f":"Master!S3","v":0},null,null,null,null,null,null,null,null,null,null,null,null,null,null,null,null,null,null,null,null,null,null,null,null,null,null,null,null,null,null,null,null,null,null,null,null,null,null,null,null,null,null,null,null,null,null,null,null,null,null,null,null,null,null,null,null,null,null,null,null,null,null,null,null,{"$f":"Master!AM$1","v":"Stevens"},{"$f":"Master!AM$3","v":0}]
[null,null,null,null,null,null,null,null,null,null,null,null,null,null,null,{"$f":"B55&\" \"&C55","v":"Thurston 0"}]
[]
[null,{"$f":"Master!T1","v":"Wahkiakum"},{"$f":"Master!T3","v":0},null,null,null,null,null,null,null,null,null,null,null,null,null,null,null,null,null,null,null,null,null,null,null,null,null,null,null,null,null,null,null,null,null,null,null,null,null,null,null,null,null,null,null,null,null,null,null,null,null,null,null,null,null,null,null,null,null,null,null,null,null,null,null,null,"Walla Walla",{"$f":"Master!AN$3","v":0}]
[]
[]
[null,{"$f":"Master!U1","v":"Whatcom"},{"$f":"Master!U3","v":0},null,null,null,null,null,null,null,null,null,null,null,null,null,null,null,null,null,null,null,null,null,null,null,null,null,null,null,null,null,null,null,null,null,null,null,null,null,null,null,null,null,null,null,null,null,null,null,null,null,null,null,null,null,null,null,null,null,null,null,null,null,null,null,null,"Whitman",{"$f":"Master!AO$3","v":0}]
[]
[null,null,null,null,null,null,null,null,null,{"$f":"B37&\" \"&C37","v":"Pacific 0"},null,null,null,null,{"$f":"B31&\" \"&C31","v":"Lewis 0"},null,null,null,null,null,null,null,null,null,null,null,null,null,null,null,null,{"$f":"BP64&\" \"&BQ64","v":"Yakima 0"},null,null,null,null,null,null,null,null,null,null,null,{"$f":"BP13&\" \"&BQ13","v":"Benton 0"},null,null,null,null,null,{"$f":"BP28&\" \"&BQ28","v":"Franklin 0"}]
[null,"W WA Avg",{"$f":"FLOOR(AVERAGE(C7:C63), 1)","v":0},null,null,null,null,null,null,null,null,null,null,null,null,null,null,null,null,null,null,null,null,null,null,null,null,null,null,null,null,null,null,null,null,null,null,null,null,null,null,null,null,null,null,null,null,null,null,null,null,null,null,null,null,null,null,null,null,null,null,null,null,null,null,null,null,"Yakima",{"$f":"Master!AP$3","v":0}]
[]
[]
[null,null,null,null,null,null,null,null,null,null,null,null,null,null,null,null,null,null,null,null,null,null,null,null,null,null,null,null,null,null,null,null,null,null,null,null,null,null,null,null,null,null,null,null,null,null,null,null,null,null,null,null,null,null,null,null,null,null,null,null,null,null,null,null,null,null,null,"E WA",{"$f":"FLOOR(AVERAGE(BQ7:BQ66),1)","v":0}]
[]
[null,"WA Avg",{"$f":"FLOOR(AVERAGE(C7:C63, BQ7:BQ66), 1)","v":0}]
[]
[null,null,null,null,null,null,null,null,null,null,null,null,null,null,null,null,null,null,null,null,null,null,null,null,null,null,null,null,null,null,null,null,null,null,null,null,null,null,null,null,null,null,null,null,null,null,null,null,null,{"$f":"BP58&\" \"&BQ58","v":"Walla Walla 0"},null,null,null,null,null,null,null,null,{"$f":"BP19&\" \"&BQ19","v":"Columbia 0"},null,null,{"$f":"BP31&\" \"&BQ31","v":"Garfield 0"},null,null,{"$f":"BP10&\" \"&BQ10","v":"Asotin 0"}]
[null,null,null,null,null,null,null,null,null,null,null,{"$f":"B58&\" \"&C58","v":"Wahkiakum 0"},null,null,null,null,null,{"$f":"B13&\" \"&C13","v":"Cowlitz 0"},null,null,null,null,null,null,{"$f":"B49&\" \"&C49","v":"Skamania 0"}]
[]
[]
[null,"Total Ticks"]
[]
[]
[null,"W WA",{"$f":"SUM( C7:C63)","v":0}]
[]
[null,null,null,null,null,null,null,null,null,null,null,null,null,null,null,null,null,null,null,{"$f":"B10&\" \"&C10","v":"Clark 0"},null,null,null,null,null,null,null,null,null,null,null,{"$f":"BP40&\" \"&BQ40","v":"Klickitat 0"}]
[null,"E WA",{"$f":"SUM(BQ7:BQ66)","v":0}]
[]
[]
[null,"WA",{"$f":"SUM(C78, C81)","v":0}]